{"text_format":"1","workbook":"xlsx","n_sheets":5,"sheets":["Instruccions - Instrucciones","Dades i com... - Datos y com...","Pressupost - Pressupuesto","Detall - Detalle","Llista desplegable"],"not_rendered":{"charts":0,"images":2,"macros":1,"external_links":1,"defined_names":17,"comments":1,"pivot_tables":0},"unopened":[],"bounds":{"document_bytes":16777216,"sheet_cells":100000,"rows_first":2000,"rows_last":500,"rows_between":2000,"halvings":0,"cell_chars":16384,"cell_head_chars":4096},"cells_cut":0,"cells_raw":0,"read":"whole","date_system":"1900"}

{"sheet":"Instruccions - Instrucciones","index":0,"n_rows":30,"n_cols":7,"rows_kept":30,"cut":false,"hidden":false,"merged":[]}
[]
[null,"Instruccions d'ús del formulari",null,null,null,null,"Instrucciones de uso del formulario"]
[]
[null,"Aquest formulari de pressupost consta de 3 pestanyes:",null,null,null,null,"Este formulario de presupuesto consta de 3 pestañas:"]
[null,"1. Dades i comprovacions: s'introduiran les dades generals del projecte i també inclourà les verificacions per tal de comprovar que s'ha emplenat correctament.",null,null,null,null,"1. Datos y comprobaciones: se introducirán los datos generales del proyecto y también incluirá las verificaciones para comprobar que se ha rellenado correctamente."]
[null,"2. Execució: S'inclouran les dades relatives a les factures del projecte, així com la seva imputació als diferents projectes.",null,null,null,null,"2. Ejecución: Se incluirán los datos relativos a las facturas del proyecto, así como su imputación a los diferentes proyectos."]
[null,"3. Pressupost: És la visualització en format compte de resultats de les factures que s'han introduït a la pestanya detall de factures. Es pot visualitzar les factures de la totalitat del projecte o per cada activitat. També es fa la comparativa entre el pressupost i l'execució.",null,null,null,null,"3. Presupuesto: Es la visualización en formato cuenta de resultados de los facturas que se han introducido en la pestaña detalle de facturas. Se pueden visualizar los facturas de la totalidad del proyecto o por cada actividad. También se hace la comparativa entre el presupuesto y la ejecución."]
[]
[null,"Com omplir el formulari de pressupost?",null,null,null,null,"Como rellenar el formulario de presupuesto?"]
[null,"Pas 1: Introduir la informació del projecte a la pestanya \"Dades i  comprovacions\"",null,null,null,null,"Paso 1: Introducir la información del proyecto en la pestaña \"Datos y comprobaciones\""]
[null,"En primer lloc, introduirem tota la informació relativa al projecte a la pestanya \"Dades i comprovacions\". Els camps a omplir estan ombrejats en gris.",null,null,null,null,"En primer lugar, introduciremos toda la información relativa al proyecto en la pestaña Datos y comprobaciones. Los campos a llenar están sombreados en gris."]
[null,"Aquest pas és molt important i s'ha d'emplenar tota la informació a l'inici, ja que posteriorment el que haurem introduït aquí, alimentarà la informació a introduir en la pestanya \"detall despesa\".",null,null,null,null,"Este paso es muy importante y debe rellenarse toda la información al inicio, ya que posteriormente lo que habremos introducido aquí, alimentará la información a introducir en la pestaña \"detalle gasto\"."]
[]
[null,"Pas 2: Introducció de les factures a la pestanya \"Detall - Detalle\"",null,null,null,null,"Paso 2: Introducción de los facturas en la pestaña \"Detall - Detalle\""]
[null,"A l'apartat \"Detall - Detalle\" anirem introduint les diferents factures del projecte en funció de la partida pressupostària detallada a les bases a la qual fan referència.",null,null,null,null,"En el apartado \"Detall -  Detalle\" iremos introduciendo los diferentes facturas del proyecto en función de la partida presupuestaria detallada en las bases a las que se refieren."]
[null,"Els camps a omplir són els que estan sombrejats en color gris.",null,null,null,null,"Los campos a rellenar son los que están sombreados en color gris."]
[null,"El camp valorització només l'omplirem amb \"Sí\" en cas que es tracti d'una despesa valoritzada, en cas contrari, el deixarem en blanc.",null,null,null,null,"El campo valorización sólo lo llenaremos con \"Sí\" en caso de que se trate de un gasto valorizado, de lo contrario, lo dejaremos en blanco."]
[null,"Detallarem el número d'activitats al que fa referència la despesa al camp \"núm d'activitats a imputar la despesa\", en cas que només faci referencia a una activitat o sigui una despesa transversal (p.ex. l'avaluació) en aquest apartat també indicarem \"1\".",null,null,null,null,"Detallaremos el número de actividades al que hace referencia el gasto en el campo \"número de actividades a imputar el gasto\", en caso de que sólo haga referencia a una actividad o se trate de un gasto transversal (p. ej. la evaluación) en este apartado también indicaremos \"1\"."]
[null,"Si hem indicat que la despesa fa referència a més d'una activitat, se'ns obriràn automàticament tantes files com activitats a imputar la despesa. ",null,null,null,null,"\nSi hemos indicado que el gasto hace referencia a más de una actividad, se nos abrirán automáticamente tantas filas como actividades a imputar el gasto."]
[null,"No s'haurà d'omplir res a les cel·les que canviïn a aquest format:",null,null,null,null,"No se tendrá que rellenar nada en las celdas que cambien a este formato:"]
[null,"Detallarem el % de despesa que s'ha d'imputar a cada activitat en cas que l'activitat n'afecti a varies, sinó deixarem el camp en blanc. La columna \"check\" ens indica si hem fet correctament la imputació.",null,null,null,null,"\nDetallaremos el % de gasto que debe imputarse a cada actividad en caso de que la actividad afecte a varias, sino dejaremos el campo en blanco. La columna \"check\" nos indica si hemos realizado correctamente la imputación."]
[null,"A les columnes que estan sota l'apartat \"filtres\" podrem filtrar i exportar la informació per treballar-la si ens fes falta.",null,null,null,null,"En las columnas que están debajo del apartado \"filtros\" podremos filtrar y exportar la información para trabajarla si nos hiciera falta."]
[]
[null,"Pas 3: Comprovació d'errors",null,null,null,null,"Paso 3: Comprobación de errores"]
[null,"Comprovar a la pestanya \"Dades i comprovacions\" que no hi ha cap error marcat el vermell.",null,null,null,null,"Compruebe en la pestaña \"Datos y comprobaciones\" que no hay ningún error marcado el rojo."]
[]
[null,"A tenir en compte en l'apartat \"Detall de factures\":",null,null,null,null,"A tener en cuenta en el apartado \"Detalle de facturas\":"]
[null,"Quan afegim files, sempre s'afegeixen al final",null,null,null,null,"Cuando añadimos filas, siempre se añaden al final"]
[null,"En cas que haguem oblidat o vulguem imputar una despesa a una activitat addicional, haurem d'eliminar totes les linies que fan referencia a aquesta despesa i tornar-la a crear de nou a l'última fila buida, ja que no es permet inserir files.",null,null,null,null,"En caso de que hayamos olvidado o queramos imputar un gasto a una actividad adicional, deberemos eliminar todas las líneas que hacen referencia a este gasto y volver a crearlo de nuevo en la última fila vacía, ya que no se permite insertar filas."]
[null,"No s'han d'eliminar mai totes les files, ja que és bloquejarà el programa.",null,null,null,null,"Nunca se deben eliminar todas las filas, ya que se bloqueará el programa."]

{"sheet":"Dades i com... - Datos y com...","index":1,"n_rows":63,"n_cols":11,"rows_kept":63,"cut":false,"hidden":false,"merged":[[6,3,6,10],[48,7,48,10],[31,3,31,10],[13,3,13,5],[25,3,25,5],[26,3,26,5],[45,7,46,7],[38,6,38,12],[9,3,9,9],[27,3,27,5],[17,3,17,5],[33,4,33,6],[34,4,34,6],[62,6,63,12],[12,7,12,8],[13,7,13,8],[14,7,14,8],[15,7,15,8],[53,7,53,8],[27,7,27,10],[50,7,50,8],[51,7,51,8],[52,7,52,8],[22,3,22,10],[25,7,25,10],[26,7,26,10],[38,1,38,5],[54,7,54,8],[55,7,55,8]]}
[]
[null,"Justificació 2023 / Justificación 2023"]
[null,"Formulari justificació v.3 / Formulario justificación v.3"]
[]
[]
[]
[null,null,null,"DADES GENERALS / DATOS GENERALES"]
[]
[null,null,null,"Nom del projecte / Nombre del proyecto:"]
[]
[]
[null,null,null,null,null,null,null,"Altres finançadors públics / Otros finanzadores públicos:",null,"Import / Importe:"]
[null,null,null,"Línia estratègica / Linea estratégica:"]
[]
[null,null,null,null,null,null,null,null,null,null,"Despeses:"]
[null,null,null,null,null,null,null,null,null,{"$f":"SUM(J13:J15)","v":0},{"$f":"+'Pressupost - Pressupuesto'!F31","v":0}]
[null,null,null,"Entitat líder / Entidad líder:"]
[]
[]
[]
[]
[]
[null,null,null,"ENTITATS PARTICIPANTS AL PROJECTE / ENTIDADES PARTICIPANTES DEL PROYECTO"]
[]
[null,null,null,"Agrupada / Agrupada",null,null,null,"Soci local / Socio Local"]
[null,null,1,null,null,null,1]
[null,null,2,null,null,null,2]
[null,null,3,null,null,null,3]
[]
[]
[]
[null,null,null,"RESUM ECONÒMIC DEL PROJECTE / RESUMEN ECONÓMICO DEL PROYECTO"]
[]
[null,null,null,"TOTAL DESPESES / TOTAL GASTOS","INDIRECTES / INDIRECTOS",null,null,"DIRECTES / DIRECTOS","SUBVENCIÓ SOLICITADA A L'ACCD","CAPÍTOL IV","CAPÍTOL VII"]
[null,null,null,{"$f":"+E35+H35","v":0},{"$f":"+'Pressupost - Pressupuesto'!C30","v":0},null,null,{"$f":"+'Pressupost - Pressupuesto'!C29","v":0},{"$f":"+'Pressupost - Pressupuesto'!E31","v":0},{"$f":"+'Pressupost - Pressupuesto'!E4+'Pressupost - Pressupuesto'!E30","v":0},{"$f":"+'Pressupost - Pressupuesto'!E26","v":0}]
[]
[]
[]
[null,"ACTIVITATS DEL PROJECTE / ACTIVIDADES DEL PROYECTO",null,null,null,null,"COMPROVACIONS / COMPROBACIONES"]
[]
[null,1,null,"Despeses transversals","% imputació despeses transversals"]
[null,2,"Activitat 1",null,null,null,null,"Pressupost total / pressupuesto total:",null,{"$f":"D35","v":0}]
[null,{"$f":"+IF(D43<>\"\",B42+1,\"\")","v":""},"Activitat 2",null,null,null,null,"Finançament ACCD / Financiación ACCD:",null,{"$f":"+I35","v":0}]
[null,{"$f":"+IF(D44<>\"\",B43+1,\"\")","v":""},"Activitat 3",null,null,null,null,"% Finançament ACCD / % Financiación ACCD:",null,{"$f":"IFERROR(J43/J42,0)","v":0},"Màxim 95% del total"]
[null,"","Activitat 4"]
[null,"","Activitat 5",null,null,null,null,"Import subvencionat\nsegons modalitat","Màxim","Import","Mínim"]
[null,"","Activitat 6",null,null,null,null,null,{"$f":"+IF(D26<>\"\",SUMIF('Llista desplegable'!$K$2:$K$5,'Dades i com... - Datos y com...'!$D$14&\"agrupació\",'Llista desplegable'!$L$2:$L$5),SUMIF('Llista desplegable'!$K$2:$K$5,'Dades i com... - Datos y com...'!$D$14&\"individual\",'Llista desplegable'!$L$2:$L$5))","v":0},{"$f":"+I35","v":0},{"$f":"+IF(D26<>\"\",SUMIF('Llista desplegable'!$K$2:$K$5,'Dades i com... - Datos y com...'!$D$14&\"agrupació\",'Llista desplegable'!$M$2:$M$5),SUMIF('Llista desplegable'!$K$2:$K$5,'Dades i com... - Datos y com...'!$D$14&\"individual\",'Llista desplegable'!$M$2:$M$5))","v":0}]
[null,"","Activitat 7"]
[null,"","Activitat 8",null,null,null,null,"Comprovacions de pressupost / Comprobaciones pressupuesto"]
[null,"","Activitat 9",null,null,null,null,"DESPESES INDIRECTES / GASTOS INDIRECTOS",null,"Màx 12%",{"$f":"+IFERROR('Pressupost - Pressupuesto'!E30/I35,\"\")","v":""}]
[null,"","Activitat 10",null,null,null,null,"a11 Identificació i formulació / Identificación y formulación",null,"Màx 10% ",{"$f":"+IFERROR(SUMIF('Detall - Detalle'!AK:AK,H51,'Detall - Detalle'!AG:AG)/$J$43,\"\")","v":""}]
[null,"","Activitat 11",null,null,null,null,"a12 Avaluació / Evaluación",null,"Mín 4% - Màx 8%",{"$f":"+IFERROR(SUMIF('Detall - Detalle'!AK:AK,H52,'Detall - Detalle'!AG:AG)/$J$43,\"\")","v":""}]
[null,"","Activitat 12",null,null,null,null,"a17 Beques / Becas",null,"Màx 10% ",{"$f":"+IFERROR(SUMIF('Detall - Detalle'!AK:AK,H53,'Detall - Detalle'!AG:AG)/$J$43,\"\")","v":""}]
[null,"","Activitat 13",null,null,null,null,"a18 Imprevistos / Imprevistos",null,"Màx. 5% ",{"$f":"+IFERROR(SUMIF('Detall - Detalle'!AK:AK,H54,'Detall - Detalle'!AG:AG)/$J$43,\"\")","v":""}]
[null,"","Activitat 14",null,null,null,null,"b1 Béns inventariables / Bienes inventariables",null,"Màx. 10%* ",{"$f":"+IFERROR(SUMIF('Detall - Detalle'!AK:AK,H55,'Detall - Detalle'!AG:AG)/$J$43,\"\")","v":""}]
[null,"","Activitat 15",null,null,null,null,"b2 Amortitzacions / Amortizaciones",null,"Màx. 5% ",{"$f":"+IFERROR(SUMIF('Detall - Detalle'!AK:AK,H56,'Detall - Detalle'!AG:AG)/$J$43,\"\")","v":""}]
[null,"","Activitat 16"]
[null,"","Activitat 17",null,null,null,null,"Subcontractació / Subcontratación",null,"Màx 20%",{"$f":"+IFERROR(SUMIF('Detall - Detalle'!F:F,\"sí\",'Detall - Detalle'!P:P)/J43,\"\")","v":""}]
[null,"","Activitat 18"]
[null,"","Activitat 19",null,null,null,"Altres comprovacions a tenir en compte:"]
[null,"","Activitat 20",null,null,null,"Microcrèdits: El cost de les accions destinades als crèdits no podrà ser superior al 10% de la subvenció de l'ACCD."]
[null,null,null,null,{"$f":"SUM(E42:E61)","v":0},null,"Salaris: El salari brut mensual màxim serà de 3.500 euros prorratejat en 14 pagues."]
[null,null,null,null,null,null,"* Béns inventariables: En el cas de projectes de desenvolupament, s'admetrà un 30% de l'import sol·licitat a l'ACCD per béns corresponents a infrastructures de salut i sanejament."]

{"sheet":"Pressupost - Pressupuesto","index":2,"n_rows":65,"n_cols":22,"rows_kept":65,"cut":false,"hidden":false,"merged":[[1,11,1,15],[1,4,1,10]]}
[]
["PRESSUPOST GLOBAL","(Copiar desde del formulari de sol·licitud)",null,null,"DISTRIBUCIÓ PRESSUPOST PER ENTITAT FINANÇADORA",null,null,null,null,null,null,"DISTRIBUCIÓ PRESSUPOST PER ENTITAT EXECUTORA"]
[1,"TOTAL PROJECTE INCIAL","TOTAL PROJECTE","DESV %","ACCD","ALTRES FINANÇADORS","LÍDER","AGRUPADA","SOCI_LOCAL","COL·LECTIUS PROTAGONISTES","TERCER SECTOR","LÍDER","AGRUPADA","SOCI_LOCAL","COL·LECTIUS PROTAGONISTES","TERCER SECTOR"]
["DESPESES DIRECTES CORRENTS (Capítol IV) / GASTOS DIRECTOS CORRIENTES (Capítulo IV)",null,{"$f":"SUM(E4:K4)","v":0},{"$f":"IFERROR(+(C4-B4)/B4,0)","v":0},{"$f":"+SUM(E5,E9:E25)","v":0},{"$f":"+SUM(F5,F9:F25)","v":0},{"$f":"+SUM(G5,G9:G25)","v":0},0,{"$f":"+SUM(I5,I9:I25)","v":0},{"$f":"+SUM(J5,J9:J25)","v":0},{"$f":"+SUM(K5,K9:K25)","v":0},{"$f":"+SUM(L5,L9:L25)","v":0},0,0,{"$f":"+SUM(O5,O9:O25)","v":0},0]
["a1. Remuneració  personal assalariat / Remuneracion personal asalariado",null,0,0,{"$f":"SUM(E6:E8)","v":0},{"$f":"SUM(F6:F8)","v":0},{"$f":"SUM(G6:G8)","v":0},0,{"$f":"SUM(I6:I8)","v":0},{"$f":"SUM(J6:J8)","v":0},{"$f":"SUM(K6:K8)","v":0},{"$f":"SUM(L6:L8)","v":0},0,0,{"$f":"SUM(O6:O8)","v":0},0]
["a1.1 Personal assalariat local / Personal asalariado local",null,0,0,{"$f":"+SUMIF('Detall - Detalle'!$AK:$AK,$A6,'Detall - Detalle'!$AG:$AG)","v":0},{"$f":"+SUMIF('Detall - Detalle'!$AK:$AK,$A6,'Detall - Detalle'!$AH:$AH)","v":0},{"$f":"+SUMIFS('Detall - Detalle'!$AI:$AI,'Detall - Detalle'!$AK:$AK,'Pressupost - Pressupuesto'!$A6,'Detall - Detalle'!$AJ:$AJ,G$3)","v":0},{"$f":"SUMIFS('Detall - Detalle'!$AI:$AI,'Detall - Detalle'!$AK:$AK,'Pressupost - Pressupuesto'!$A6,'Detall - Detalle'!$AJ:$AJ,H$3)","v":0},{"$f":"SUMIFS('Detall - Detalle'!$AI:$AI,'Detall - Detalle'!$AK:$AK,'Pressupost - Pressupuesto'!$A6,'Detall - Detalle'!$AJ:$AJ,I$3)","v":0},{"$f":"SUMIFS('Detall - Detalle'!$AI:$AI,'Detall - Detalle'!$AK:$AK,'Pressupost - Pressupuesto'!$A6,'Detall - Detalle'!$AJ:$AJ,J$3)","v":0},{"$f":"SUMIFS('Detall - Detalle'!$AI:$AI,'Detall - Detalle'!$AK:$AK,'Pressupost - Pressupuesto'!$A6,'Detall - Detalle'!$AJ:$AJ,K$3)","v":0},{"$f":"SUMIFS('Detall - Detalle'!$AF:$AF,'Detall - Detalle'!$AK:$AK,'Pressupost - Pressupuesto'!$A6,'Detall - Detalle'!$AJ:$AJ,L$3)","v":0},{"$f":"SUMIFS('Detall - Detalle'!$AF:$AF,'Detall - Detalle'!$AK:$AK,'Pressupost - Pressupuesto'!$A6,'Detall - Detalle'!$AJ:$AJ,M$3)","v":0},{"$f":"SUMIFS('Detall - Detalle'!$AF:$AF,'Detall - Detalle'!$AK:$AK,'Pressupost - Pressupuesto'!$A6,'Detall - Detalle'!$AJ:$AJ,N$3)","v":0},{"$f":"SUMIFS('Detall - Detalle'!$AF:$AF,'Detall - Detalle'!$AK:$AK,'Pressupost - Pressupuesto'!$A6,'Detall - Detalle'!$AJ:$AJ,O$3)","v":0},{"$f":"SUMIFS('Detall - Detalle'!$AF:$AF,'Detall - Detalle'!$AK:$AK,'Pressupost - Pressupuesto'!$A6,'Detall - Detalle'!$AJ:$AJ,P$3)","v":0}]
["a1.2 Personal assalariat expatriat / Personal asalariado expatriado",null,0,0,{"$f":"+SUMIF('Detall - Detalle'!$AK:$AK,$A7,'Detall - Detalle'!$AG:$AG)","v":0},{"$f":"+SUMIF('Detall - Detalle'!$AK:$AK,$A7,'Detall - Detalle'!$AH:$AH)","v":0},{"$f":"+SUMIFS('Detall - Detalle'!$AI:$AI,'Detall - Detalle'!$AK:$AK,'Pressupost - Pressupuesto'!$A7,'Detall - Detalle'!$AJ:$AJ,G$3)","v":0},{"$f":"SUMIFS('Detall - Detalle'!$AI:$AI,'Detall - Detalle'!$AK:$AK,'Pressupost - Pressupuesto'!$A7,'Detall - Detalle'!$AJ:$AJ,H$3)","v":0},{"$f":"SUMIFS('Detall - Detalle'!$AI:$AI,'Detall - Detalle'!$AK:$AK,'Pressupost - Pressupuesto'!$A7,'Detall - Detalle'!$AJ:$AJ,I$3)","v":0},{"$f":"SUMIFS('Detall - Detalle'!$AI:$AI,'Detall - Detalle'!$AK:$AK,'Pressupost - Pressupuesto'!$A7,'Detall - Detalle'!$AJ:$AJ,J$3)","v":0},{"$f":"SUMIFS('Detall - Detalle'!$AI:$AI,'Detall - Detalle'!$AK:$AK,'Pressupost - Pressupuesto'!$A7,'Detall - Detalle'!$AJ:$AJ,K$3)","v":0},{"$f":"SUMIFS('Detall - Detalle'!$AF:$AF,'Detall - Detalle'!$AK:$AK,'Pressupost - Pressupuesto'!$A7,'Detall - Detalle'!$AJ:$AJ,L$3)","v":0},{"$f":"SUMIFS('Detall - Detalle'!$AF:$AF,'Detall - Detalle'!$AK:$AK,'Pressupost - Pressupuesto'!$A7,'Detall - Detalle'!$AJ:$AJ,M$3)","v":0},{"$f":"SUMIFS('Detall - Detalle'!$AF:$AF,'Detall - Detalle'!$AK:$AK,'Pressupost - Pressupuesto'!$A7,'Detall - Detalle'!$AJ:$AJ,N$3)","v":0},{"$f":"SUMIFS('Detall - Detalle'!$AF:$AF,'Detall - Detalle'!$AK:$AK,'Pressupost - Pressupuesto'!$A7,'Detall - Detalle'!$AJ:$AJ,O$3)","v":0},{"$f":"SUMIFS('Detall - Detalle'!$AF:$AF,'Detall - Detalle'!$AK:$AK,'Pressupost - Pressupuesto'!$A7,'Detall - Detalle'!$AJ:$AJ,P$3)","v":0}]
["a1.3 Personal assalariat a Catalunya / Personal asalariado Cataluña",null,0,0,{"$f":"+SUMIF('Detall - Detalle'!$AK:$AK,$A8,'Detall - Detalle'!$AG:$AG)","v":0},{"$f":"+SUMIF('Detall - Detalle'!$AK:$AK,$A8,'Detall - Detalle'!$AH:$AH)","v":0},{"$f":"+SUMIFS('Detall - Detalle'!$AI:$AI,'Detall - Detalle'!$AK:$AK,'Pressupost - Pressupuesto'!$A8,'Detall - Detalle'!$AJ:$AJ,G$3)","v":0},{"$f":"SUMIFS('Detall - Detalle'!$AI:$AI,'Detall - Detalle'!$AK:$AK,'Pressupost - Pressupuesto'!$A8,'Detall - Detalle'!$AJ:$AJ,H$3)","v":0},{"$f":"SUMIFS('Detall - Detalle'!$AI:$AI,'Detall - Detalle'!$AK:$AK,'Pressupost - Pressupuesto'!$A8,'Detall - Detalle'!$AJ:$AJ,I$3)","v":0},{"$f":"SUMIFS('Detall - Detalle'!$AI:$AI,'Detall - Detalle'!$AK:$AK,'Pressupost - Pressupuesto'!$A8,'Detall - Detalle'!$AJ:$AJ,J$3)","v":0},{"$f":"SUMIFS('Detall - Detalle'!$AI:$AI,'Detall - Detalle'!$AK:$AK,'Pressupost - Pressupuesto'!$A8,'Detall - Detalle'!$AJ:$AJ,K$3)","v":0},{"$f":"SUMIFS('Detall - Detalle'!$AF:$AF,'Detall - Detalle'!$AK:$AK,'Pressupost - Pressupuesto'!$A8,'Detall - Detalle'!$AJ:$AJ,L$3)","v":0},{"$f":"SUMIFS('Detall - Detalle'!$AF:$AF,'Detall - Detalle'!$AK:$AK,'Pressupost - Pressupuesto'!$A8,'Detall - Detalle'!$AJ:$AJ,M$3)","v":0},{"$f":"SUMIFS('Detall - Detalle'!$AF:$AF,'Detall - Detalle'!$AK:$AK,'Pressupost - Pressupuesto'!$A8,'Detall - Detalle'!$AJ:$AJ,N$3)","v":0},{"$f":"SUMIFS('Detall - Detalle'!$AF:$AF,'Detall - Detalle'!$AK:$AK,'Pressupost - Pressupuesto'!$A8,'Detall - Detalle'!$AJ:$AJ,O$3)","v":0},{"$f":"SUMIFS('Detall - Detalle'!$AF:$AF,'Detall - Detalle'!$AK:$AK,'Pressupost - Pressupuesto'!$A8,'Detall - Detalle'!$AJ:$AJ,P$3)","v":0}]
["a2 Lloguers / Alquileres",null,0,0,{"$f":"+SUMIF('Detall - Detalle'!$AK:$AK,$A9,'Detall - Detalle'!$AG:$AG)","v":0},{"$f":"+SUMIF('Detall - Detalle'!$AK:$AK,$A9,'Detall - Detalle'!$AH:$AH)","v":0},{"$f":"+SUMIFS('Detall - Detalle'!$AI:$AI,'Detall - Detalle'!$AK:$AK,'Pressupost - Pressupuesto'!$A9,'Detall - Detalle'!$AJ:$AJ,G$3)","v":0},{"$f":"SUMIFS('Detall - Detalle'!$AI:$AI,'Detall - Detalle'!$AK:$AK,'Pressupost - Pressupuesto'!$A9,'Detall - Detalle'!$AJ:$AJ,H$3)","v":0},{"$f":"SUMIFS('Detall - Detalle'!$AI:$AI,'Detall - Detalle'!$AK:$AK,'Pressupost - Pressupuesto'!$A9,'Detall - Detalle'!$AJ:$AJ,I$3)","v":0},{"$f":"SUMIFS('Detall - Detalle'!$AI:$AI,'Detall - Detalle'!$AK:$AK,'Pressupost - Pressupuesto'!$A9,'Detall - Detalle'!$AJ:$AJ,J$3)","v":0},{"$f":"SUMIFS('Detall - Detalle'!$AI:$AI,'Detall - Detalle'!$AK:$AK,'Pressupost - Pressupuesto'!$A9,'Detall - Detalle'!$AJ:$AJ,K$3)","v":0},{"$f":"SUMIFS('Detall - Detalle'!$AF:$AF,'Detall - Detalle'!$AK:$AK,'Pressupost - Pressupuesto'!$A9,'Detall - Detalle'!$AJ:$AJ,L$3)","v":0},{"$f":"SUMIFS('Detall - Detalle'!$AF:$AF,'Detall - Detalle'!$AK:$AK,'Pressupost - Pressupuesto'!$A9,'Detall - Detalle'!$AJ:$AJ,M$3)","v":0},{"$f":"SUMIFS('Detall - Detalle'!$AF:$AF,'Detall - Detalle'!$AK:$AK,'Pressupost - Pressupuesto'!$A9,'Detall - Detalle'!$AJ:$AJ,N$3)","v":0},{"$f":"SUMIFS('Detall - Detalle'!$AF:$AF,'Detall - Detalle'!$AK:$AK,'Pressupost - Pressupuesto'!$A9,'Detall - Detalle'!$AJ:$AJ,O$3)","v":0},{"$f":"SUMIFS('Detall - Detalle'!$AF:$AF,'Detall - Detalle'!$AK:$AK,'Pressupost - Pressupuesto'!$A9,'Detall - Detalle'!$AJ:$AJ,P$3)","v":0}]
["a3 Manteniment, conservació i reparació / Mantenimiento, conservación y reparación",null,0,0,{"$f":"+SUMIF('Detall - Detalle'!$AK:$AK,$A10,'Detall - Detalle'!$AG:$AG)","v":0},{"$f":"+SUMIF('Detall - Detalle'!$AK:$AK,$A10,'Detall - Detalle'!$AH:$AH)","v":0},{"$f":"+SUMIFS('Detall - Detalle'!$AI:$AI,'Detall - Detalle'!$AK:$AK,'Pressupost - Pressupuesto'!$A10,'Detall - Detalle'!$AJ:$AJ,G$3)","v":0},{"$f":"SUMIFS('Detall - Detalle'!$AI:$AI,'Detall - Detalle'!$AK:$AK,'Pressupost - Pressupuesto'!$A10,'Detall - Detalle'!$AJ:$AJ,H$3)","v":0},{"$f":"SUMIFS('Detall - Detalle'!$AI:$AI,'Detall - Detalle'!$AK:$AK,'Pressupost - Pressupuesto'!$A10,'Detall - Detalle'!$AJ:$AJ,I$3)","v":0},{"$f":"SUMIFS('Detall - Detalle'!$AI:$AI,'Detall - Detalle'!$AK:$AK,'Pressupost - Pressupuesto'!$A10,'Detall - Detalle'!$AJ:$AJ,J$3)","v":0},{"$f":"SUMIFS('Detall - Detalle'!$AI:$AI,'Detall - Detalle'!$AK:$AK,'Pressupost - Pressupuesto'!$A10,'Detall - Detalle'!$AJ:$AJ,K$3)","v":0},{"$f":"SUMIFS('Detall - Detalle'!$AF:$AF,'Detall - Detalle'!$AK:$AK,'Pressupost - Pressupuesto'!$A10,'Detall - Detalle'!$AJ:$AJ,L$3)","v":0},{"$f":"SUMIFS('Detall - Detalle'!$AF:$AF,'Detall - Detalle'!$AK:$AK,'Pressupost - Pressupuesto'!$A10,'Detall - Detalle'!$AJ:$AJ,M$3)","v":0},{"$f":"SUMIFS('Detall - Detalle'!$AF:$AF,'Detall - Detalle'!$AK:$AK,'Pressupost - Pressupuesto'!$A10,'Detall - Detalle'!$AJ:$AJ,N$3)","v":0},{"$f":"SUMIFS('Detall - Detalle'!$AF:$AF,'Detall - Detalle'!$AK:$AK,'Pressupost - Pressupuesto'!$A10,'Detall - Detalle'!$AJ:$AJ,O$3)","v":0},{"$f":"SUMIFS('Detall - Detalle'!$AF:$AF,'Detall - Detalle'!$AK:$AK,'Pressupost - Pressupuesto'!$A10,'Detall - Detalle'!$AJ:$AJ,P$3)","v":0}]
["a4 Material ordinari / Material ordinario",null,0,0,{"$f":"+SUMIF('Detall - Detalle'!$AK:$AK,$A11,'Detall - Detalle'!$AG:$AG)","v":0},{"$f":"+SUMIF('Detall - Detalle'!$AK:$AK,$A11,'Detall - Detalle'!$AH:$AH)","v":0},{"$f":"+SUMIFS('Detall - Detalle'!$AI:$AI,'Detall - Detalle'!$AK:$AK,'Pressupost - Pressupuesto'!$A11,'Detall - Detalle'!$AJ:$AJ,G$3)","v":0},{"$f":"SUMIFS('Detall - Detalle'!$AI:$AI,'Detall - Detalle'!$AK:$AK,'Pressupost - Pressupuesto'!$A11,'Detall - Detalle'!$AJ:$AJ,H$3)","v":0},{"$f":"SUMIFS('Detall - Detalle'!$AI:$AI,'Detall - Detalle'!$AK:$AK,'Pressupost - Pressupuesto'!$A11,'Detall - Detalle'!$AJ:$AJ,I$3)","v":0},{"$f":"SUMIFS('Detall - Detalle'!$AI:$AI,'Detall - Detalle'!$AK:$AK,'Pressupost - Pressupuesto'!$A11,'Detall - Detalle'!$AJ:$AJ,J$3)","v":0},{"$f":"SUMIFS('Detall - Detalle'!$AI:$AI,'Detall - Detalle'!$AK:$AK,'Pressupost - Pressupuesto'!$A11,'Detall - Detalle'!$AJ:$AJ,K$3)","v":0},{"$f":"SUMIFS('Detall - Detalle'!$AF:$AF,'Detall - Detalle'!$AK:$AK,'Pressupost - Pressupuesto'!$A11,'Detall - Detalle'!$AJ:$AJ,L$3)","v":0},{"$f":"SUMIFS('Detall - Detalle'!$AF:$AF,'Detall - Detalle'!$AK:$AK,'Pressupost - Pressupuesto'!$A11,'Detall - Detalle'!$AJ:$AJ,M$3)","v":0},{"$f":"SUMIFS('Detall - Detalle'!$AF:$AF,'Detall - Detalle'!$AK:$AK,'Pressupost - Pressupuesto'!$A11,'Detall - Detalle'!$AJ:$AJ,N$3)","v":0},{"$f":"SUMIFS('Detall - Detalle'!$AF:$AF,'Detall - Detalle'!$AK:$AK,'Pressupost - Pressupuesto'!$A11,'Detall - Detalle'!$AJ:$AJ,O$3)","v":0},{"$f":"SUMIFS('Detall - Detalle'!$AF:$AF,'Detall - Detalle'!$AK:$AK,'Pressupost - Pressupuesto'!$A11,'Detall - Detalle'!$AJ:$AJ,P$3)","v":0}]
["a5 Subministraments / Suministros",null,0,0,{"$f":"+SUMIF('Detall - Detalle'!$AK:$AK,$A12,'Detall - Detalle'!$AG:$AG)","v":0},{"$f":"+SUMIF('Detall - Detalle'!$AK:$AK,$A12,'Detall - Detalle'!$AH:$AH)","v":0},{"$f":"+SUMIFS('Detall - Detalle'!$AI:$AI,'Detall - Detalle'!$AK:$AK,'Pressupost - Pressupuesto'!$A12,'Detall - Detalle'!$AJ:$AJ,G$3)","v":0},{"$f":"SUMIFS('Detall - Detalle'!$AI:$AI,'Detall - Detalle'!$AK:$AK,'Pressupost - Pressupuesto'!$A12,'Detall - Detalle'!$AJ:$AJ,H$3)","v":0},{"$f":"SUMIFS('Detall - Detalle'!$AI:$AI,'Detall - Detalle'!$AK:$AK,'Pressupost - Pressupuesto'!$A12,'Detall - Detalle'!$AJ:$AJ,I$3)","v":0},{"$f":"SUMIFS('Detall - Detalle'!$AI:$AI,'Detall - Detalle'!$AK:$AK,'Pressupost - Pressupuesto'!$A12,'Detall - Detalle'!$AJ:$AJ,J$3)","v":0},{"$f":"SUMIFS('Detall - Detalle'!$AI:$AI,'Detall - Detalle'!$AK:$AK,'Pressupost - Pressupuesto'!$A12,'Detall - Detalle'!$AJ:$AJ,K$3)","v":0},{"$f":"SUMIFS('Detall - Detalle'!$AF:$AF,'Detall - Detalle'!$AK:$AK,'Pressupost - Pressupuesto'!$A12,'Detall - Detalle'!$AJ:$AJ,L$3)","v":0},{"$f":"SUMIFS('Detall - Detalle'!$AF:$AF,'Detall - Detalle'!$AK:$AK,'Pressupost - Pressupuesto'!$A12,'Detall - Detalle'!$AJ:$AJ,M$3)","v":0},{"$f":"SUMIFS('Detall - Detalle'!$AF:$AF,'Detall - Detalle'!$AK:$AK,'Pressupost - Pressupuesto'!$A12,'Detall - Detalle'!$AJ:$AJ,N$3)","v":0},{"$f":"SUMIFS('Detall - Detalle'!$AF:$AF,'Detall - Detalle'!$AK:$AK,'Pressupost - Pressupuesto'!$A12,'Detall - Detalle'!$AJ:$AJ,O$3)","v":0},{"$f":"SUMIFS('Detall - Detalle'!$AF:$AF,'Detall - Detalle'!$AK:$AK,'Pressupost - Pressupuesto'!$A12,'Detall - Detalle'!$AJ:$AJ,P$3)","v":0}]
["a6 Comunicacions, despeses postals i missatgeria / Comunicaciones, gastos postales y mensajería",null,0,0,{"$f":"+SUMIF('Detall - Detalle'!$AK:$AK,$A13,'Detall - Detalle'!$AG:$AG)","v":0},{"$f":"+SUMIF('Detall - Detalle'!$AK:$AK,$A13,'Detall - Detalle'!$AH:$AH)","v":0},{"$f":"+SUMIFS('Detall - Detalle'!$AI:$AI,'Detall - Detalle'!$AK:$AK,'Pressupost - Pressupuesto'!$A13,'Detall - Detalle'!$AJ:$AJ,G$3)","v":0},{"$f":"SUMIFS('Detall - Detalle'!$AI:$AI,'Detall - Detalle'!$AK:$AK,'Pressupost - Pressupuesto'!$A13,'Detall - Detalle'!$AJ:$AJ,H$3)","v":0},{"$f":"SUMIFS('Detall - Detalle'!$AI:$AI,'Detall - Detalle'!$AK:$AK,'Pressupost - Pressupuesto'!$A13,'Detall - Detalle'!$AJ:$AJ,I$3)","v":0},{"$f":"SUMIFS('Detall - Detalle'!$AI:$AI,'Detall - Detalle'!$AK:$AK,'Pressupost - Pressupuesto'!$A13,'Detall - Detalle'!$AJ:$AJ,J$3)","v":0},{"$f":"SUMIFS('Detall - Detalle'!$AI:$AI,'Detall - Detalle'!$AK:$AK,'Pressupost - Pressupuesto'!$A13,'Detall - Detalle'!$AJ:$AJ,K$3)","v":0},{"$f":"SUMIFS('Detall - Detalle'!$AF:$AF,'Detall - Detalle'!$AK:$AK,'Pressupost - Pressupuesto'!$A13,'Detall - Detalle'!$AJ:$AJ,L$3)","v":0},{"$f":"SUMIFS('Detall - Detalle'!$AF:$AF,'Detall - Detalle'!$AK:$AK,'Pressupost - Pressupuesto'!$A13,'Detall - Detalle'!$AJ:$AJ,M$3)","v":0},{"$f":"SUMIFS('Detall - Detalle'!$AF:$AF,'Detall - Detalle'!$AK:$AK,'Pressupost - Pressupuesto'!$A13,'Detall - Detalle'!$AJ:$AJ,N$3)","v":0},{"$f":"SUMIFS('Detall - Detalle'!$AF:$AF,'Detall - Detalle'!$AK:$AK,'Pressupost - Pressupuesto'!$A13,'Detall - Detalle'!$AJ:$AJ,O$3)","v":0},{"$f":"SUMIFS('Detall - Detalle'!$AF:$AF,'Detall - Detalle'!$AK:$AK,'Pressupost - Pressupuesto'!$A13,'Detall - Detalle'!$AJ:$AJ,P$3)","v":0}]
["a7 Reunions, conferències i formacions / Reuniones, conferencias y formaciones",null,0,0,{"$f":"+SUMIF('Detall - Detalle'!$AK:$AK,$A14,'Detall - Detalle'!$AG:$AG)","v":0},{"$f":"+SUMIF('Detall - Detalle'!$AK:$AK,$A14,'Detall - Detalle'!$AH:$AH)","v":0},{"$f":"+SUMIFS('Detall - Detalle'!$AI:$AI,'Detall - Detalle'!$AK:$AK,'Pressupost - Pressupuesto'!$A14,'Detall - Detalle'!$AJ:$AJ,G$3)","v":0},{"$f":"SUMIFS('Detall - Detalle'!$AI:$AI,'Detall - Detalle'!$AK:$AK,'Pressupost - Pressupuesto'!$A14,'Detall - Detalle'!$AJ:$AJ,H$3)","v":0},{"$f":"SUMIFS('Detall - Detalle'!$AI:$AI,'Detall - Detalle'!$AK:$AK,'Pressupost - Pressupuesto'!$A14,'Detall - Detalle'!$AJ:$AJ,I$3)","v":0},{"$f":"SUMIFS('Detall - Detalle'!$AI:$AI,'Detall - Detalle'!$AK:$AK,'Pressupost - Pressupuesto'!$A14,'Detall - Detalle'!$AJ:$AJ,J$3)","v":0},{"$f":"SUMIFS('Detall - Detalle'!$AI:$AI,'Detall - Detalle'!$AK:$AK,'Pressupost - Pressupuesto'!$A14,'Detall - Detalle'!$AJ:$AJ,K$3)","v":0},{"$f":"SUMIFS('Detall - Detalle'!$AF:$AF,'Detall - Detalle'!$AK:$AK,'Pressupost - Pressupuesto'!$A14,'Detall - Detalle'!$AJ:$AJ,L$3)","v":0},{"$f":"SUMIFS('Detall - Detalle'!$AF:$AF,'Detall - Detalle'!$AK:$AK,'Pressupost - Pressupuesto'!$A14,'Detall - Detalle'!$AJ:$AJ,M$3)","v":0},{"$f":"SUMIFS('Detall - Detalle'!$AF:$AF,'Detall - Detalle'!$AK:$AK,'Pressupost - Pressupuesto'!$A14,'Detall - Detalle'!$AJ:$AJ,N$3)","v":0},{"$f":"SUMIFS('Detall - Detalle'!$AF:$AF,'Detall - Detalle'!$AK:$AK,'Pressupost - Pressupuesto'!$A14,'Detall - Detalle'!$AJ:$AJ,O$3)","v":0},{"$f":"SUMIFS('Detall - Detalle'!$AF:$AF,'Detall - Detalle'!$AK:$AK,'Pressupost - Pressupuesto'!$A14,'Detall - Detalle'!$AJ:$AJ,P$3)","v":0}]
["a8 Publicitat i difusió / Publicidad y difusión",null,0,0,{"$f":"+SUMIF('Detall - Detalle'!$AK:$AK,$A15,'Detall - Detalle'!$AG:$AG)","v":0},{"$f":"+SUMIF('Detall - Detalle'!$AK:$AK,$A15,'Detall - Detalle'!$AH:$AH)","v":0},{"$f":"+SUMIFS('Detall - Detalle'!$AI:$AI,'Detall - Detalle'!$AK:$AK,'Pressupost - Pressupuesto'!$A15,'Detall - Detalle'!$AJ:$AJ,G$3)","v":0},{"$f":"SUMIFS('Detall - Detalle'!$AI:$AI,'Detall - Detalle'!$AK:$AK,'Pressupost - Pressupuesto'!$A15,'Detall - Detalle'!$AJ:$AJ,H$3)","v":0},{"$f":"SUMIFS('Detall - Detalle'!$AI:$AI,'Detall - Detalle'!$AK:$AK,'Pressupost - Pressupuesto'!$A15,'Detall - Detalle'!$AJ:$AJ,I$3)","v":0},{"$f":"SUMIFS('Detall - Detalle'!$AI:$AI,'Detall - Detalle'!$AK:$AK,'Pressupost - Pressupuesto'!$A15,'Detall - Detalle'!$AJ:$AJ,J$3)","v":0},{"$f":"SUMIFS('Detall - Detalle'!$AI:$AI,'Detall - Detalle'!$AK:$AK,'Pressupost - Pressupuesto'!$A15,'Detall - Detalle'!$AJ:$AJ,K$3)","v":0},{"$f":"SUMIFS('Detall - Detalle'!$AF:$AF,'Detall - Detalle'!$AK:$AK,'Pressupost - Pressupuesto'!$A15,'Detall - Detalle'!$AJ:$AJ,L$3)","v":0},{"$f":"SUMIFS('Detall - Detalle'!$AF:$AF,'Detall - Detalle'!$AK:$AK,'Pressupost - Pressupuesto'!$A15,'Detall - Detalle'!$AJ:$AJ,M$3)","v":0},{"$f":"SUMIFS('Detall - Detalle'!$AF:$AF,'Detall - Detalle'!$AK:$AK,'Pressupost - Pressupuesto'!$A15,'Detall - Detalle'!$AJ:$AJ,N$3)","v":0},{"$f":"SUMIFS('Detall - Detalle'!$AF:$AF,'Detall - Detalle'!$AK:$AK,'Pressupost - Pressupuesto'!$A15,'Detall - Detalle'!$AJ:$AJ,O$3)","v":0},{"$f":"SUMIFS('Detall - Detalle'!$AF:$AF,'Detall - Detalle'!$AK:$AK,'Pressupost - Pressupuesto'!$A15,'Detall - Detalle'!$AJ:$AJ,P$3)","v":0}]
["a9 Publicacions / Publicaciones",null,0,0,{"$f":"+SUMIF('Detall - Detalle'!$AK:$AK,$A16,'Detall - Detalle'!$AG:$AG)","v":0},{"$f":"+SUMIF('Detall - Detalle'!$AK:$AK,$A16,'Detall - Detalle'!$AH:$AH)","v":0},{"$f":"+SUMIFS('Detall - Detalle'!$AI:$AI,'Detall - Detalle'!$AK:$AK,'Pressupost - Pressupuesto'!$A16,'Detall - Detalle'!$AJ:$AJ,G$3)","v":0},{"$f":"SUMIFS('Detall - Detalle'!$AI:$AI,'Detall - Detalle'!$AK:$AK,'Pressupost - Pressupuesto'!$A16,'Detall - Detalle'!$AJ:$AJ,H$3)","v":0},{"$f":"SUMIFS('Detall - Detalle'!$AI:$AI,'Detall - Detalle'!$AK:$AK,'Pressupost - Pressupuesto'!$A16,'Detall - Detalle'!$AJ:$AJ,I$3)","v":0},{"$f":"SUMIFS('Detall - Detalle'!$AI:$AI,'Detall - Detalle'!$AK:$AK,'Pressupost - Pressupuesto'!$A16,'Detall - Detalle'!$AJ:$AJ,J$3)","v":0},{"$f":"SUMIFS('Detall - Detalle'!$AI:$AI,'Detall - Detalle'!$AK:$AK,'Pressupost - Pressupuesto'!$A16,'Detall - Detalle'!$AJ:$AJ,K$3)","v":0},{"$f":"SUMIFS('Detall - Detalle'!$AF:$AF,'Detall - Detalle'!$AK:$AK,'Pressupost - Pressupuesto'!$A16,'Detall - Detalle'!$AJ:$AJ,L$3)","v":0},{"$f":"SUMIFS('Detall - Detalle'!$AF:$AF,'Detall - Detalle'!$AK:$AK,'Pressupost - Pressupuesto'!$A16,'Detall - Detalle'!$AJ:$AJ,M$3)","v":0},{"$f":"SUMIFS('Detall - Detalle'!$AF:$AF,'Detall - Detalle'!$AK:$AK,'Pressupost - Pressupuesto'!$A16,'Detall - Detalle'!$AJ:$AJ,N$3)","v":0},{"$f":"SUMIFS('Detall - Detalle'!$AF:$AF,'Detall - Detalle'!$AK:$AK,'Pressupost - Pressupuesto'!$A16,'Detall - Detalle'!$AJ:$AJ,O$3)","v":0},{"$f":"SUMIFS('Detall - Detalle'!$AF:$AF,'Detall - Detalle'!$AK:$AK,'Pressupost - Pressupuesto'!$A16,'Detall - Detalle'!$AJ:$AJ,P$3)","v":0}]
["a10 Treballs tècnics i professionals / Trabajos técnicos y profesionales",null,0,0,{"$f":"+SUMIF('Detall - Detalle'!$AK:$AK,$A17,'Detall - Detalle'!$AG:$AG)","v":0},{"$f":"+SUMIF('Detall - Detalle'!$AK:$AK,$A17,'Detall - Detalle'!$AH:$AH)","v":0},{"$f":"+SUMIFS('Detall - Detalle'!$AI:$AI,'Detall - Detalle'!$AK:$AK,'Pressupost - Pressupuesto'!$A17,'Detall - Detalle'!$AJ:$AJ,G$3)","v":0},{"$f":"SUMIFS('Detall - Detalle'!$AI:$AI,'Detall - Detalle'!$AK:$AK,'Pressupost - Pressupuesto'!$A17,'Detall - Detalle'!$AJ:$AJ,H$3)","v":0},{"$f":"SUMIFS('Detall - Detalle'!$AI:$AI,'Detall - Detalle'!$AK:$AK,'Pressupost - Pressupuesto'!$A17,'Detall - Detalle'!$AJ:$AJ,I$3)","v":0},{"$f":"SUMIFS('Detall - Detalle'!$AI:$AI,'Detall - Detalle'!$AK:$AK,'Pressupost - Pressupuesto'!$A17,'Detall - Detalle'!$AJ:$AJ,J$3)","v":0},{"$f":"SUMIFS('Detall - Detalle'!$AI:$AI,'Detall - Detalle'!$AK:$AK,'Pressupost - Pressupuesto'!$A17,'Detall - Detalle'!$AJ:$AJ,K$3)","v":0},{"$f":"SUMIFS('Detall - Detalle'!$AF:$AF,'Detall - Detalle'!$AK:$AK,'Pressupost - Pressupuesto'!$A17,'Detall - Detalle'!$AJ:$AJ,L$3)","v":0},{"$f":"SUMIFS('Detall - Detalle'!$AF:$AF,'Detall - Detalle'!$AK:$AK,'Pressupost - Pressupuesto'!$A17,'Detall - Detalle'!$AJ:$AJ,M$3)","v":0},{"$f":"SUMIFS('Detall - Detalle'!$AF:$AF,'Detall - Detalle'!$AK:$AK,'Pressupost - Pressupuesto'!$A17,'Detall - Detalle'!$AJ:$AJ,N$3)","v":0},{"$f":"SUMIFS('Detall - Detalle'!$AF:$AF,'Detall - Detalle'!$AK:$AK,'Pressupost - Pressupuesto'!$A17,'Detall - Detalle'!$AJ:$AJ,O$3)","v":0},{"$f":"SUMIFS('Detall - Detalle'!$AF:$AF,'Detall - Detalle'!$AK:$AK,'Pressupost - Pressupuesto'!$A17,'Detall - Detalle'!$AJ:$AJ,P$3)","v":0}]
["a11 Identificació i formulació / Identificación y formulación",null,0,0,{"$f":"+SUMIF('Detall - Detalle'!$AK:$AK,$A18,'Detall - Detalle'!$AG:$AG)","v":0},{"$f":"+SUMIF('Detall - Detalle'!$AK:$AK,$A18,'Detall - Detalle'!$AH:$AH)","v":0},{"$f":"+SUMIFS('Detall - Detalle'!$AI:$AI,'Detall - Detalle'!$AK:$AK,'Pressupost - Pressupuesto'!$A18,'Detall - Detalle'!$AJ:$AJ,G$3)","v":0},{"$f":"SUMIFS('Detall - Detalle'!$AI:$AI,'Detall - Detalle'!$AK:$AK,'Pressupost - Pressupuesto'!$A18,'Detall - Detalle'!$AJ:$AJ,H$3)","v":0},{"$f":"SUMIFS('Detall - Detalle'!$AI:$AI,'Detall - Detalle'!$AK:$AK,'Pressupost - Pressupuesto'!$A18,'Detall - Detalle'!$AJ:$AJ,I$3)","v":0},{"$f":"SUMIFS('Detall - Detalle'!$AI:$AI,'Detall - Detalle'!$AK:$AK,'Pressupost - Pressupuesto'!$A18,'Detall - Detalle'!$AJ:$AJ,J$3)","v":0},{"$f":"SUMIFS('Detall - Detalle'!$AI:$AI,'Detall - Detalle'!$AK:$AK,'Pressupost - Pressupuesto'!$A18,'Detall - Detalle'!$AJ:$AJ,K$3)","v":0},{"$f":"SUMIFS('Detall - Detalle'!$AF:$AF,'Detall - Detalle'!$AK:$AK,'Pressupost - Pressupuesto'!$A18,'Detall - Detalle'!$AJ:$AJ,L$3)","v":0},{"$f":"SUMIFS('Detall - Detalle'!$AF:$AF,'Detall - Detalle'!$AK:$AK,'Pressupost - Pressupuesto'!$A18,'Detall - Detalle'!$AJ:$AJ,M$3)","v":0},{"$f":"SUMIFS('Detall - Detalle'!$AF:$AF,'Detall - Detalle'!$AK:$AK,'Pressupost - Pressupuesto'!$A18,'Detall - Detalle'!$AJ:$AJ,N$3)","v":0},{"$f":"SUMIFS('Detall - Detalle'!$AF:$AF,'Detall - Detalle'!$AK:$AK,'Pressupost - Pressupuesto'!$A18,'Detall - Detalle'!$AJ:$AJ,O$3)","v":0},{"$f":"SUMIFS('Detall - Detalle'!$AF:$AF,'Detall - Detalle'!$AK:$AK,'Pressupost - Pressupuesto'!$A18,'Detall - Detalle'!$AJ:$AJ,P$3)","v":0}]
["a12 Avaluació / Evaluación",null,0,0,{"$f":"+SUMIF('Detall - Detalle'!$AK:$AK,$A19,'Detall - Detalle'!$AG:$AG)","v":0},{"$f":"+SUMIF('Detall - Detalle'!$AK:$AK,$A19,'Detall - Detalle'!$AH:$AH)","v":0},{"$f":"+SUMIFS('Detall - Detalle'!$AI:$AI,'Detall - Detalle'!$AK:$AK,'Pressupost - Pressupuesto'!$A19,'Detall - Detalle'!$AJ:$AJ,G$3)","v":0},{"$f":"SUMIFS('Detall - Detalle'!$AI:$AI,'Detall - Detalle'!$AK:$AK,'Pressupost - Pressupuesto'!$A19,'Detall - Detalle'!$AJ:$AJ,H$3)","v":0},{"$f":"SUMIFS('Detall - Detalle'!$AI:$AI,'Detall - Detalle'!$AK:$AK,'Pressupost - Pressupuesto'!$A19,'Detall - Detalle'!$AJ:$AJ,I$3)","v":0},{"$f":"SUMIFS('Detall - Detalle'!$AI:$AI,'Detall - Detalle'!$AK:$AK,'Pressupost - Pressupuesto'!$A19,'Detall - Detalle'!$AJ:$AJ,J$3)","v":0},{"$f":"SUMIFS('Detall - Detalle'!$AI:$AI,'Detall - Detalle'!$AK:$AK,'Pressupost - Pressupuesto'!$A19,'Detall - Detalle'!$AJ:$AJ,K$3)","v":0},{"$f":"SUMIFS('Detall - Detalle'!$AF:$AF,'Detall - Detalle'!$AK:$AK,'Pressupost - Pressupuesto'!$A19,'Detall - Detalle'!$AJ:$AJ,L$3)","v":0},{"$f":"SUMIFS('Detall - Detalle'!$AF:$AF,'Detall - Detalle'!$AK:$AK,'Pressupost - Pressupuesto'!$A19,'Detall - Detalle'!$AJ:$AJ,M$3)","v":0},{"$f":"SUMIFS('Detall - Detalle'!$AF:$AF,'Detall - Detalle'!$AK:$AK,'Pressupost - Pressupuesto'!$A19,'Detall - Detalle'!$AJ:$AJ,N$3)","v":0},{"$f":"SUMIFS('Detall - Detalle'!$AF:$AF,'Detall - Detalle'!$AK:$AK,'Pressupost - Pressupuesto'!$A19,'Detall - Detalle'!$AJ:$AJ,O$3)","v":0},{"$f":"SUMIFS('Detall - Detalle'!$AF:$AF,'Detall - Detalle'!$AK:$AK,'Pressupost - Pressupuesto'!$A19,'Detall - Detalle'!$AJ:$AJ,P$3)","v":0}]
["a13 Dietes, locomoció, trasllats i allotjaments / Dietas, locomoción, traslados y alojamientos",null,0,0,{"$f":"+SUMIF('Detall - Detalle'!$AK:$AK,$A20,'Detall - Detalle'!$AG:$AG)","v":0},{"$f":"+SUMIF('Detall - Detalle'!$AK:$AK,$A20,'Detall - Detalle'!$AH:$AH)","v":0},{"$f":"+SUMIFS('Detall - Detalle'!$AI:$AI,'Detall - Detalle'!$AK:$AK,'Pressupost - Pressupuesto'!$A20,'Detall - Detalle'!$AJ:$AJ,G$3)","v":0},{"$f":"SUMIFS('Detall - Detalle'!$AI:$AI,'Detall - Detalle'!$AK:$AK,'Pressupost - Pressupuesto'!$A20,'Detall - Detalle'!$AJ:$AJ,H$3)","v":0},{"$f":"SUMIFS('Detall - Detalle'!$AI:$AI,'Detall - Detalle'!$AK:$AK,'Pressupost - Pressupuesto'!$A20,'Detall - Detalle'!$AJ:$AJ,I$3)","v":0},{"$f":"SUMIFS('Detall - Detalle'!$AI:$AI,'Detall - Detalle'!$AK:$AK,'Pressupost - Pressupuesto'!$A20,'Detall - Detalle'!$AJ:$AJ,J$3)","v":0},{"$f":"SUMIFS('Detall - Detalle'!$AI:$AI,'Detall - Detalle'!$AK:$AK,'Pressupost - Pressupuesto'!$A20,'Detall - Detalle'!$AJ:$AJ,K$3)","v":0},{"$f":"SUMIFS('Detall - Detalle'!$AF:$AF,'Detall - Detalle'!$AK:$AK,'Pressupost - Pressupuesto'!$A20,'Detall - Detalle'!$AJ:$AJ,L$3)","v":0},{"$f":"SUMIFS('Detall - Detalle'!$AF:$AF,'Detall - Detalle'!$AK:$AK,'Pressupost - Pressupuesto'!$A20,'Detall - Detalle'!$AJ:$AJ,M$3)","v":0},{"$f":"SUMIFS('Detall - Detalle'!$AF:$AF,'Detall - Detalle'!$AK:$AK,'Pressupost - Pressupuesto'!$A20,'Detall - Detalle'!$AJ:$AJ,N$3)","v":0},{"$f":"SUMIFS('Detall - Detalle'!$AF:$AF,'Detall - Detalle'!$AK:$AK,'Pressupost - Pressupuesto'!$A20,'Detall - Detalle'!$AJ:$AJ,O$3)","v":0},{"$f":"SUMIFS('Detall - Detalle'!$AF:$AF,'Detall - Detalle'!$AK:$AK,'Pressupost - Pressupuesto'!$A20,'Detall - Detalle'!$AJ:$AJ,P$3)","v":0}]
["a14 Informe auditor / Informe de auditor",null,0,0,{"$f":"+SUMIF('Detall - Detalle'!$AK:$AK,$A21,'Detall - Detalle'!$AG:$AG)","v":0},{"$f":"+SUMIF('Detall - Detalle'!$AK:$AK,$A21,'Detall - Detalle'!$AH:$AH)","v":0},{"$f":"+SUMIFS('Detall - Detalle'!$AI:$AI,'Detall - Detalle'!$AK:$AK,'Pressupost - Pressupuesto'!$A21,'Detall - Detalle'!$AJ:$AJ,G$3)","v":0},{"$f":"SUMIFS('Detall - Detalle'!$AI:$AI,'Detall - Detalle'!$AK:$AK,'Pressupost - Pressupuesto'!$A21,'Detall - Detalle'!$AJ:$AJ,H$3)","v":0},{"$f":"SUMIFS('Detall - Detalle'!$AI:$AI,'Detall - Detalle'!$AK:$AK,'Pressupost - Pressupuesto'!$A21,'Detall - Detalle'!$AJ:$AJ,I$3)","v":0},{"$f":"SUMIFS('Detall - Detalle'!$AI:$AI,'Detall - Detalle'!$AK:$AK,'Pressupost - Pressupuesto'!$A21,'Detall - Detalle'!$AJ:$AJ,J$3)","v":0},{"$f":"SUMIFS('Detall - Detalle'!$AI:$AI,'Detall - Detalle'!$AK:$AK,'Pressupost - Pressupuesto'!$A21,'Detall - Detalle'!$AJ:$AJ,K$3)","v":0},{"$f":"SUMIFS('Detall - Detalle'!$AF:$AF,'Detall - Detalle'!$AK:$AK,'Pressupost - Pressupuesto'!$A21,'Detall - Detalle'!$AJ:$AJ,L$3)","v":0},{"$f":"SUMIFS('Detall - Detalle'!$AF:$AF,'Detall - Detalle'!$AK:$AK,'Pressupost - Pressupuesto'!$A21,'Detall - Detalle'!$AJ:$AJ,M$3)","v":0},{"$f":"SUMIFS('Detall - Detalle'!$AF:$AF,'Detall - Detalle'!$AK:$AK,'Pressupost - Pressupuesto'!$A21,'Detall - Detalle'!$AJ:$AJ,N$3)","v":0},{"$f":"SUMIFS('Detall - Detalle'!$AF:$AF,'Detall - Detalle'!$AK:$AK,'Pressupost - Pressupuesto'!$A21,'Detall - Detalle'!$AJ:$AJ,O$3)","v":0},{"$f":"SUMIFS('Detall - Detalle'!$AF:$AF,'Detall - Detalle'!$AK:$AK,'Pressupost - Pressupuesto'!$A21,'Detall - Detalle'!$AJ:$AJ,P$3)","v":0}]
["a15 Despeses financeres / Gastos financieros",null,0,0,{"$f":"+SUMIF('Detall - Detalle'!$AK:$AK,$A22,'Detall - Detalle'!$AG:$AG)","v":0},{"$f":"+SUMIF('Detall - Detalle'!$AK:$AK,$A22,'Detall - Detalle'!$AH:$AH)","v":0},{"$f":"+SUMIFS('Detall - Detalle'!$AI:$AI,'Detall - Detalle'!$AK:$AK,'Pressupost - Pressupuesto'!$A22,'Detall - Detalle'!$AJ:$AJ,G$3)","v":0},{"$f":"SUMIFS('Detall - Detalle'!$AI:$AI,'Detall - Detalle'!$AK:$AK,'Pressupost - Pressupuesto'!$A22,'Detall - Detalle'!$AJ:$AJ,H$3)","v":0},{"$f":"SUMIFS('Detall - Detalle'!$AI:$AI,'Detall - Detalle'!$AK:$AK,'Pressupost - Pressupuesto'!$A22,'Detall - Detalle'!$AJ:$AJ,I$3)","v":0},{"$f":"SUMIFS('Detall - Detalle'!$AI:$AI,'Detall - Detalle'!$AK:$AK,'Pressupost - Pressupuesto'!$A22,'Detall - Detalle'!$AJ:$AJ,J$3)","v":0},{"$f":"SUMIFS('Detall - Detalle'!$AI:$AI,'Detall - Detalle'!$AK:$AK,'Pressupost - Pressupuesto'!$A22,'Detall - Detalle'!$AJ:$AJ,K$3)","v":0},{"$f":"SUMIFS('Detall - Detalle'!$AF:$AF,'Detall - Detalle'!$AK:$AK,'Pressupost - Pressupuesto'!$A22,'Detall - Detalle'!$AJ:$AJ,L$3)","v":0},{"$f":"SUMIFS('Detall - Detalle'!$AF:$AF,'Detall - Detalle'!$AK:$AK,'Pressupost - Pressupuesto'!$A22,'Detall - Detalle'!$AJ:$AJ,M$3)","v":0},{"$f":"SUMIFS('Detall - Detalle'!$AF:$AF,'Detall - Detalle'!$AK:$AK,'Pressupost - Pressupuesto'!$A22,'Detall - Detalle'!$AJ:$AJ,N$3)","v":0},{"$f":"SUMIFS('Detall - Detalle'!$AF:$AF,'Detall - Detalle'!$AK:$AK,'Pressupost - Pressupuesto'!$A22,'Detall - Detalle'!$AJ:$AJ,O$3)","v":0},{"$f":"SUMIFS('Detall - Detalle'!$AF:$AF,'Detall - Detalle'!$AK:$AK,'Pressupost - Pressupuesto'!$A22,'Detall - Detalle'!$AJ:$AJ,P$3)","v":0}]
["a16 Despeses de suport legal / Gastos de soporte legal",null,0,0,{"$f":"+SUMIF('Detall - Detalle'!$AK:$AK,$A23,'Detall - Detalle'!$AG:$AG)","v":0},{"$f":"+SUMIF('Detall - Detalle'!$AK:$AK,$A23,'Detall - Detalle'!$AH:$AH)","v":0},{"$f":"+SUMIFS('Detall - Detalle'!$AI:$AI,'Detall - Detalle'!$AK:$AK,'Pressupost - Pressupuesto'!$A23,'Detall - Detalle'!$AJ:$AJ,G$3)","v":0},{"$f":"SUMIFS('Detall - Detalle'!$AI:$AI,'Detall - Detalle'!$AK:$AK,'Pressupost - Pressupuesto'!$A23,'Detall - Detalle'!$AJ:$AJ,H$3)","v":0},{"$f":"SUMIFS('Detall - Detalle'!$AI:$AI,'Detall - Detalle'!$AK:$AK,'Pressupost - Pressupuesto'!$A23,'Detall - Detalle'!$AJ:$AJ,I$3)","v":0},{"$f":"SUMIFS('Detall - Detalle'!$AI:$AI,'Detall - Detalle'!$AK:$AK,'Pressupost - Pressupuesto'!$A23,'Detall - Detalle'!$AJ:$AJ,J$3)","v":0},{"$f":"SUMIFS('Detall - Detalle'!$AI:$AI,'Detall - Detalle'!$AK:$AK,'Pressupost - Pressupuesto'!$A23,'Detall - Detalle'!$AJ:$AJ,K$3)","v":0},{"$f":"SUMIFS('Detall - Detalle'!$AF:$AF,'Detall - Detalle'!$AK:$AK,'Pressupost - Pressupuesto'!$A23,'Detall - Detalle'!$AJ:$AJ,L$3)","v":0},{"$f":"SUMIFS('Detall - Detalle'!$AF:$AF,'Detall - Detalle'!$AK:$AK,'Pressupost - Pressupuesto'!$A23,'Detall - Detalle'!$AJ:$AJ,M$3)","v":0},{"$f":"SUMIFS('Detall - Detalle'!$AF:$AF,'Detall - Detalle'!$AK:$AK,'Pressupost - Pressupuesto'!$A23,'Detall - Detalle'!$AJ:$AJ,N$3)","v":0},{"$f":"SUMIFS('Detall - Detalle'!$AF:$AF,'Detall - Detalle'!$AK:$AK,'Pressupost - Pressupuesto'!$A23,'Detall - Detalle'!$AJ:$AJ,O$3)","v":0},{"$f":"SUMIFS('Detall - Detalle'!$AF:$AF,'Detall - Detalle'!$AK:$AK,'Pressupost - Pressupuesto'!$A23,'Detall - Detalle'!$AJ:$AJ,P$3)","v":0}]
["a17 Beques / Becas",null,0,0,{"$f":"+SUMIF('Detall - Detalle'!$AK:$AK,$A24,'Detall - Detalle'!$AG:$AG)","v":0},{"$f":"+SUMIF('Detall - Detalle'!$AK:$AK,$A24,'Detall - Detalle'!$AH:$AH)","v":0},{"$f":"+SUMIFS('Detall - Detalle'!$AI:$AI,'Detall - Detalle'!$AK:$AK,'Pressupost - Pressupuesto'!$A24,'Detall - Detalle'!$AJ:$AJ,G$3)","v":0},{"$f":"SUMIFS('Detall - Detalle'!$AI:$AI,'Detall - Detalle'!$AK:$AK,'Pressupost - Pressupuesto'!$A24,'Detall - Detalle'!$AJ:$AJ,H$3)","v":0},{"$f":"SUMIFS('Detall - Detalle'!$AI:$AI,'Detall - Detalle'!$AK:$AK,'Pressupost - Pressupuesto'!$A24,'Detall - Detalle'!$AJ:$AJ,I$3)","v":0},{"$f":"SUMIFS('Detall - Detalle'!$AI:$AI,'Detall - Detalle'!$AK:$AK,'Pressupost - Pressupuesto'!$A24,'Detall - Detalle'!$AJ:$AJ,J$3)","v":0},{"$f":"SUMIFS('Detall - Detalle'!$AI:$AI,'Detall - Detalle'!$AK:$AK,'Pressupost - Pressupuesto'!$A24,'Detall - Detalle'!$AJ:$AJ,K$3)","v":0},{"$f":"SUMIFS('Detall - Detalle'!$AF:$AF,'Detall - Detalle'!$AK:$AK,'Pressupost - Pressupuesto'!$A24,'Detall - Detalle'!$AJ:$AJ,L$3)","v":0},{"$f":"SUMIFS('Detall - Detalle'!$AF:$AF,'Detall - Detalle'!$AK:$AK,'Pressupost - Pressupuesto'!$A24,'Detall - Detalle'!$AJ:$AJ,M$3)","v":0},{"$f":"SUMIFS('Detall - Detalle'!$AF:$AF,'Detall - Detalle'!$AK:$AK,'Pressupost - Pressupuesto'!$A24,'Detall - Detalle'!$AJ:$AJ,N$3)","v":0},{"$f":"SUMIFS('Detall - Detalle'!$AF:$AF,'Detall - Detalle'!$AK:$AK,'Pressupost - Pressupuesto'!$A24,'Detall - Detalle'!$AJ:$AJ,O$3)","v":0},{"$f":"SUMIFS('Detall - Detalle'!$AF:$AF,'Detall - Detalle'!$AK:$AK,'Pressupost - Pressupuesto'!$A24,'Detall - Detalle'!$AJ:$AJ,P$3)","v":0}]
["a18 Imprevistos / Imprevistos",null,0,0,{"$f":"+SUMIF('Detall - Detalle'!$AK:$AK,$A25,'Detall - Detalle'!$AG:$AG)","v":0},{"$f":"+SUMIF('Detall - Detalle'!$AK:$AK,$A25,'Detall - Detalle'!$AH:$AH)","v":0},{"$f":"+SUMIFS('Detall - Detalle'!$AI:$AI,'Detall - Detalle'!$AK:$AK,'Pressupost - Pressupuesto'!$A25,'Detall - Detalle'!$AJ:$AJ,G$3)","v":0},{"$f":"SUMIFS('Detall - Detalle'!$AI:$AI,'Detall - Detalle'!$AK:$AK,'Pressupost - Pressupuesto'!$A25,'Detall - Detalle'!$AJ:$AJ,H$3)","v":0},{"$f":"SUMIFS('Detall - Detalle'!$AI:$AI,'Detall - Detalle'!$AK:$AK,'Pressupost - Pressupuesto'!$A25,'Detall - Detalle'!$AJ:$AJ,I$3)","v":0},{"$f":"SUMIFS('Detall - Detalle'!$AI:$AI,'Detall - Detalle'!$AK:$AK,'Pressupost - Pressupuesto'!$A25,'Detall - Detalle'!$AJ:$AJ,J$3)","v":0},{"$f":"SUMIFS('Detall - Detalle'!$AI:$AI,'Detall - Detalle'!$AK:$AK,'Pressupost - Pressupuesto'!$A25,'Detall - Detalle'!$AJ:$AJ,K$3)","v":0},{"$f":"SUMIFS('Detall - Detalle'!$AF:$AF,'Detall - Detalle'!$AK:$AK,'Pressupost - Pressupuesto'!$A25,'Detall - Detalle'!$AJ:$AJ,L$3)","v":0},{"$f":"SUMIFS('Detall - Detalle'!$AF:$AF,'Detall - Detalle'!$AK:$AK,'Pressupost - Pressupuesto'!$A25,'Detall - Detalle'!$AJ:$AJ,M$3)","v":0},{"$f":"SUMIFS('Detall - Detalle'!$AF:$AF,'Detall - Detalle'!$AK:$AK,'Pressupost - Pressupuesto'!$A25,'Detall - Detalle'!$AJ:$AJ,N$3)","v":0},{"$f":"SUMIFS('Detall - Detalle'!$AF:$AF,'Detall - Detalle'!$AK:$AK,'Pressupost - Pressupuesto'!$A25,'Detall - Detalle'!$AJ:$AJ,O$3)","v":0},{"$f":"SUMIFS('Detall - Detalle'!$AF:$AF,'Detall - Detalle'!$AK:$AK,'Pressupost - Pressupuesto'!$A25,'Detall - Detalle'!$AJ:$AJ,P$3)","v":0}]
["DESPESES DIRECTES D'INVERSIÓ (Capítol VII) / GASTOS DIRECTOS DE INVERSIÓN (Capítulo VII)",null,0,0,{"$f":"SUM(E27:E28)","v":0},{"$f":"SUM(F27:F28)","v":0},{"$f":"SUM(G27:G28)","v":0},{"$f":"SUM(H27:H28)","v":0},{"$f":"SUM(I27:I28)","v":0},{"$f":"SUM(J27:J28)","v":0},{"$f":"SUM(K27:K28)","v":0},{"$f":"SUM(L27:L28)","v":0},0,0,{"$f":"SUM(O27:O28)","v":0},0]
["b1 Béns inventariables / Bienes inventariables",null,0,0,{"$f":"+SUMIF('Detall - Detalle'!$AK:$AK,$A27,'Detall - Detalle'!$AG:$AG)","v":0},{"$f":"+SUMIF('Detall - Detalle'!$AK:$AK,$A27,'Detall - Detalle'!$AH:$AH)","v":0},{"$f":"+SUMIFS('Detall - Detalle'!$AI:$AI,'Detall - Detalle'!$AK:$AK,'Pressupost - Pressupuesto'!$A27,'Detall - Detalle'!$AJ:$AJ,G$3)","v":0},{"$f":"SUMIFS('Detall - Detalle'!$AI:$AI,'Detall - Detalle'!$AK:$AK,'Pressupost - Pressupuesto'!$A27,'Detall - Detalle'!$AJ:$AJ,H$3)","v":0},{"$f":"SUMIFS('Detall - Detalle'!$AI:$AI,'Detall - Detalle'!$AK:$AK,'Pressupost - Pressupuesto'!$A27,'Detall - Detalle'!$AJ:$AJ,I$3)","v":0},{"$f":"SUMIFS('Detall - Detalle'!$AI:$AI,'Detall - Detalle'!$AK:$AK,'Pressupost - Pressupuesto'!$A27,'Detall - Detalle'!$AJ:$AJ,J$3)","v":0},{"$f":"SUMIFS('Detall - Detalle'!$AI:$AI,'Detall - Detalle'!$AK:$AK,'Pressupost - Pressupuesto'!$A27,'Detall - Detalle'!$AJ:$AJ,K$3)","v":0},{"$f":"SUMIFS('Detall - Detalle'!$AF:$AF,'Detall - Detalle'!$AK:$AK,'Pressupost - Pressupuesto'!$A27,'Detall - Detalle'!$AJ:$AJ,L$3)","v":0},{"$f":"SUMIFS('Detall - Detalle'!$AF:$AF,'Detall - Detalle'!$AK:$AK,'Pressupost - Pressupuesto'!$A27,'Detall - Detalle'!$AJ:$AJ,M$3)","v":0},{"$f":"SUMIFS('Detall - Detalle'!$AF:$AF,'Detall - Detalle'!$AK:$AK,'Pressupost - Pressupuesto'!$A27,'Detall - Detalle'!$AJ:$AJ,N$3)","v":0},{"$f":"SUMIFS('Detall - Detalle'!$AF:$AF,'Detall - Detalle'!$AK:$AK,'Pressupost - Pressupuesto'!$A27,'Detall - Detalle'!$AJ:$AJ,O$3)","v":0},{"$f":"SUMIFS('Detall - Detalle'!$AF:$AF,'Detall - Detalle'!$AK:$AK,'Pressupost - Pressupuesto'!$A27,'Detall - Detalle'!$AJ:$AJ,P$3)","v":0}]
["b2 Amortitzacions / Amortizaciones",null,0,0,{"$f":"+SUMIF('Detall - Detalle'!$AK:$AK,$A28,'Detall - Detalle'!$AG:$AG)","v":0},{"$f":"+SUMIF('Detall - Detalle'!$AK:$AK,$A28,'Detall - Detalle'!$AH:$AH)","v":0},{"$f":"+SUMIFS('Detall - Detalle'!$AI:$AI,'Detall - Detalle'!$AK:$AK,'Pressupost - Pressupuesto'!$A28,'Detall - Detalle'!$AJ:$AJ,G$3)","v":0},{"$f":"SUMIFS('Detall - Detalle'!$AI:$AI,'Detall - Detalle'!$AK:$AK,'Pressupost - Pressupuesto'!$A28,'Detall - Detalle'!$AJ:$AJ,H$3)","v":0},{"$f":"SUMIFS('Detall - Detalle'!$AI:$AI,'Detall - Detalle'!$AK:$AK,'Pressupost - Pressupuesto'!$A28,'Detall - Detalle'!$AJ:$AJ,I$3)","v":0},{"$f":"SUMIFS('Detall - Detalle'!$AI:$AI,'Detall - Detalle'!$AK:$AK,'Pressupost - Pressupuesto'!$A28,'Detall - Detalle'!$AJ:$AJ,J$3)","v":0},{"$f":"SUMIFS('Detall - Detalle'!$AI:$AI,'Detall - Detalle'!$AK:$AK,'Pressupost - Pressupuesto'!$A28,'Detall - Detalle'!$AJ:$AJ,K$3)","v":0},{"$f":"SUMIFS('Detall - Detalle'!$AF:$AF,'Detall - Detalle'!$AK:$AK,'Pressupost - Pressupuesto'!$A28,'Detall - Detalle'!$AJ:$AJ,L$3)","v":0},{"$f":"SUMIFS('Detall - Detalle'!$AF:$AF,'Detall - Detalle'!$AK:$AK,'Pressupost - Pressupuesto'!$A28,'Detall - Detalle'!$AJ:$AJ,M$3)","v":0},{"$f":"SUMIFS('Detall - Detalle'!$AF:$AF,'Detall - Detalle'!$AK:$AK,'Pressupost - Pressupuesto'!$A28,'Detall - Detalle'!$AJ:$AJ,N$3)","v":0},{"$f":"SUMIFS('Detall - Detalle'!$AF:$AF,'Detall - Detalle'!$AK:$AK,'Pressupost - Pressupuesto'!$A28,'Detall - Detalle'!$AJ:$AJ,O$3)","v":0},{"$f":"SUMIFS('Detall - Detalle'!$AF:$AF,'Detall - Detalle'!$AK:$AK,'Pressupost - Pressupuesto'!$A28,'Detall - Detalle'!$AJ:$AJ,P$3)","v":0}]
["TOTAL DESPESES DIRECTES / TOTAL GASTOS DIRECTOS",null,0,0,{"$f":"+E26+E4","v":0},0,0,0,0,{"$f":"+J26+J4","v":0},0,{"$f":"+L26+L4","v":0},0,0,{"$f":"+O26+O4","v":0},0]
["DESPESES INDIRECTES (Cap IV) / GASTOS INDIRECTOS (Cap IV)",null,0,0,{"$f":"+SUMIF('Detall - Detalle'!$AK:$AK,$A30,'Detall - Detalle'!$AG:$AG)","v":0},{"$f":"+SUMIF('Detall - Detalle'!$AK:$AK,$A30,'Detall - Detalle'!$AH:$AH)","v":0},{"$f":"+SUMIFS('Detall - Detalle'!$AI:$AI,'Detall - Detalle'!$AK:$AK,'Pressupost - Pressupuesto'!$A30,'Detall - Detalle'!$AJ:$AJ,G$3)","v":0},{"$f":"SUMIFS('Detall - Detalle'!$AI:$AI,'Detall - Detalle'!$AK:$AK,'Pressupost - Pressupuesto'!$A30,'Detall - Detalle'!$AJ:$AJ,H$3)","v":0},{"$f":"SUMIFS('Detall - Detalle'!$AI:$AI,'Detall - Detalle'!$AK:$AK,'Pressupost - Pressupuesto'!$A30,'Detall - Detalle'!$AJ:$AJ,I$3)","v":0},{"$f":"SUMIFS('Detall - Detalle'!$AI:$AI,'Detall - Detalle'!$AK:$AK,'Pressupost - Pressupuesto'!$A30,'Detall - Detalle'!$AJ:$AJ,J$3)","v":0},{"$f":"SUMIFS('Detall - Detalle'!$AI:$AI,'Detall - Detalle'!$AK:$AK,'Pressupost - Pressupuesto'!$A30,'Detall - Detalle'!$AJ:$AJ,K$3)","v":0},{"$f":"SUMIFS('Detall - Detalle'!$AF:$AF,'Detall - Detalle'!$AK:$AK,'Pressupost - Pressupuesto'!$A30,'Detall - Detalle'!$AJ:$AJ,L$3)","v":0},{"$f":"SUMIFS('Detall - Detalle'!$AF:$AF,'Detall - Detalle'!$AK:$AK,'Pressupost - Pressupuesto'!$A30,'Detall - Detalle'!$AJ:$AJ,M$3)","v":0},{"$f":"SUMIFS('Detall - Detalle'!$AF:$AF,'Detall - Detalle'!$AK:$AK,'Pressupost - Pressupuesto'!$A30,'Detall - Detalle'!$AJ:$AJ,N$3)","v":0},{"$f":"SUMIFS('Detall - Detalle'!$AF:$AF,'Detall - Detalle'!$AK:$AK,'Pressupost - Pressupuesto'!$A30,'Detall - Detalle'!$AJ:$AJ,O$3)","v":0},{"$f":"SUMIFS('Detall - Detalle'!$AF:$AF,'Detall - Detalle'!$AK:$AK,'Pressupost - Pressupuesto'!$A30,'Detall - Detalle'!$AJ:$AJ,P$3)","v":0}]
["TOTAL DESPESES / TOTAL GASTOS",null,0,0,{"$f":"+E30+E29","v":0},{"$f":"+F30+F29","v":0},{"$f":"+G30+G29","v":0},0,{"$f":"+I30+I29","v":0},{"$f":"+J30+J29","v":0},{"$f":"+K30+K29","v":0},{"$f":"+L30+L29","v":0},0,0,{"$f":"+O30+O29","v":0},0]
[]
[]
[]
["PRESSUPOST PER ACTIVITATS",null,{"$f":"+IF(C37<>\"\",\"Activitat \"&COUNTA($C$37:C37),\"\")","v":""},{"$f":"+IF(D37<>\"\",\"Activitat \"&COUNTA($C$37:D37),\"\")","v":""},{"$f":"+IF(E37<>\"\",\"Activitat \"&COUNTA($C$37:E37),\"\")","v":""},{"$f":"+IF(F37<>\"\",\"Activitat \"&COUNTA($C$37:F37),\"\")","v":""},{"$f":"+IF(G37<>\"\",\"Activitat \"&COUNTA($C$37:G37),\"\")","v":""},{"$f":"+IF(H37<>\"\",\"Activitat \"&COUNTA($C$37:H37),\"\")","v":""},{"$f":"+IF(I37<>\"\",\"Activitat \"&COUNTA($C$37:I37),\"\")","v":""},{"$f":"+IF(J37<>\"\",\"Activitat \"&COUNTA($C$37:J37),\"\")","v":""},{"$f":"+IF(K37<>\"\",\"Activitat \"&COUNTA($C$37:K37),\"\")","v":""},{"$f":"+IF(L37<>\"\",\"Activitat \"&COUNTA($C$37:L37),\"\")","v":""},{"$f":"+IF(M37<>\"\",\"Activitat \"&COUNTA($C$37:M37),\"\")","v":""},{"$f":"+IF(N37<>\"\",\"Activitat \"&COUNTA($C$37:N37),\"\")","v":""},{"$f":"+IF(O37<>\"\",\"Activitat \"&COUNTA($C$37:O37),\"\")","v":""},{"$f":"+IF(P37<>\"\",\"Activitat \"&COUNTA($C$37:P37),\"\")","v":""},{"$f":"+IF(Q37<>\"\",\"Activitat \"&COUNTA($C$37:Q37),\"\")","v":""},{"$f":"+IF(R37<>\"\",\"Activitat \"&COUNTA($C$37:R37),\"\")","v":""},{"$f":"+IF(S37<>\"\",\"Activitat \"&COUNTA($C$37:S37),\"\")","v":""},{"$f":"+IF(T37<>\"\",\"Activitat \"&COUNTA($C$37:T37),\"\")","v":""},{"$f":"+IF(U37<>\"\",\"Activitat \"&COUNTA($C$37:U37),\"\")","v":""},{"$f":"+IF(V37<>\"\",\"Activitat \"&COUNTA($C$37:V37),\"\")","v":""}]
[null,"% imputació",{"$f":"+IF(C37<>\"\",VLOOKUP(C35,'Dades i com... - Datos y com...'!$C$42:$E$61,3,FALSE),\"\")","v":""},{"$f":"+IF(D37<>\"\",VLOOKUP(D35,'Dades i com... - Datos y com...'!$C$42:$E$61,3,FALSE),\"\")","v":""},{"$f":"+IF(E37<>\"\",VLOOKUP(E35,'Dades i com... - Datos y com...'!$C$42:$E$61,3,FALSE),\"\")","v":""},{"$f":"+IF(F37<>\"\",VLOOKUP(F35,'Dades i com... - Datos y com...'!$C$42:$E$61,3,FALSE),\"\")","v":""},{"$f":"+IF(G37<>\"\",VLOOKUP(G35,'Dades i com... - Datos y com...'!$C$42:$E$61,3,FALSE),\"\")","v":""},{"$f":"+IF(H37<>\"\",VLOOKUP(H35,'Dades i com... - Datos y com...'!$C$42:$E$61,3,FALSE),\"\")","v":""},{"$f":"+IF(I37<>\"\",VLOOKUP(I35,'Dades i com... - Datos y com...'!$C$42:$E$61,3,FALSE),\"\")","v":""},{"$f":"+IF(J37<>\"\",VLOOKUP(J35,'Dades i com... - Datos y com...'!$C$42:$E$61,3,FALSE),\"\")","v":""},{"$f":"+IF(K37<>\"\",VLOOKUP(K35,'Dades i com... - Datos y com...'!$C$42:$E$61,3,FALSE),\"\")","v":""},{"$f":"+IF(L37<>\"\",VLOOKUP(L35,'Dades i com... - Datos y com...'!$C$42:$E$61,3,FALSE),\"\")","v":""},{"$f":"+IF(M37<>\"\",VLOOKUP(M35,'Dades i com... - Datos y com...'!$C$42:$E$61,3,FALSE),\"\")","v":""},{"$f":"+IF(N37<>\"\",VLOOKUP(N35,'Dades i com... - Datos y com...'!$C$42:$E$61,3,FALSE),\"\")","v":""},{"$f":"+IF(O37<>\"\",VLOOKUP(O35,'Dades i com... - Datos y com...'!$C$42:$E$61,3,FALSE),\"\")","v":""},{"$f":"+IF(P37<>\"\",VLOOKUP(P35,'Dades i com... - Datos y com...'!$C$42:$E$61,3,FALSE),\"\")","v":""},{"$f":"+IF(Q37<>\"\",VLOOKUP(Q35,'Dades i com... - Datos y com...'!$C$42:$E$61,3,FALSE),\"\")","v":""},{"$f":"+IF(R37<>\"\",VLOOKUP(R35,'Dades i com... - Datos y com...'!$C$42:$E$61,3,FALSE),\"\")","v":""},{"$f":"+IF(S37<>\"\",VLOOKUP(S35,'Dades i com... - Datos y com...'!$C$42:$E$61,3,FALSE),\"\")","v":""},{"$f":"+IF(T37<>\"\",VLOOKUP(T35,'Dades i com... - Datos y com...'!$C$42:$E$61,3,FALSE),\"\")","v":""},{"$f":"+IF(U37<>\"\",VLOOKUP(U35,'Dades i com... - Datos y com...'!$C$42:$E$61,3,FALSE),\"\")","v":""},{"$f":"+IF(V37<>\"\",VLOOKUP(V35,'Dades i com... - Datos y com...'!$C$42:$E$61,3,FALSE),\"\")","v":""}]
[null,"Despeses transversals",{"$f":"IF('Dades i com... - Datos y com...'!D42=\"\",\"\",'Dades i com... - Datos y com...'!D42)","v":""},{"$f":"+IF('Dades i com... - Datos y com...'!D43=\"\",\"\",'Dades i com... - Datos y com...'!D43)","v":""},{"$f":"+IF('Dades i com... - Datos y com...'!D44=\"\",\"\",'Dades i com... - Datos y com...'!D44)","v":""},{"$f":"+IF('Dades i com... - Datos y com...'!D45=\"\",\"\",'Dades i com... - Datos y com...'!D45)","v":""},{"$f":"+IF('Dades i com... - Datos y com...'!D46=\"\",\"\",'Dades i com... - Datos y com...'!D46)","v":""},{"$f":"+IF('Dades i com... - Datos y com...'!D47=\"\",\"\",'Dades i com... - Datos y com...'!D47)","v":""},{"$f":"+IF('Dades i com... - Datos y com...'!D48=\"\",\"\",'Dades i com... - Datos y com...'!D48)","v":""},{"$f":"+IF('Dades i com... - Datos y com...'!D49=\"\",\"\",'Dades i com... - Datos y com...'!D49)","v":""},{"$f":"+IF('Dades i com... - Datos y com...'!D50=\"\",\"\",'Dades i com... - Datos y com...'!D50)","v":""},{"$f":"+IF('Dades i com... - Datos y com...'!D51=\"\",\"\",'Dades i com... - Datos y com...'!D51)","v":""},{"$f":"++IF('Dades i com... - Datos y com...'!D52=\"\",\"\",'Dades i com... - Datos y com...'!D52)","v":""},{"$f":"IF('Dades i com... - Datos y com...'!D53=\"\",\"\",'Dades i com... - Datos y com...'!D53)","v":""},{"$f":"IF('Dades i com... - Datos y com...'!D54=\"\",\"\",'Dades i com... - Datos y com...'!D54)","v":""},{"$f":"IF('Dades i com... - Datos y com...'!D55=\"\",\"\",'Dades i com... - Datos y com...'!D55)","v":""},{"$f":"+IF('Dades i com... - Datos y com...'!D56=\"\",\"\",'Dades i com... - Datos y com...'!D56)","v":""},{"$f":"+IF('Dades i com... - Datos y com...'!D57=\"\",\"\",'Dades i com... - Datos y com...'!D57)","v":""},{"$f":"IF('Dades i com... - Datos y com...'!D58=\"\",\"\",'Dades i com... - Datos y com...'!D58)","v":""},{"$f":"IF('Dades i com... - Datos y com...'!D59=\"\",\"\",'Dades i com... - Datos y com...'!D59)","v":""},{"$f":"+IF('Dades i com... - Datos y com...'!D60=\"\",\"\",'Dades i com... - Datos y com...'!D60)","v":""},{"$f":"+IF('Dades i com... - Datos y com...'!D61=\"\",\"\",'Dades i com... - Datos y com...'!D61)","v":""}]
["DESPESES DIRECTES CORRENTS (Capítol IV) / GASTOS DIRECTOS CORRIENTES (Capítulo IV)",{"$f":"+SUM(B39,B43:B59)","v":0},{"$error":"#VALUE!"},{"$error":"#VALUE!"},{"$error":"#VALUE!"},{"$error":"#VALUE!"},{"$error":"#VALUE!"},{"$error":"#VALUE!"},{"$error":"#VALUE!"},{"$error":"#VALUE!"},{"$error":"#VALUE!"},{"$error":"#VALUE!"},{"$error":"#VALUE!"},{"$error":"#VALUE!"},{"$f":"+SUM(O39,O43:O59)","v":{"$error":"#VALUE!"}},{"$error":"#VALUE!"},{"$error":"#VALUE!"},{"$error":"#VALUE!"},{"$error":"#VALUE!"},{"$error":"#VALUE!"},{"$error":"#VALUE!"},{"$error":"#VALUE!"}]
["a1. Remuneració  personal assalariat / Remuneracion personal asalariado",{"$f":"SUM(B40:B42)","v":0},{"$f":"SUM(C40:C42)","v":{"$error":"#VALUE!"}},{"$f":"SUM(D40:D42)","v":{"$error":"#VALUE!"}},{"$error":"#VALUE!"},{"$error":"#VALUE!"},{"$error":"#VALUE!"},{"$error":"#VALUE!"},{"$error":"#VALUE!"},{"$error":"#VALUE!"},{"$error":"#VALUE!"},{"$error":"#VALUE!"},{"$error":"#VALUE!"},{"$error":"#VALUE!"},{"$f":"SUM(O40:O42)","v":{"$error":"#VALUE!"}},{"$error":"#VALUE!"},{"$error":"#VALUE!"},{"$error":"#VALUE!"},{"$error":"#VALUE!"},{"$error":"#VALUE!"},{"$error":"#VALUE!"},{"$error":"#VALUE!"}]
["a1.1 Personal assalariat local / Personal asalariado local",{"$f":"+SUMIFS('Detall - Detalle'!$AF:$AF,'Detall - Detalle'!$AD:$AD,B$37,'Detall - Detalle'!$AK:$AK,'Pressupost - Pressupuesto'!$A6)","v":0},{"$f":"+SUMIFS('Detall - Detalle'!$AF:$AF,'Detall - Detalle'!$AD:$AD,C$37,'Detall - Detalle'!$AK:$AK,'Pressupost - Pressupuesto'!$A6)+$B40*C$36","v":{"$error":"#VALUE!"}},{"$f":"+SUMIFS('Detall - Detalle'!$AF:$AF,'Detall - Detalle'!$AD:$AD,D$37,'Detall - Detalle'!$AK:$AK,'Pressupost - Pressupuesto'!$A6)+$B40*D$36","v":{"$error":"#VALUE!"}},{"$f":"+SUMIFS('Detall - Detalle'!$AF:$AF,'Detall - Detalle'!$AD:$AD,E$37,'Detall - Detalle'!$AK:$AK,'Pressupost - Pressupuesto'!$A6)+$B40*E$36","v":{"$error":"#VALUE!"}},{"$f":"+SUMIFS('Detall - Detalle'!$AF:$AF,'Detall - Detalle'!$AD:$AD,F$37,'Detall - Detalle'!$AK:$AK,'Pressupost - Pressupuesto'!$A6)+$B40*F$36","v":{"$error":"#VALUE!"}},{"$f":"+SUMIFS('Detall - Detalle'!$AF:$AF,'Detall - Detalle'!$AD:$AD,G$37,'Detall - Detalle'!$AK:$AK,'Pressupost - Pressupuesto'!$A6)+$B40*G$36","v":{"$error":"#VALUE!"}},{"$f":"+SUMIFS('Detall - Detalle'!$AF:$AF,'Detall - Detalle'!$AD:$AD,H$37,'Detall - Detalle'!$AK:$AK,'Pressupost - Pressupuesto'!$A6)+$B40*H$36","v":{"$error":"#VALUE!"}},{"$f":"+SUMIFS('Detall - Detalle'!$AF:$AF,'Detall - Detalle'!$AD:$AD,I$37,'Detall - Detalle'!$AK:$AK,'Pressupost - Pressupuesto'!$A6)+$B40*I$36","v":{"$error":"#VALUE!"}},{"$f":"+SUMIFS('Detall - Detalle'!$AF:$AF,'Detall - Detalle'!$AD:$AD,J$37,'Detall - Detalle'!$AK:$AK,'Pressupost - Pressupuesto'!$A6)+$B40*J$36","v":{"$error":"#VALUE!"}},{"$f":"+SUMIFS('Detall - Detalle'!$AF:$AF,'Detall - Detalle'!$AD:$AD,K$37,'Detall - Detalle'!$AK:$AK,'Pressupost - Pressupuesto'!$A6)+$B40*K$36","v":{"$error":"#VALUE!"}},{"$f":"+SUMIFS('Detall - Detalle'!$AF:$AF,'Detall - Detalle'!$AD:$AD,L$37,'Detall - Detalle'!$AK:$AK,'Pressupost - Pressupuesto'!$A6)+$B40*L$36","v":{"$error":"#VALUE!"}},{"$f":"+SUMIFS('Detall - Detalle'!$AF:$AF,'Detall - Detalle'!$AD:$AD,M$37,'Detall - Detalle'!$AK:$AK,'Pressupost - Pressupuesto'!$A6)+$B40*M$36","v":{"$error":"#VALUE!"}},{"$f":"+SUMIFS('Detall - Detalle'!$AF:$AF,'Detall - Detalle'!$AD:$AD,N$37,'Detall - Detalle'!$AK:$AK,'Pressupost - Pressupuesto'!$A6)+$B40*N$36","v":{"$error":"#VALUE!"}},{"$f":"+SUMIFS('Detall - Detalle'!$AF:$AF,'Detall - Detalle'!$AD:$AD,O$37,'Detall - Detalle'!$AK:$AK,'Pressupost - Pressupuesto'!$A6)+$B40*O$36","v":{"$error":"#VALUE!"}},{"$f":"+SUMIFS('Detall - Detalle'!$AF:$AF,'Detall - Detalle'!$AD:$AD,P$37,'Detall - Detalle'!$AK:$AK,'Pressupost - Pressupuesto'!$A6)+$B40*P$36","v":{"$error":"#VALUE!"}},{"$f":"+SUMIFS('Detall - Detalle'!$AF:$AF,'Detall - Detalle'!$AD:$AD,Q$37,'Detall - Detalle'!$AK:$AK,'Pressupost - Pressupuesto'!$A6)+$B40*Q$36","v":{"$error":"#VALUE!"}},{"$f":"+SUMIFS('Detall - Detalle'!$AF:$AF,'Detall - Detalle'!$AD:$AD,R$37,'Detall - Detalle'!$AK:$AK,'Pressupost - Pressupuesto'!$A6)+$B40*R$36","v":{"$error":"#VALUE!"}},{"$f":"+SUMIFS('Detall - Detalle'!$AF:$AF,'Detall - Detalle'!$AD:$AD,S$37,'Detall - Detalle'!$AK:$AK,'Pressupost - Pressupuesto'!$A6)+$B40*S$36","v":{"$error":"#VALUE!"}},{"$f":"+SUMIFS('Detall - Detalle'!$AF:$AF,'Detall - Detalle'!$AD:$AD,T$37,'Detall - Detalle'!$AK:$AK,'Pressupost - Pressupuesto'!$A6)+$B40*T$36","v":{"$error":"#VALUE!"}},{"$f":"+SUMIFS('Detall - Detalle'!$AF:$AF,'Detall - Detalle'!$AD:$AD,U$37,'Detall - Detalle'!$AK:$AK,'Pressupost - Pressupuesto'!$A6)+$B40*U$36","v":{"$error":"#VALUE!"}},{"$f":"+SUMIFS('Detall - Detalle'!$AF:$AF,'Detall - Detalle'!$AD:$AD,V$37,'Detall - Detalle'!$AK:$AK,'Pressupost - Pressupuesto'!$A6)+$B40*V$36","v":{"$error":"#VALUE!"}}]
["a1.2 Personal assalariat expatriat / Personal asalariado expatriado",{"$f":"+SUMIFS('Detall - Detalle'!$AF:$AF,'Detall - Detalle'!$AD:$AD,B$37,'Detall - Detalle'!$AK:$AK,'Pressupost - Pressupuesto'!$A7)","v":0},{"$f":"+SUMIFS('Detall - Detalle'!$AF:$AF,'Detall - Detalle'!$AD:$AD,C$37,'Detall - Detalle'!$AK:$AK,'Pressupost - Pressupuesto'!$A7)+$B41*C$36","v":{"$error":"#VALUE!"}},{"$f":"+SUMIFS('Detall - Detalle'!$AF:$AF,'Detall - Detalle'!$AD:$AD,D$37,'Detall - Detalle'!$AK:$AK,'Pressupost - Pressupuesto'!$A7)+$B41*D$36","v":{"$error":"#VALUE!"}},{"$f":"+SUMIFS('Detall - Detalle'!$AF:$AF,'Detall - Detalle'!$AD:$AD,E$37,'Detall - Detalle'!$AK:$AK,'Pressupost - Pressupuesto'!$A7)+$B41*E$36","v":{"$error":"#VALUE!"}},{"$f":"+SUMIFS('Detall - Detalle'!$AF:$AF,'Detall - Detalle'!$AD:$AD,F$37,'Detall - Detalle'!$AK:$AK,'Pressupost - Pressupuesto'!$A7)+$B41*F$36","v":{"$error":"#VALUE!"}},{"$f":"+SUMIFS('Detall - Detalle'!$AF:$AF,'Detall - Detalle'!$AD:$AD,G$37,'Detall - Detalle'!$AK:$AK,'Pressupost - Pressupuesto'!$A7)+$B41*G$36","v":{"$error":"#VALUE!"}},{"$f":"+SUMIFS('Detall - Detalle'!$AF:$AF,'Detall - Detalle'!$AD:$AD,H$37,'Detall - Detalle'!$AK:$AK,'Pressupost - Pressupuesto'!$A7)+$B41*H$36","v":{"$error":"#VALUE!"}},{"$f":"+SUMIFS('Detall - Detalle'!$AF:$AF,'Detall - Detalle'!$AD:$AD,I$37,'Detall - Detalle'!$AK:$AK,'Pressupost - Pressupuesto'!$A7)+$B41*I$36","v":{"$error":"#VALUE!"}},{"$f":"+SUMIFS('Detall - Detalle'!$AF:$AF,'Detall - Detalle'!$AD:$AD,J$37,'Detall - Detalle'!$AK:$AK,'Pressupost - Pressupuesto'!$A7)+$B41*J$36","v":{"$error":"#VALUE!"}},{"$f":"+SUMIFS('Detall - Detalle'!$AF:$AF,'Detall - Detalle'!$AD:$AD,K$37,'Detall - Detalle'!$AK:$AK,'Pressupost - Pressupuesto'!$A7)+$B41*K$36","v":{"$error":"#VALUE!"}},{"$f":"+SUMIFS('Detall - Detalle'!$AF:$AF,'Detall - Detalle'!$AD:$AD,L$37,'Detall - Detalle'!$AK:$AK,'Pressupost - Pressupuesto'!$A7)+$B41*L$36","v":{"$error":"#VALUE!"}},{"$f":"+SUMIFS('Detall - Detalle'!$AF:$AF,'Detall - Detalle'!$AD:$AD,M$37,'Detall - Detalle'!$AK:$AK,'Pressupost - Pressupuesto'!$A7)+$B41*M$36","v":{"$error":"#VALUE!"}},{"$f":"+SUMIFS('Detall - Detalle'!$AF:$AF,'Detall - Detalle'!$AD:$AD,N$37,'Detall - Detalle'!$AK:$AK,'Pressupost - Pressupuesto'!$A7)+$B41*N$36","v":{"$error":"#VALUE!"}},{"$f":"+SUMIFS('Detall - Detalle'!$AF:$AF,'Detall - Detalle'!$AD:$AD,O$37,'Detall - Detalle'!$AK:$AK,'Pressupost - Pressupuesto'!$A7)+$B41*O$36","v":{"$error":"#VALUE!"}},{"$f":"+SUMIFS('Detall - Detalle'!$AF:$AF,'Detall - Detalle'!$AD:$AD,P$37,'Detall - Detalle'!$AK:$AK,'Pressupost - Pressupuesto'!$A7)+$B41*P$36","v":{"$error":"#VALUE!"}},{"$f":"+SUMIFS('Detall - Detalle'!$AF:$AF,'Detall - Detalle'!$AD:$AD,Q$37,'Detall - Detalle'!$AK:$AK,'Pressupost - Pressupuesto'!$A7)+$B41*Q$36","v":{"$error":"#VALUE!"}},{"$f":"+SUMIFS('Detall - Detalle'!$AF:$AF,'Detall - Detalle'!$AD:$AD,R$37,'Detall - Detalle'!$AK:$AK,'Pressupost - Pressupuesto'!$A7)+$B41*R$36","v":{"$error":"#VALUE!"}},{"$f":"+SUMIFS('Detall - Detalle'!$AF:$AF,'Detall - Detalle'!$AD:$AD,S$37,'Detall - Detalle'!$AK:$AK,'Pressupost - Pressupuesto'!$A7)+$B41*S$36","v":{"$error":"#VALUE!"}},{"$f":"+SUMIFS('Detall - Detalle'!$AF:$AF,'Detall - Detalle'!$AD:$AD,T$37,'Detall - Detalle'!$AK:$AK,'Pressupost - Pressupuesto'!$A7)+$B41*T$36","v":{"$error":"#VALUE!"}},{"$f":"+SUMIFS('Detall - Detalle'!$AF:$AF,'Detall - Detalle'!$AD:$AD,U$37,'Detall - Detalle'!$AK:$AK,'Pressupost - Pressupuesto'!$A7)+$B41*U$36","v":{"$error":"#VALUE!"}},{"$f":"+SUMIFS('Detall - Detalle'!$AF:$AF,'Detall - Detalle'!$AD:$AD,V$37,'Detall - Detalle'!$AK:$AK,'Pressupost - Pressupuesto'!$A7)+$B41*V$36","v":{"$error":"#VALUE!"}}]
["a1.3 Personal assalariat a Catalunya / Personal asalariado Cataluña",{"$f":"+SUMIFS('Detall - Detalle'!$AF:$AF,'Detall - Detalle'!$AD:$AD,B$37,'Detall - Detalle'!$AK:$AK,'Pressupost - Pressupuesto'!$A8)","v":0},{"$f":"+SUMIFS('Detall - Detalle'!$AF:$AF,'Detall - Detalle'!$AD:$AD,C$37,'Detall - Detalle'!$AK:$AK,'Pressupost - Pressupuesto'!$A8)+$B42*C$36","v":{"$error":"#VALUE!"}},{"$f":"+SUMIFS('Detall - Detalle'!$AF:$AF,'Detall - Detalle'!$AD:$AD,D$37,'Detall - Detalle'!$AK:$AK,'Pressupost - Pressupuesto'!$A8)+$B42*D$36","v":{"$error":"#VALUE!"}},{"$f":"+SUMIFS('Detall - Detalle'!$AF:$AF,'Detall - Detalle'!$AD:$AD,E$37,'Detall - Detalle'!$AK:$AK,'Pressupost - Pressupuesto'!$A8)+$B42*E$36","v":{"$error":"#VALUE!"}},{"$f":"+SUMIFS('Detall - Detalle'!$AF:$AF,'Detall - Detalle'!$AD:$AD,F$37,'Detall - Detalle'!$AK:$AK,'Pressupost - Pressupuesto'!$A8)+$B42*F$36","v":{"$error":"#VALUE!"}},{"$f":"+SUMIFS('Detall - Detalle'!$AF:$AF,'Detall - Detalle'!$AD:$AD,G$37,'Detall - Detalle'!$AK:$AK,'Pressupost - Pressupuesto'!$A8)+$B42*G$36","v":{"$error":"#VALUE!"}},{"$f":"+SUMIFS('Detall - Detalle'!$AF:$AF,'Detall - Detalle'!$AD:$AD,H$37,'Detall - Detalle'!$AK:$AK,'Pressupost - Pressupuesto'!$A8)+$B42*H$36","v":{"$error":"#VALUE!"}},{"$f":"+SUMIFS('Detall - Detalle'!$AF:$AF,'Detall - Detalle'!$AD:$AD,I$37,'Detall - Detalle'!$AK:$AK,'Pressupost - Pressupuesto'!$A8)+$B42*I$36","v":{"$error":"#VALUE!"}},{"$f":"+SUMIFS('Detall - Detalle'!$AF:$AF,'Detall - Detalle'!$AD:$AD,J$37,'Detall - Detalle'!$AK:$AK,'Pressupost - Pressupuesto'!$A8)+$B42*J$36","v":{"$error":"#VALUE!"}},{"$f":"+SUMIFS('Detall - Detalle'!$AF:$AF,'Detall - Detalle'!$AD:$AD,K$37,'Detall - Detalle'!$AK:$AK,'Pressupost - Pressupuesto'!$A8)+$B42*K$36","v":{"$error":"#VALUE!"}},{"$f":"+SUMIFS('Detall - Detalle'!$AF:$AF,'Detall - Detalle'!$AD:$AD,L$37,'Detall - Detalle'!$AK:$AK,'Pressupost - Pressupuesto'!$A8)+$B42*L$36","v":{"$error":"#VALUE!"}},{"$f":"+SUMIFS('Detall - Detalle'!$AF:$AF,'Detall - Detalle'!$AD:$AD,M$37,'Detall - Detalle'!$AK:$AK,'Pressupost - Pressupuesto'!$A8)+$B42*M$36","v":{"$error":"#VALUE!"}},{"$f":"+SUMIFS('Detall - Detalle'!$AF:$AF,'Detall - Detalle'!$AD:$AD,N$37,'Detall - Detalle'!$AK:$AK,'Pressupost - Pressupuesto'!$A8)+$B42*N$36","v":{"$error":"#VALUE!"}},{"$f":"+SUMIFS('Detall - Detalle'!$AF:$AF,'Detall - Detalle'!$AD:$AD,O$37,'Detall - Detalle'!$AK:$AK,'Pressupost - Pressupuesto'!$A8)+$B42*O$36","v":{"$error":"#VALUE!"}},{"$f":"+SUMIFS('Detall - Detalle'!$AF:$AF,'Detall - Detalle'!$AD:$AD,P$37,'Detall - Detalle'!$AK:$AK,'Pressupost - Pressupuesto'!$A8)+$B42*P$36","v":{"$error":"#VALUE!"}},{"$f":"+SUMIFS('Detall - Detalle'!$AF:$AF,'Detall - Detalle'!$AD:$AD,Q$37,'Detall - Detalle'!$AK:$AK,'Pressupost - Pressupuesto'!$A8)+$B42*Q$36","v":{"$error":"#VALUE!"}},{"$f":"+SUMIFS('Detall - Detalle'!$AF:$AF,'Detall - Detalle'!$AD:$AD,R$37,'Detall - Detalle'!$AK:$AK,'Pressupost - Pressupuesto'!$A8)+$B42*R$36","v":{"$error":"#VALUE!"}},{"$f":"+SUMIFS('Detall - Detalle'!$AF:$AF,'Detall - Detalle'!$AD:$AD,S$37,'Detall - Detalle'!$AK:$AK,'Pressupost - Pressupuesto'!$A8)+$B42*S$36","v":{"$error":"#VALUE!"}},{"$f":"+SUMIFS('Detall - Detalle'!$AF:$AF,'Detall - Detalle'!$AD:$AD,T$37,'Detall - Detalle'!$AK:$AK,'Pressupost - Pressupuesto'!$A8)+$B42*T$36","v":{"$error":"#VALUE!"}},{"$f":"+SUMIFS('Detall - Detalle'!$AF:$AF,'Detall - Detalle'!$AD:$AD,U$37,'Detall - Detalle'!$AK:$AK,'Pressupost - Pressupuesto'!$A8)+$B42*U$36","v":{"$error":"#VALUE!"}},{"$f":"+SUMIFS('Detall - Detalle'!$AF:$AF,'Detall - Detalle'!$AD:$AD,V$37,'Detall - Detalle'!$AK:$AK,'Pressupost - Pressupuesto'!$A8)+$B42*V$36","v":{"$error":"#VALUE!"}}]
["a2 Lloguers / Alquileres",{"$f":"+SUMIFS('Detall - Detalle'!$AF:$AF,'Detall - Detalle'!$AD:$AD,B$37,'Detall - Detalle'!$AK:$AK,'Pressupost - Pressupuesto'!$A9)","v":0},{"$f":"+SUMIFS('Detall - Detalle'!$AF:$AF,'Detall - Detalle'!$AD:$AD,C$37,'Detall - Detalle'!$AK:$AK,'Pressupost - Pressupuesto'!$A9)+$B43*C$36","v":{"$error":"#VALUE!"}},{"$f":"+SUMIFS('Detall - Detalle'!$AF:$AF,'Detall - Detalle'!$AD:$AD,D$37,'Detall - Detalle'!$AK:$AK,'Pressupost - Pressupuesto'!$A9)+$B43*D$36","v":{"$error":"#VALUE!"}},{"$f":"+SUMIFS('Detall - Detalle'!$AF:$AF,'Detall - Detalle'!$AD:$AD,E$37,'Detall - Detalle'!$AK:$AK,'Pressupost - Pressupuesto'!$A9)+$B43*E$36","v":{"$error":"#VALUE!"}},{"$f":"+SUMIFS('Detall - Detalle'!$AF:$AF,'Detall - Detalle'!$AD:$AD,F$37,'Detall - Detalle'!$AK:$AK,'Pressupost - Pressupuesto'!$A9)+$B43*F$36","v":{"$error":"#VALUE!"}},{"$f":"+SUMIFS('Detall - Detalle'!$AF:$AF,'Detall - Detalle'!$AD:$AD,G$37,'Detall - Detalle'!$AK:$AK,'Pressupost - Pressupuesto'!$A9)+$B43*G$36","v":{"$error":"#VALUE!"}},{"$f":"+SUMIFS('Detall - Detalle'!$AF:$AF,'Detall - Detalle'!$AD:$AD,H$37,'Detall - Detalle'!$AK:$AK,'Pressupost - Pressupuesto'!$A9)+$B43*H$36","v":{"$error":"#VALUE!"}},{"$f":"+SUMIFS('Detall - Detalle'!$AF:$AF,'Detall - Detalle'!$AD:$AD,I$37,'Detall - Detalle'!$AK:$AK,'Pressupost - Pressupuesto'!$A9)+$B43*I$36","v":{"$error":"#VALUE!"}},{"$f":"+SUMIFS('Detall - Detalle'!$AF:$AF,'Detall - Detalle'!$AD:$AD,J$37,'Detall - Detalle'!$AK:$AK,'Pressupost - Pressupuesto'!$A9)+$B43*J$36","v":{"$error":"#VALUE!"}},{"$f":"+SUMIFS('Detall - Detalle'!$AF:$AF,'Detall - Detalle'!$AD:$AD,K$37,'Detall - Detalle'!$AK:$AK,'Pressupost - Pressupuesto'!$A9)+$B43*K$36","v":{"$error":"#VALUE!"}},{"$f":"+SUMIFS('Detall - Detalle'!$AF:$AF,'Detall - Detalle'!$AD:$AD,L$37,'Detall - Detalle'!$AK:$AK,'Pressupost - Pressupuesto'!$A9)+$B43*L$36","v":{"$error":"#VALUE!"}},{"$f":"+SUMIFS('Detall - Detalle'!$AF:$AF,'Detall - Detalle'!$AD:$AD,M$37,'Detall - Detalle'!$AK:$AK,'Pressupost - Pressupuesto'!$A9)+$B43*M$36","v":{"$error":"#VALUE!"}},{"$f":"+SUMIFS('Detall - Detalle'!$AF:$AF,'Detall - Detalle'!$AD:$AD,N$37,'Detall - Detalle'!$AK:$AK,'Pressupost - Pressupuesto'!$A9)+$B43*N$36","v":{"$error":"#VALUE!"}},{"$f":"+SUMIFS('Detall - Detalle'!$AF:$AF,'Detall - Detalle'!$AD:$AD,O$37,'Detall - Detalle'!$AK:$AK,'Pressupost - Pressupuesto'!$A9)+$B43*O$36","v":{"$error":"#VALUE!"}},{"$f":"+SUMIFS('Detall - Detalle'!$AF:$AF,'Detall - Detalle'!$AD:$AD,P$37,'Detall - Detalle'!$AK:$AK,'Pressupost - Pressupuesto'!$A9)+$B43*P$36","v":{"$error":"#VALUE!"}},{"$f":"+SUMIFS('Detall - Detalle'!$AF:$AF,'Detall - Detalle'!$AD:$AD,Q$37,'Detall - Detalle'!$AK:$AK,'Pressupost - Pressupuesto'!$A9)+$B43*Q$36","v":{"$error":"#VALUE!"}},{"$f":"+SUMIFS('Detall - Detalle'!$AF:$AF,'Detall - Detalle'!$AD:$AD,R$37,'Detall - Detalle'!$AK:$AK,'Pressupost - Pressupuesto'!$A9)+$B43*R$36","v":{"$error":"#VALUE!"}},{"$f":"+SUMIFS('Detall - Detalle'!$AF:$AF,'Detall - Detalle'!$AD:$AD,S$37,'Detall - Detalle'!$AK:$AK,'Pressupost - Pressupuesto'!$A9)+$B43*S$36","v":{"$error":"#VALUE!"}},{"$f":"+SUMIFS('Detall - Detalle'!$AF:$AF,'Detall - Detalle'!$AD:$AD,T$37,'Detall - Detalle'!$AK:$AK,'Pressupost - Pressupuesto'!$A9)+$B43*T$36","v":{"$error":"#VALUE!"}},{"$f":"+SUMIFS('Detall - Detalle'!$AF:$AF,'Detall - Detalle'!$AD:$AD,U$37,'Detall - Detalle'!$AK:$AK,'Pressupost - Pressupuesto'!$A9)+$B43*U$36","v":{"$error":"#VALUE!"}},{"$f":"+SUMIFS('Detall - Detalle'!$AF:$AF,'Detall - Detalle'!$AD:$AD,V$37,'Detall - Detalle'!$AK:$AK,'Pressupost - Pressupuesto'!$A9)+$B43*V$36","v":{"$error":"#VALUE!"}}]
["a3 Manteniment, conservació i reparació / Mantenimiento, conservación y reparación",{"$f":"+SUMIFS('Detall - Detalle'!$AF:$AF,'Detall - Detalle'!$AD:$AD,B$37,'Detall - Detalle'!$AK:$AK,'Pressupost - Pressupuesto'!$A10)","v":0},{"$f":"+SUMIFS('Detall - Detalle'!$AF:$AF,'Detall - Detalle'!$AD:$AD,C$37,'Detall - Detalle'!$AK:$AK,'Pressupost - Pressupuesto'!$A10)+$B44*C$36","v":{"$error":"#VALUE!"}},{"$f":"+SUMIFS('Detall - Detalle'!$AF:$AF,'Detall - Detalle'!$AD:$AD,D$37,'Detall - Detalle'!$AK:$AK,'Pressupost - Pressupuesto'!$A10)+$B44*D$36","v":{"$error":"#VALUE!"}},{"$f":"+SUMIFS('Detall - Detalle'!$AF:$AF,'Detall - Detalle'!$AD:$AD,E$37,'Detall - Detalle'!$AK:$AK,'Pressupost - Pressupuesto'!$A10)+$B44*E$36","v":{"$error":"#VALUE!"}},{"$f":"+SUMIFS('Detall - Detalle'!$AF:$AF,'Detall - Detalle'!$AD:$AD,F$37,'Detall - Detalle'!$AK:$AK,'Pressupost - Pressupuesto'!$A10)+$B44*F$36","v":{"$error":"#VALUE!"}},{"$f":"+SUMIFS('Detall - Detalle'!$AF:$AF,'Detall - Detalle'!$AD:$AD,G$37,'Detall - Detalle'!$AK:$AK,'Pressupost - Pressupuesto'!$A10)+$B44*G$36","v":{"$error":"#VALUE!"}},{"$f":"+SUMIFS('Detall - Detalle'!$AF:$AF,'Detall - Detalle'!$AD:$AD,H$37,'Detall - Detalle'!$AK:$AK,'Pressupost - Pressupuesto'!$A10)+$B44*H$36","v":{"$error":"#VALUE!"}},{"$f":"+SUMIFS('Detall - Detalle'!$AF:$AF,'Detall - Detalle'!$AD:$AD,I$37,'Detall - Detalle'!$AK:$AK,'Pressupost - Pressupuesto'!$A10)+$B44*I$36","v":{"$error":"#VALUE!"}},{"$f":"+SUMIFS('Detall - Detalle'!$AF:$AF,'Detall - Detalle'!$AD:$AD,J$37,'Detall - Detalle'!$AK:$AK,'Pressupost - Pressupuesto'!$A10)+$B44*J$36","v":{"$error":"#VALUE!"}},{"$f":"+SUMIFS('Detall - Detalle'!$AF:$AF,'Detall - Detalle'!$AD:$AD,K$37,'Detall - Detalle'!$AK:$AK,'Pressupost - Pressupuesto'!$A10)+$B44*K$36","v":{"$error":"#VALUE!"}},{"$f":"+SUMIFS('Detall - Detalle'!$AF:$AF,'Detall - Detalle'!$AD:$AD,L$37,'Detall - Detalle'!$AK:$AK,'Pressupost - Pressupuesto'!$A10)+$B44*L$36","v":{"$error":"#VALUE!"}},{"$f":"+SUMIFS('Detall - Detalle'!$AF:$AF,'Detall - Detalle'!$AD:$AD,M$37,'Detall - Detalle'!$AK:$AK,'Pressupost - Pressupuesto'!$A10)+$B44*M$36","v":{"$error":"#VALUE!"}},{"$f":"+SUMIFS('Detall - Detalle'!$AF:$AF,'Detall - Detalle'!$AD:$AD,N$37,'Detall - Detalle'!$AK:$AK,'Pressupost - Pressupuesto'!$A10)+$B44*N$36","v":{"$error":"#VALUE!"}},{"$f":"+SUMIFS('Detall - Detalle'!$AF:$AF,'Detall - Detalle'!$AD:$AD,O$37,'Detall - Detalle'!$AK:$AK,'Pressupost - Pressupuesto'!$A10)+$B44*O$36","v":{"$error":"#VALUE!"}},{"$f":"+SUMIFS('Detall - Detalle'!$AF:$AF,'Detall - Detalle'!$AD:$AD,P$37,'Detall - Detalle'!$AK:$AK,'Pressupost - Pressupuesto'!$A10)+$B44*P$36","v":{"$error":"#VALUE!"}},{"$f":"+SUMIFS('Detall - Detalle'!$AF:$AF,'Detall - Detalle'!$AD:$AD,Q$37,'Detall - Detalle'!$AK:$AK,'Pressupost - Pressupuesto'!$A10)+$B44*Q$36","v":{"$error":"#VALUE!"}},{"$f":"+SUMIFS('Detall - Detalle'!$AF:$AF,'Detall - Detalle'!$AD:$AD,R$37,'Detall - Detalle'!$AK:$AK,'Pressupost - Pressupuesto'!$A10)+$B44*R$36","v":{"$error":"#VALUE!"}},{"$f":"+SUMIFS('Detall - Detalle'!$AF:$AF,'Detall - Detalle'!$AD:$AD,S$37,'Detall - Detalle'!$AK:$AK,'Pressupost - Pressupuesto'!$A10)+$B44*S$36","v":{"$error":"#VALUE!"}},{"$f":"+SUMIFS('Detall - Detalle'!$AF:$AF,'Detall - Detalle'!$AD:$AD,T$37,'Detall - Detalle'!$AK:$AK,'Pressupost - Pressupuesto'!$A10)+$B44*T$36","v":{"$error":"#VALUE!"}},{"$f":"+SUMIFS('Detall - Detalle'!$AF:$AF,'Detall - Detalle'!$AD:$AD,U$37,'Detall - Detalle'!$AK:$AK,'Pressupost - Pressupuesto'!$A10)+$B44*U$36","v":{"$error":"#VALUE!"}},{"$f":"+SUMIFS('Detall - Detalle'!$AF:$AF,'Detall - Detalle'!$AD:$AD,V$37,'Detall - Detalle'!$AK:$AK,'Pressupost - Pressupuesto'!$A10)+$B44*V$36","v":{"$error":"#VALUE!"}}]
["a4 Material ordinari / Material ordinario",{"$f":"+SUMIFS('Detall - Detalle'!$AF:$AF,'Detall - Detalle'!$AD:$AD,B$37,'Detall - Detalle'!$AK:$AK,'Pressupost - Pressupuesto'!$A11)","v":0},{"$f":"+SUMIFS('Detall - Detalle'!$AF:$AF,'Detall - Detalle'!$AD:$AD,C$37,'Detall - Detalle'!$AK:$AK,'Pressupost - Pressupuesto'!$A11)+$B45*C$36","v":{"$error":"#VALUE!"}},{"$f":"+SUMIFS('Detall - Detalle'!$AF:$AF,'Detall - Detalle'!$AD:$AD,D$37,'Detall - Detalle'!$AK:$AK,'Pressupost - Pressupuesto'!$A11)+$B45*D$36","v":{"$error":"#VALUE!"}},{"$f":"+SUMIFS('Detall - Detalle'!$AF:$AF,'Detall - Detalle'!$AD:$AD,E$37,'Detall - Detalle'!$AK:$AK,'Pressupost - Pressupuesto'!$A11)+$B45*E$36","v":{"$error":"#VALUE!"}},{"$f":"+SUMIFS('Detall - Detalle'!$AF:$AF,'Detall - Detalle'!$AD:$AD,F$37,'Detall - Detalle'!$AK:$AK,'Pressupost - Pressupuesto'!$A11)+$B45*F$36","v":{"$error":"#VALUE!"}},{"$f":"+SUMIFS('Detall - Detalle'!$AF:$AF,'Detall - Detalle'!$AD:$AD,G$37,'Detall - Detalle'!$AK:$AK,'Pressupost - Pressupuesto'!$A11)+$B45*G$36","v":{"$error":"#VALUE!"}},{"$f":"+SUMIFS('Detall - Detalle'!$AF:$AF,'Detall - Detalle'!$AD:$AD,H$37,'Detall - Detalle'!$AK:$AK,'Pressupost - Pressupuesto'!$A11)+$B45*H$36","v":{"$error":"#VALUE!"}},{"$f":"+SUMIFS('Detall - Detalle'!$AF:$AF,'Detall - Detalle'!$AD:$AD,I$37,'Detall - Detalle'!$AK:$AK,'Pressupost - Pressupuesto'!$A11)+$B45*I$36","v":{"$error":"#VALUE!"}},{"$f":"+SUMIFS('Detall - Detalle'!$AF:$AF,'Detall - Detalle'!$AD:$AD,J$37,'Detall - Detalle'!$AK:$AK,'Pressupost - Pressupuesto'!$A11)+$B45*J$36","v":{"$error":"#VALUE!"}},{"$f":"+SUMIFS('Detall - Detalle'!$AF:$AF,'Detall - Detalle'!$AD:$AD,K$37,'Detall - Detalle'!$AK:$AK,'Pressupost - Pressupuesto'!$A11)+$B45*K$36","v":{"$error":"#VALUE!"}},{"$f":"+SUMIFS('Detall - Detalle'!$AF:$AF,'Detall - Detalle'!$AD:$AD,L$37,'Detall - Detalle'!$AK:$AK,'Pressupost - Pressupuesto'!$A11)+$B45*L$36","v":{"$error":"#VALUE!"}},{"$f":"+SUMIFS('Detall - Detalle'!$AF:$AF,'Detall - Detalle'!$AD:$AD,M$37,'Detall - Detalle'!$AK:$AK,'Pressupost - Pressupuesto'!$A11)+$B45*M$36","v":{"$error":"#VALUE!"}},{"$f":"+SUMIFS('Detall - Detalle'!$AF:$AF,'Detall - Detalle'!$AD:$AD,N$37,'Detall - Detalle'!$AK:$AK,'Pressupost - Pressupuesto'!$A11)+$B45*N$36","v":{"$error":"#VALUE!"}},{"$f":"+SUMIFS('Detall - Detalle'!$AF:$AF,'Detall - Detalle'!$AD:$AD,O$37,'Detall - Detalle'!$AK:$AK,'Pressupost - Pressupuesto'!$A11)+$B45*O$36","v":{"$error":"#VALUE!"}},{"$f":"+SUMIFS('Detall - Detalle'!$AF:$AF,'Detall - Detalle'!$AD:$AD,P$37,'Detall - Detalle'!$AK:$AK,'Pressupost - Pressupuesto'!$A11)+$B45*P$36","v":{"$error":"#VALUE!"}},{"$f":"+SUMIFS('Detall - Detalle'!$AF:$AF,'Detall - Detalle'!$AD:$AD,Q$37,'Detall - Detalle'!$AK:$AK,'Pressupost - Pressupuesto'!$A11)+$B45*Q$36","v":{"$error":"#VALUE!"}},{"$f":"+SUMIFS('Detall - Detalle'!$AF:$AF,'Detall - Detalle'!$AD:$AD,R$37,'Detall - Detalle'!$AK:$AK,'Pressupost - Pressupuesto'!$A11)+$B45*R$36","v":{"$error":"#VALUE!"}},{"$f":"+SUMIFS('Detall - Detalle'!$AF:$AF,'Detall - Detalle'!$AD:$AD,S$37,'Detall - Detalle'!$AK:$AK,'Pressupost - Pressupuesto'!$A11)+$B45*S$36","v":{"$error":"#VALUE!"}},{"$f":"+SUMIFS('Detall - Detalle'!$AF:$AF,'Detall - Detalle'!$AD:$AD,T$37,'Detall - Detalle'!$AK:$AK,'Pressupost - Pressupuesto'!$A11)+$B45*T$36","v":{"$error":"#VALUE!"}},{"$f":"+SUMIFS('Detall - Detalle'!$AF:$AF,'Detall - Detalle'!$AD:$AD,U$37,'Detall - Detalle'!$AK:$AK,'Pressupost - Pressupuesto'!$A11)+$B45*U$36","v":{"$error":"#VALUE!"}},{"$f":"+SUMIFS('Detall - Detalle'!$AF:$AF,'Detall - Detalle'!$AD:$AD,V$37,'Detall - Detalle'!$AK:$AK,'Pressupost - Pressupuesto'!$A11)+$B45*V$36","v":{"$error":"#VALUE!"}}]
["a5 Subministraments / Suministros",{"$f":"+SUMIFS('Detall - Detalle'!$AF:$AF,'Detall - Detalle'!$AD:$AD,B$37,'Detall - Detalle'!$AK:$AK,'Pressupost - Pressupuesto'!$A12)","v":0},{"$f":"+SUMIFS('Detall - Detalle'!$AF:$AF,'Detall - Detalle'!$AD:$AD,C$37,'Detall - Detalle'!$AK:$AK,'Pressupost - Pressupuesto'!$A12)+$B46*C$36","v":{"$error":"#VALUE!"}},{"$f":"+SUMIFS('Detall - Detalle'!$AF:$AF,'Detall - Detalle'!$AD:$AD,D$37,'Detall - Detalle'!$AK:$AK,'Pressupost - Pressupuesto'!$A12)+$B46*D$36","v":{"$error":"#VALUE!"}},{"$f":"+SUMIFS('Detall - Detalle'!$AF:$AF,'Detall - Detalle'!$AD:$AD,E$37,'Detall - Detalle'!$AK:$AK,'Pressupost - Pressupuesto'!$A12)+$B46*E$36","v":{"$error":"#VALUE!"}},{"$f":"+SUMIFS('Detall - Detalle'!$AF:$AF,'Detall - Detalle'!$AD:$AD,F$37,'Detall - Detalle'!$AK:$AK,'Pressupost - Pressupuesto'!$A12)+$B46*F$36","v":{"$error":"#VALUE!"}},{"$f":"+SUMIFS('Detall - Detalle'!$AF:$AF,'Detall - Detalle'!$AD:$AD,G$37,'Detall - Detalle'!$AK:$AK,'Pressupost - Pressupuesto'!$A12)+$B46*G$36","v":{"$error":"#VALUE!"}},{"$f":"+SUMIFS('Detall - Detalle'!$AF:$AF,'Detall - Detalle'!$AD:$AD,H$37,'Detall - Detalle'!$AK:$AK,'Pressupost - Pressupuesto'!$A12)+$B46*H$36","v":{"$error":"#VALUE!"}},{"$f":"+SUMIFS('Detall - Detalle'!$AF:$AF,'Detall - Detalle'!$AD:$AD,I$37,'Detall - Detalle'!$AK:$AK,'Pressupost - Pressupuesto'!$A12)+$B46*I$36","v":{"$error":"#VALUE!"}},{"$f":"+SUMIFS('Detall - Detalle'!$AF:$AF,'Detall - Detalle'!$AD:$AD,J$37,'Detall - Detalle'!$AK:$AK,'Pressupost - Pressupuesto'!$A12)+$B46*J$36","v":{"$error":"#VALUE!"}},{"$f":"+SUMIFS('Detall - Detalle'!$AF:$AF,'Detall - Detalle'!$AD:$AD,K$37,'Detall - Detalle'!$AK:$AK,'Pressupost - Pressupuesto'!$A12)+$B46*K$36","v":{"$error":"#VALUE!"}},{"$f":"+SUMIFS('Detall - Detalle'!$AF:$AF,'Detall - Detalle'!$AD:$AD,L$37,'Detall - Detalle'!$AK:$AK,'Pressupost - Pressupuesto'!$A12)+$B46*L$36","v":{"$error":"#VALUE!"}},{"$f":"+SUMIFS('Detall - Detalle'!$AF:$AF,'Detall - Detalle'!$AD:$AD,M$37,'Detall - Detalle'!$AK:$AK,'Pressupost - Pressupuesto'!$A12)+$B46*M$36","v":{"$error":"#VALUE!"}},{"$f":"+SUMIFS('Detall - Detalle'!$AF:$AF,'Detall - Detalle'!$AD:$AD,N$37,'Detall - Detalle'!$AK:$AK,'Pressupost - Pressupuesto'!$A12)+$B46*N$36","v":{"$error":"#VALUE!"}},{"$f":"+SUMIFS('Detall - Detalle'!$AF:$AF,'Detall - Detalle'!$AD:$AD,O$37,'Detall - Detalle'!$AK:$AK,'Pressupost - Pressupuesto'!$A12)+$B46*O$36","v":{"$error":"#VALUE!"}},{"$f":"+SUMIFS('Detall - Detalle'!$AF:$AF,'Detall - Detalle'!$AD:$AD,P$37,'Detall - Detalle'!$AK:$AK,'Pressupost - Pressupuesto'!$A12)+$B46*P$36","v":{"$error":"#VALUE!"}},{"$f":"+SUMIFS('Detall - Detalle'!$AF:$AF,'Detall - Detalle'!$AD:$AD,Q$37,'Detall - Detalle'!$AK:$AK,'Pressupost - Pressupuesto'!$A12)+$B46*Q$36","v":{"$error":"#VALUE!"}},{"$f":"+SUMIFS('Detall - Detalle'!$AF:$AF,'Detall - Detalle'!$AD:$AD,R$37,'Detall - Detalle'!$AK:$AK,'Pressupost - Pressupuesto'!$A12)+$B46*R$36","v":{"$error":"#VALUE!"}},{"$f":"+SUMIFS('Detall - Detalle'!$AF:$AF,'Detall - Detalle'!$AD:$AD,S$37,'Detall - Detalle'!$AK:$AK,'Pressupost - Pressupuesto'!$A12)+$B46*S$36","v":{"$error":"#VALUE!"}},{"$f":"+SUMIFS('Detall - Detalle'!$AF:$AF,'Detall - Detalle'!$AD:$AD,T$37,'Detall - Detalle'!$AK:$AK,'Pressupost - Pressupuesto'!$A12)+$B46*T$36","v":{"$error":"#VALUE!"}},{"$f":"+SUMIFS('Detall - Detalle'!$AF:$AF,'Detall - Detalle'!$AD:$AD,U$37,'Detall - Detalle'!$AK:$AK,'Pressupost - Pressupuesto'!$A12)+$B46*U$36","v":{"$error":"#VALUE!"}},{"$f":"+SUMIFS('Detall - Detalle'!$AF:$AF,'Detall - Detalle'!$AD:$AD,V$37,'Detall - Detalle'!$AK:$AK,'Pressupost - Pressupuesto'!$A12)+$B46*V$36","v":{"$error":"#VALUE!"}}]
["a6 Comunicacions, despeses postals i missatgeria / Comunicaciones, gastos postales y mensajería",{"$f":"+SUMIFS('Detall - Detalle'!$AF:$AF,'Detall - Detalle'!$AD:$AD,B$37,'Detall - Detalle'!$AK:$AK,'Pressupost - Pressupuesto'!$A13)","v":0},{"$f":"+SUMIFS('Detall - Detalle'!$AF:$AF,'Detall - Detalle'!$AD:$AD,C$37,'Detall - Detalle'!$AK:$AK,'Pressupost - Pressupuesto'!$A13)+$B47*C$36","v":{"$error":"#VALUE!"}},{"$f":"+SUMIFS('Detall - Detalle'!$AF:$AF,'Detall - Detalle'!$AD:$AD,D$37,'Detall - Detalle'!$AK:$AK,'Pressupost - Pressupuesto'!$A13)+$B47*D$36","v":{"$error":"#VALUE!"}},{"$f":"+SUMIFS('Detall - Detalle'!$AF:$AF,'Detall - Detalle'!$AD:$AD,E$37,'Detall - Detalle'!$AK:$AK,'Pressupost - Pressupuesto'!$A13)+$B47*E$36","v":{"$error":"#VALUE!"}},{"$f":"+SUMIFS('Detall - Detalle'!$AF:$AF,'Detall - Detalle'!$AD:$AD,F$37,'Detall - Detalle'!$AK:$AK,'Pressupost - Pressupuesto'!$A13)+$B47*F$36","v":{"$error":"#VALUE!"}},{"$f":"+SUMIFS('Detall - Detalle'!$AF:$AF,'Detall - Detalle'!$AD:$AD,G$37,'Detall - Detalle'!$AK:$AK,'Pressupost - Pressupuesto'!$A13)+$B47*G$36","v":{"$error":"#VALUE!"}},{"$f":"+SUMIFS('Detall - Detalle'!$AF:$AF,'Detall - Detalle'!$AD:$AD,H$37,'Detall - Detalle'!$AK:$AK,'Pressupost - Pressupuesto'!$A13)+$B47*H$36","v":{"$error":"#VALUE!"}},{"$f":"+SUMIFS('Detall - Detalle'!$AF:$AF,'Detall - Detalle'!$AD:$AD,I$37,'Detall - Detalle'!$AK:$AK,'Pressupost - Pressupuesto'!$A13)+$B47*I$36","v":{"$error":"#VALUE!"}},{"$f":"+SUMIFS('Detall - Detalle'!$AF:$AF,'Detall - Detalle'!$AD:$AD,J$37,'Detall - Detalle'!$AK:$AK,'Pressupost - Pressupuesto'!$A13)+$B47*J$36","v":{"$error":"#VALUE!"}},{"$f":"+SUMIFS('Detall - Detalle'!$AF:$AF,'Detall - Detalle'!$AD:$AD,K$37,'Detall - Detalle'!$AK:$AK,'Pressupost - Pressupuesto'!$A13)+$B47*K$36","v":{"$error":"#VALUE!"}},{"$f":"+SUMIFS('Detall - Detalle'!$AF:$AF,'Detall - Detalle'!$AD:$AD,L$37,'Detall - Detalle'!$AK:$AK,'Pressupost - Pressupuesto'!$A13)+$B47*L$36","v":{"$error":"#VALUE!"}},{"$f":"+SUMIFS('Detall - Detalle'!$AF:$AF,'Detall - Detalle'!$AD:$AD,M$37,'Detall - Detalle'!$AK:$AK,'Pressupost - Pressupuesto'!$A13)+$B47*M$36","v":{"$error":"#VALUE!"}},{"$f":"+SUMIFS('Detall - Detalle'!$AF:$AF,'Detall - Detalle'!$AD:$AD,N$37,'Detall - Detalle'!$AK:$AK,'Pressupost - Pressupuesto'!$A13)+$B47*N$36","v":{"$error":"#VALUE!"}},{"$f":"+SUMIFS('Detall - Detalle'!$AF:$AF,'Detall - Detalle'!$AD:$AD,O$37,'Detall - Detalle'!$AK:$AK,'Pressupost - Pressupuesto'!$A13)+$B47*O$36","v":{"$error":"#VALUE!"}},{"$f":"+SUMIFS('Detall - Detalle'!$AF:$AF,'Detall - Detalle'!$AD:$AD,P$37,'Detall - Detalle'!$AK:$AK,'Pressupost - Pressupuesto'!$A13)+$B47*P$36","v":{"$error":"#VALUE!"}},{"$f":"+SUMIFS('Detall - Detalle'!$AF:$AF,'Detall - Detalle'!$AD:$AD,Q$37,'Detall - Detalle'!$AK:$AK,'Pressupost - Pressupuesto'!$A13)+$B47*Q$36","v":{"$error":"#VALUE!"}},{"$f":"+SUMIFS('Detall - Detalle'!$AF:$AF,'Detall - Detalle'!$AD:$AD,R$37,'Detall - Detalle'!$AK:$AK,'Pressupost - Pressupuesto'!$A13)+$B47*R$36","v":{"$error":"#VALUE!"}},{"$f":"+SUMIFS('Detall - Detalle'!$AF:$AF,'Detall - Detalle'!$AD:$AD,S$37,'Detall - Detalle'!$AK:$AK,'Pressupost - Pressupuesto'!$A13)+$B47*S$36","v":{"$error":"#VALUE!"}},{"$f":"+SUMIFS('Detall - Detalle'!$AF:$AF,'Detall - Detalle'!$AD:$AD,T$37,'Detall - Detalle'!$AK:$AK,'Pressupost - Pressupuesto'!$A13)+$B47*T$36","v":{"$error":"#VALUE!"}},{"$f":"+SUMIFS('Detall - Detalle'!$AF:$AF,'Detall - Detalle'!$AD:$AD,U$37,'Detall - Detalle'!$AK:$AK,'Pressupost - Pressupuesto'!$A13)+$B47*U$36","v":{"$error":"#VALUE!"}},{"$f":"+SUMIFS('Detall - Detalle'!$AF:$AF,'Detall - Detalle'!$AD:$AD,V$37,'Detall - Detalle'!$AK:$AK,'Pressupost - Pressupuesto'!$A13)+$B47*V$36","v":{"$error":"#VALUE!"}}]
["a7 Reunions, conferències i formacions / Reuniones, conferencias y formaciones",{"$f":"+SUMIFS('Detall - Detalle'!$AF:$AF,'Detall - Detalle'!$AD:$AD,B$37,'Detall - Detalle'!$AK:$AK,'Pressupost - Pressupuesto'!$A14)","v":0},{"$f":"+SUMIFS('Detall - Detalle'!$AF:$AF,'Detall - Detalle'!$AD:$AD,C$37,'Detall - Detalle'!$AK:$AK,'Pressupost - Pressupuesto'!$A14)+$B48*C$36","v":{"$error":"#VALUE!"}},{"$f":"+SUMIFS('Detall - Detalle'!$AF:$AF,'Detall - Detalle'!$AD:$AD,D$37,'Detall - Detalle'!$AK:$AK,'Pressupost - Pressupuesto'!$A14)+$B48*D$36","v":{"$error":"#VALUE!"}},{"$f":"+SUMIFS('Detall - Detalle'!$AF:$AF,'Detall - Detalle'!$AD:$AD,E$37,'Detall - Detalle'!$AK:$AK,'Pressupost - Pressupuesto'!$A14)+$B48*E$36","v":{"$error":"#VALUE!"}},{"$f":"+SUMIFS('Detall - Detalle'!$AF:$AF,'Detall - Detalle'!$AD:$AD,F$37,'Detall - Detalle'!$AK:$AK,'Pressupost - Pressupuesto'!$A14)+$B48*F$36","v":{"$error":"#VALUE!"}},{"$f":"+SUMIFS('Detall - Detalle'!$AF:$AF,'Detall - Detalle'!$AD:$AD,G$37,'Detall - Detalle'!$AK:$AK,'Pressupost - Pressupuesto'!$A14)+$B48*G$36","v":{"$error":"#VALUE!"}},{"$f":"+SUMIFS('Detall - Detalle'!$AF:$AF,'Detall - Detalle'!$AD:$AD,H$37,'Detall - Detalle'!$AK:$AK,'Pressupost - Pressupuesto'!$A14)+$B48*H$36","v":{"$error":"#VALUE!"}},{"$f":"+SUMIFS('Detall - Detalle'!$AF:$AF,'Detall - Detalle'!$AD:$AD,I$37,'Detall - Detalle'!$AK:$AK,'Pressupost - Pressupuesto'!$A14)+$B48*I$36","v":{"$error":"#VALUE!"}},{"$f":"+SUMIFS('Detall - Detalle'!$AF:$AF,'Detall - Detalle'!$AD:$AD,J$37,'Detall - Detalle'!$AK:$AK,'Pressupost - Pressupuesto'!$A14)+$B48*J$36","v":{"$error":"#VALUE!"}},{"$f":"+SUMIFS('Detall - Detalle'!$AF:$AF,'Detall - Detalle'!$AD:$AD,K$37,'Detall - Detalle'!$AK:$AK,'Pressupost - Pressupuesto'!$A14)+$B48*K$36","v":{"$error":"#VALUE!"}},{"$f":"+SUMIFS('Detall - Detalle'!$AF:$AF,'Detall - Detalle'!$AD:$AD,L$37,'Detall - Detalle'!$AK:$AK,'Pressupost - Pressupuesto'!$A14)+$B48*L$36","v":{"$error":"#VALUE!"}},{"$f":"+SUMIFS('Detall - Detalle'!$AF:$AF,'Detall - Detalle'!$AD:$AD,M$37,'Detall - Detalle'!$AK:$AK,'Pressupost - Pressupuesto'!$A14)+$B48*M$36","v":{"$error":"#VALUE!"}},{"$f":"+SUMIFS('Detall - Detalle'!$AF:$AF,'Detall - Detalle'!$AD:$AD,N$37,'Detall - Detalle'!$AK:$AK,'Pressupost - Pressupuesto'!$A14)+$B48*N$36","v":{"$error":"#VALUE!"}},{"$f":"+SUMIFS('Detall - Detalle'!$AF:$AF,'Detall - Detalle'!$AD:$AD,O$37,'Detall - Detalle'!$AK:$AK,'Pressupost - Pressupuesto'!$A14)+$B48*O$36","v":{"$error":"#VALUE!"}},{"$f":"+SUMIFS('Detall - Detalle'!$AF:$AF,'Detall - Detalle'!$AD:$AD,P$37,'Detall - Detalle'!$AK:$AK,'Pressupost - Pressupuesto'!$A14)+$B48*P$36","v":{"$error":"#VALUE!"}},{"$f":"+SUMIFS('Detall - Detalle'!$AF:$AF,'Detall - Detalle'!$AD:$AD,Q$37,'Detall - Detalle'!$AK:$AK,'Pressupost - Pressupuesto'!$A14)+$B48*Q$36","v":{"$error":"#VALUE!"}},{"$f":"+SUMIFS('Detall - Detalle'!$AF:$AF,'Detall - Detalle'!$AD:$AD,R$37,'Detall - Detalle'!$AK:$AK,'Pressupost - Pressupuesto'!$A14)+$B48*R$36","v":{"$error":"#VALUE!"}},{"$f":"+SUMIFS('Detall - Detalle'!$AF:$AF,'Detall - Detalle'!$AD:$AD,S$37,'Detall - Detalle'!$AK:$AK,'Pressupost - Pressupuesto'!$A14)+$B48*S$36","v":{"$error":"#VALUE!"}},{"$f":"+SUMIFS('Detall - Detalle'!$AF:$AF,'Detall - Detalle'!$AD:$AD,T$37,'Detall - Detalle'!$AK:$AK,'Pressupost - Pressupuesto'!$A14)+$B48*T$36","v":{"$error":"#VALUE!"}},{"$f":"+SUMIFS('Detall - Detalle'!$AF:$AF,'Detall - Detalle'!$AD:$AD,U$37,'Detall - Detalle'!$AK:$AK,'Pressupost - Pressupuesto'!$A14)+$B48*U$36","v":{"$error":"#VALUE!"}},{"$f":"+SUMIFS('Detall - Detalle'!$AF:$AF,'Detall - Detalle'!$AD:$AD,V$37,'Detall - Detalle'!$AK:$AK,'Pressupost - Pressupuesto'!$A14)+$B48*V$36","v":{"$error":"#VALUE!"}}]
["a8 Publicitat i difusió / Publicidad y difusión",{"$f":"+SUMIFS('Detall - Detalle'!$AF:$AF,'Detall - Detalle'!$AD:$AD,B$37,'Detall - Detalle'!$AK:$AK,'Pressupost - Pressupuesto'!$A15)","v":0},{"$f":"+SUMIFS('Detall - Detalle'!$AF:$AF,'Detall - Detalle'!$AD:$AD,C$37,'Detall - Detalle'!$AK:$AK,'Pressupost - Pressupuesto'!$A15)+$B49*C$36","v":{"$error":"#VALUE!"}},{"$f":"+SUMIFS('Detall - Detalle'!$AF:$AF,'Detall - Detalle'!$AD:$AD,D$37,'Detall - Detalle'!$AK:$AK,'Pressupost - Pressupuesto'!$A15)+$B49*D$36","v":{"$error":"#VALUE!"}},{"$f":"+SUMIFS('Detall - Detalle'!$AF:$AF,'Detall - Detalle'!$AD:$AD,E$37,'Detall - Detalle'!$AK:$AK,'Pressupost - Pressupuesto'!$A15)+$B49*E$36","v":{"$error":"#VALUE!"}},{"$f":"+SUMIFS('Detall - Detalle'!$AF:$AF,'Detall - Detalle'!$AD:$AD,F$37,'Detall - Detalle'!$AK:$AK,'Pressupost - Pressupuesto'!$A15)+$B49*F$36","v":{"$error":"#VALUE!"}},{"$f":"+SUMIFS('Detall - Detalle'!$AF:$AF,'Detall - Detalle'!$AD:$AD,G$37,'Detall - Detalle'!$AK:$AK,'Pressupost - Pressupuesto'!$A15)+$B49*G$36","v":{"$error":"#VALUE!"}},{"$f":"+SUMIFS('Detall - Detalle'!$AF:$AF,'Detall - Detalle'!$AD:$AD,H$37,'Detall - Detalle'!$AK:$AK,'Pressupost - Pressupuesto'!$A15)+$B49*H$36","v":{"$error":"#VALUE!"}},{"$f":"+SUMIFS('Detall - Detalle'!$AF:$AF,'Detall - Detalle'!$AD:$AD,I$37,'Detall - Detalle'!$AK:$AK,'Pressupost - Pressupuesto'!$A15)+$B49*I$36","v":{"$error":"#VALUE!"}},{"$f":"+SUMIFS('Detall - Detalle'!$AF:$AF,'Detall - Detalle'!$AD:$AD,J$37,'Detall - Detalle'!$AK:$AK,'Pressupost - Pressupuesto'!$A15)+$B49*J$36","v":{"$error":"#VALUE!"}},{"$f":"+SUMIFS('Detall - Detalle'!$AF:$AF,'Detall - Detalle'!$AD:$AD,K$37,'Detall - Detalle'!$AK:$AK,'Pressupost - Pressupuesto'!$A15)+$B49*K$36","v":{"$error":"#VALUE!"}},{"$f":"+SUMIFS('Detall - Detalle'!$AF:$AF,'Detall - Detalle'!$AD:$AD,L$37,'Detall - Detalle'!$AK:$AK,'Pressupost - Pressupuesto'!$A15)+$B49*L$36","v":{"$error":"#VALUE!"}},{"$f":"+SUMIFS('Detall - Detalle'!$AF:$AF,'Detall - Detalle'!$AD:$AD,M$37,'Detall - Detalle'!$AK:$AK,'Pressupost - Pressupuesto'!$A15)+$B49*M$36","v":{"$error":"#VALUE!"}},{"$f":"+SUMIFS('Detall - Detalle'!$AF:$AF,'Detall - Detalle'!$AD:$AD,N$37,'Detall - Detalle'!$AK:$AK,'Pressupost - Pressupuesto'!$A15)+$B49*N$36","v":{"$error":"#VALUE!"}},{"$f":"+SUMIFS('Detall - Detalle'!$AF:$AF,'Detall - Detalle'!$AD:$AD,O$37,'Detall - Detalle'!$AK:$AK,'Pressupost - Pressupuesto'!$A15)+$B49*O$36","v":{"$error":"#VALUE!"}},{"$f":"+SUMIFS('Detall - Detalle'!$AF:$AF,'Detall - Detalle'!$AD:$AD,P$37,'Detall - Detalle'!$AK:$AK,'Pressupost - Pressupuesto'!$A15)+$B49*P$36","v":{"$error":"#VALUE!"}},{"$f":"+SUMIFS('Detall - Detalle'!$AF:$AF,'Detall - Detalle'!$AD:$AD,Q$37,'Detall - Detalle'!$AK:$AK,'Pressupost - Pressupuesto'!$A15)+$B49*Q$36","v":{"$error":"#VALUE!"}},{"$f":"+SUMIFS('Detall - Detalle'!$AF:$AF,'Detall - Detalle'!$AD:$AD,R$37,'Detall - Detalle'!$AK:$AK,'Pressupost - Pressupuesto'!$A15)+$B49*R$36","v":{"$error":"#VALUE!"}},{"$f":"+SUMIFS('Detall - Detalle'!$AF:$AF,'Detall - Detalle'!$AD:$AD,S$37,'Detall - Detalle'!$AK:$AK,'Pressupost - Pressupuesto'!$A15)+$B49*S$36","v":{"$error":"#VALUE!"}},{"$f":"+SUMIFS('Detall - Detalle'!$AF:$AF,'Detall - Detalle'!$AD:$AD,T$37,'Detall - Detalle'!$AK:$AK,'Pressupost - Pressupuesto'!$A15)+$B49*T$36","v":{"$error":"#VALUE!"}},{"$f":"+SUMIFS('Detall - Detalle'!$AF:$AF,'Detall - Detalle'!$AD:$AD,U$37,'Detall - Detalle'!$AK:$AK,'Pressupost - Pressupuesto'!$A15)+$B49*U$36","v":{"$error":"#VALUE!"}},{"$f":"+SUMIFS('Detall - Detalle'!$AF:$AF,'Detall - Detalle'!$AD:$AD,V$37,'Detall - Detalle'!$AK:$AK,'Pressupost - Pressupuesto'!$A15)+$B49*V$36","v":{"$error":"#VALUE!"}}]
["a9 Publicacions / Publicaciones",{"$f":"+SUMIFS('Detall - Detalle'!$AF:$AF,'Detall - Detalle'!$AD:$AD,B$37,'Detall - Detalle'!$AK:$AK,'Pressupost - Pressupuesto'!$A16)","v":0},{"$f":"+SUMIFS('Detall - Detalle'!$AF:$AF,'Detall - Detalle'!$AD:$AD,C$37,'Detall - Detalle'!$AK:$AK,'Pressupost - Pressupuesto'!$A16)+$B50*C$36","v":{"$error":"#VALUE!"}},{"$f":"+SUMIFS('Detall - Detalle'!$AF:$AF,'Detall - Detalle'!$AD:$AD,D$37,'Detall - Detalle'!$AK:$AK,'Pressupost - Pressupuesto'!$A16)+$B50*D$36","v":{"$error":"#VALUE!"}},{"$f":"+SUMIFS('Detall - Detalle'!$AF:$AF,'Detall - Detalle'!$AD:$AD,E$37,'Detall - Detalle'!$AK:$AK,'Pressupost - Pressupuesto'!$A16)+$B50*E$36","v":{"$error":"#VALUE!"}},{"$f":"+SUMIFS('Detall - Detalle'!$AF:$AF,'Detall - Detalle'!$AD:$AD,F$37,'Detall - Detalle'!$AK:$AK,'Pressupost - Pressupuesto'!$A16)+$B50*F$36","v":{"$error":"#VALUE!"}},{"$f":"+SUMIFS('Detall - Detalle'!$AF:$AF,'Detall - Detalle'!$AD:$AD,G$37,'Detall - Detalle'!$AK:$AK,'Pressupost - Pressupuesto'!$A16)+$B50*G$36","v":{"$error":"#VALUE!"}},{"$f":"+SUMIFS('Detall - Detalle'!$AF:$AF,'Detall - Detalle'!$AD:$AD,H$37,'Detall - Detalle'!$AK:$AK,'Pressupost - Pressupuesto'!$A16)+$B50*H$36","v":{"$error":"#VALUE!"}},{"$f":"+SUMIFS('Detall - Detalle'!$AF:$AF,'Detall - Detalle'!$AD:$AD,I$37,'Detall - Detalle'!$AK:$AK,'Pressupost - Pressupuesto'!$A16)+$B50*I$36","v":{"$error":"#VALUE!"}},{"$f":"+SUMIFS('Detall - Detalle'!$AF:$AF,'Detall - Detalle'!$AD:$AD,J$37,'Detall - Detalle'!$AK:$AK,'Pressupost - Pressupuesto'!$A16)+$B50*J$36","v":{"$error":"#VALUE!"}},{"$f":"+SUMIFS('Detall - Detalle'!$AF:$AF,'Detall - Detalle'!$AD:$AD,K$37,'Detall - Detalle'!$AK:$AK,'Pressupost - Pressupuesto'!$A16)+$B50*K$36","v":{"$error":"#VALUE!"}},{"$f":"+SUMIFS('Detall - Detalle'!$AF:$AF,'Detall - Detalle'!$AD:$AD,L$37,'Detall - Detalle'!$AK:$AK,'Pressupost - Pressupuesto'!$A16)+$B50*L$36","v":{"$error":"#VALUE!"}},{"$f":"+SUMIFS('Detall - Detalle'!$AF:$AF,'Detall - Detalle'!$AD:$AD,M$37,'Detall - Detalle'!$AK:$AK,'Pressupost - Pressupuesto'!$A16)+$B50*M$36","v":{"$error":"#VALUE!"}},{"$f":"+SUMIFS('Detall - Detalle'!$AF:$AF,'Detall - Detalle'!$AD:$AD,N$37,'Detall - Detalle'!$AK:$AK,'Pressupost - Pressupuesto'!$A16)+$B50*N$36","v":{"$error":"#VALUE!"}},{"$f":"+SUMIFS('Detall - Detalle'!$AF:$AF,'Detall - Detalle'!$AD:$AD,O$37,'Detall - Detalle'!$AK:$AK,'Pressupost - Pressupuesto'!$A16)+$B50*O$36","v":{"$error":"#VALUE!"}},{"$f":"+SUMIFS('Detall - Detalle'!$AF:$AF,'Detall - Detalle'!$AD:$AD,P$37,'Detall - Detalle'!$AK:$AK,'Pressupost - Pressupuesto'!$A16)+$B50*P$36","v":{"$error":"#VALUE!"}},{"$f":"+SUMIFS('Detall - Detalle'!$AF:$AF,'Detall - Detalle'!$AD:$AD,Q$37,'Detall - Detalle'!$AK:$AK,'Pressupost - Pressupuesto'!$A16)+$B50*Q$36","v":{"$error":"#VALUE!"}},{"$f":"+SUMIFS('Detall - Detalle'!$AF:$AF,'Detall - Detalle'!$AD:$AD,R$37,'Detall - Detalle'!$AK:$AK,'Pressupost - Pressupuesto'!$A16)+$B50*R$36","v":{"$error":"#VALUE!"}},{"$f":"+SUMIFS('Detall - Detalle'!$AF:$AF,'Detall - Detalle'!$AD:$AD,S$37,'Detall - Detalle'!$AK:$AK,'Pressupost - Pressupuesto'!$A16)+$B50*S$36","v":{"$error":"#VALUE!"}},{"$f":"+SUMIFS('Detall - Detalle'!$AF:$AF,'Detall - Detalle'!$AD:$AD,T$37,'Detall - Detalle'!$AK:$AK,'Pressupost - Pressupuesto'!$A16)+$B50*T$36","v":{"$error":"#VALUE!"}},{"$f":"+SUMIFS('Detall - Detalle'!$AF:$AF,'Detall - Detalle'!$AD:$AD,U$37,'Detall - Detalle'!$AK:$AK,'Pressupost - Pressupuesto'!$A16)+$B50*U$36","v":{"$error":"#VALUE!"}},{"$f":"+SUMIFS('Detall - Detalle'!$AF:$AF,'Detall - Detalle'!$AD:$AD,V$37,'Detall - Detalle'!$AK:$AK,'Pressupost - Pressupuesto'!$A16)+$B50*V$36","v":{"$error":"#VALUE!"}}]
["a10 Treballs tècnics i professionals / Trabajos técnicos y profesionales",{"$f":"+SUMIFS('Detall - Detalle'!$AF:$AF,'Detall - Detalle'!$AD:$AD,B$37,'Detall - Detalle'!$AK:$AK,'Pressupost - Pressupuesto'!$A17)","v":0},{"$f":"+SUMIFS('Detall - Detalle'!$AF:$AF,'Detall - Detalle'!$AD:$AD,C$37,'Detall - Detalle'!$AK:$AK,'Pressupost - Pressupuesto'!$A17)+$B51*C$36","v":{"$error":"#VALUE!"}},{"$f":"+SUMIFS('Detall - Detalle'!$AF:$AF,'Detall - Detalle'!$AD:$AD,D$37,'Detall - Detalle'!$AK:$AK,'Pressupost - Pressupuesto'!$A17)+$B51*D$36","v":{"$error":"#VALUE!"}},{"$f":"+SUMIFS('Detall - Detalle'!$AF:$AF,'Detall - Detalle'!$AD:$AD,E$37,'Detall - Detalle'!$AK:$AK,'Pressupost - Pressupuesto'!$A17)+$B51*E$36","v":{"$error":"#VALUE!"}},{"$f":"+SUMIFS('Detall - Detalle'!$AF:$AF,'Detall - Detalle'!$AD:$AD,F$37,'Detall - Detalle'!$AK:$AK,'Pressupost - Pressupuesto'!$A17)+$B51*F$36","v":{"$error":"#VALUE!"}},{"$f":"+SUMIFS('Detall - Detalle'!$AF:$AF,'Detall - Detalle'!$AD:$AD,G$37,'Detall - Detalle'!$AK:$AK,'Pressupost - Pressupuesto'!$A17)+$B51*G$36","v":{"$error":"#VALUE!"}},{"$f":"+SUMIFS('Detall - Detalle'!$AF:$AF,'Detall - Detalle'!$AD:$AD,H$37,'Detall - Detalle'!$AK:$AK,'Pressupost - Pressupuesto'!$A17)+$B51*H$36","v":{"$error":"#VALUE!"}},{"$f":"+SUMIFS('Detall - Detalle'!$AF:$AF,'Detall - Detalle'!$AD:$AD,I$37,'Detall - Detalle'!$AK:$AK,'Pressupost - Pressupuesto'!$A17)+$B51*I$36","v":{"$error":"#VALUE!"}},{"$f":"+SUMIFS('Detall - Detalle'!$AF:$AF,'Detall - Detalle'!$AD:$AD,J$37,'Detall - Detalle'!$AK:$AK,'Pressupost - Pressupuesto'!$A17)+$B51*J$36","v":{"$error":"#VALUE!"}},{"$f":"+SUMIFS('Detall - Detalle'!$AF:$AF,'Detall - Detalle'!$AD:$AD,K$37,'Detall - Detalle'!$AK:$AK,'Pressupost - Pressupuesto'!$A17)+$B51*K$36","v":{"$error":"#VALUE!"}},{"$f":"+SUMIFS('Detall - Detalle'!$AF:$AF,'Detall - Detalle'!$AD:$AD,L$37,'Detall - Detalle'!$AK:$AK,'Pressupost - Pressupuesto'!$A17)+$B51*L$36","v":{"$error":"#VALUE!"}},{"$f":"+SUMIFS('Detall - Detalle'!$AF:$AF,'Detall - Detalle'!$AD:$AD,M$37,'Detall - Detalle'!$AK:$AK,'Pressupost - Pressupuesto'!$A17)+$B51*M$36","v":{"$error":"#VALUE!"}},{"$f":"+SUMIFS('Detall - Detalle'!$AF:$AF,'Detall - Detalle'!$AD:$AD,N$37,'Detall - Detalle'!$AK:$AK,'Pressupost - Pressupuesto'!$A17)+$B51*N$36","v":{"$error":"#VALUE!"}},{"$f":"+SUMIFS('Detall - Detalle'!$AF:$AF,'Detall - Detalle'!$AD:$AD,O$37,'Detall - Detalle'!$AK:$AK,'Pressupost - Pressupuesto'!$A17)+$B51*O$36","v":{"$error":"#VALUE!"}},{"$f":"+SUMIFS('Detall - Detalle'!$AF:$AF,'Detall - Detalle'!$AD:$AD,P$37,'Detall - Detalle'!$AK:$AK,'Pressupost - Pressupuesto'!$A17)+$B51*P$36","v":{"$error":"#VALUE!"}},{"$f":"+SUMIFS('Detall - Detalle'!$AF:$AF,'Detall - Detalle'!$AD:$AD,Q$37,'Detall - Detalle'!$AK:$AK,'Pressupost - Pressupuesto'!$A17)+$B51*Q$36","v":{"$error":"#VALUE!"}},{"$f":"+SUMIFS('Detall - Detalle'!$AF:$AF,'Detall - Detalle'!$AD:$AD,R$37,'Detall - Detalle'!$AK:$AK,'Pressupost - Pressupuesto'!$A17)+$B51*R$36","v":{"$error":"#VALUE!"}},{"$f":"+SUMIFS('Detall - Detalle'!$AF:$AF,'Detall - Detalle'!$AD:$AD,S$37,'Detall - Detalle'!$AK:$AK,'Pressupost - Pressupuesto'!$A17)+$B51*S$36","v":{"$error":"#VALUE!"}},{"$f":"+SUMIFS('Detall - Detalle'!$AF:$AF,'Detall - Detalle'!$AD:$AD,T$37,'Detall - Detalle'!$AK:$AK,'Pressupost - Pressupuesto'!$A17)+$B51*T$36","v":{"$error":"#VALUE!"}},{"$f":"+SUMIFS('Detall - Detalle'!$AF:$AF,'Detall - Detalle'!$AD:$AD,U$37,'Detall - Detalle'!$AK:$AK,'Pressupost - Pressupuesto'!$A17)+$B51*U$36","v":{"$error":"#VALUE!"}},{"$f":"+SUMIFS('Detall - Detalle'!$AF:$AF,'Detall - Detalle'!$AD:$AD,V$37,'Detall - Detalle'!$AK:$AK,'Pressupost - Pressupuesto'!$A17)+$B51*V$36","v":{"$error":"#VALUE!"}}]
["a11 Identificació i formulació / Identificación y formulación",{"$f":"+SUMIFS('Detall - Detalle'!$AF:$AF,'Detall - Detalle'!$AD:$AD,B$37,'Detall - Detalle'!$AK:$AK,'Pressupost - Pressupuesto'!$A18)","v":0},{"$f":"+SUMIFS('Detall - Detalle'!$AF:$AF,'Detall - Detalle'!$AD:$AD,C$37,'Detall - Detalle'!$AK:$AK,'Pressupost - Pressupuesto'!$A18)+$B52*C$36","v":{"$error":"#VALUE!"}},{"$f":"+SUMIFS('Detall - Detalle'!$AF:$AF,'Detall - Detalle'!$AD:$AD,D$37,'Detall - Detalle'!$AK:$AK,'Pressupost - Pressupuesto'!$A18)+$B52*D$36","v":{"$error":"#VALUE!"}},{"$f":"+SUMIFS('Detall - Detalle'!$AF:$AF,'Detall - Detalle'!$AD:$AD,E$37,'Detall - Detalle'!$AK:$AK,'Pressupost - Pressupuesto'!$A18)+$B52*E$36","v":{"$error":"#VALUE!"}},{"$f":"+SUMIFS('Detall - Detalle'!$AF:$AF,'Detall - Detalle'!$AD:$AD,F$37,'Detall - Detalle'!$AK:$AK,'Pressupost - Pressupuesto'!$A18)+$B52*F$36","v":{"$error":"#VALUE!"}},{"$f":"+SUMIFS('Detall - Detalle'!$AF:$AF,'Detall - Detalle'!$AD:$AD,G$37,'Detall - Detalle'!$AK:$AK,'Pressupost - Pressupuesto'!$A18)+$B52*G$36","v":{"$error":"#VALUE!"}},{"$f":"+SUMIFS('Detall - Detalle'!$AF:$AF,'Detall - Detalle'!$AD:$AD,H$37,'Detall - Detalle'!$AK:$AK,'Pressupost - Pressupuesto'!$A18)+$B52*H$36","v":{"$error":"#VALUE!"}},{"$f":"+SUMIFS('Detall - Detalle'!$AF:$AF,'Detall - Detalle'!$AD:$AD,I$37,'Detall - Detalle'!$AK:$AK,'Pressupost - Pressupuesto'!$A18)+$B52*I$36","v":{"$error":"#VALUE!"}},{"$f":"+SUMIFS('Detall - Detalle'!$AF:$AF,'Detall - Detalle'!$AD:$AD,J$37,'Detall - Detalle'!$AK:$AK,'Pressupost - Pressupuesto'!$A18)+$B52*J$36","v":{"$error":"#VALUE!"}},{"$f":"+SUMIFS('Detall - Detalle'!$AF:$AF,'Detall - Detalle'!$AD:$AD,K$37,'Detall - Detalle'!$AK:$AK,'Pressupost - Pressupuesto'!$A18)+$B52*K$36","v":{"$error":"#VALUE!"}},{"$f":"+SUMIFS('Detall - Detalle'!$AF:$AF,'Detall - Detalle'!$AD:$AD,L$37,'Detall - Detalle'!$AK:$AK,'Pressupost - Pressupuesto'!$A18)+$B52*L$36","v":{"$error":"#VALUE!"}},{"$f":"+SUMIFS('Detall - Detalle'!$AF:$AF,'Detall - Detalle'!$AD:$AD,M$37,'Detall - Detalle'!$AK:$AK,'Pressupost - Pressupuesto'!$A18)+$B52*M$36","v":{"$error":"#VALUE!"}},{"$f":"+SUMIFS('Detall - Detalle'!$AF:$AF,'Detall - Detalle'!$AD:$AD,N$37,'Detall - Detalle'!$AK:$AK,'Pressupost - Pressupuesto'!$A18)+$B52*N$36","v":{"$error":"#VALUE!"}},{"$f":"+SUMIFS('Detall - Detalle'!$AF:$AF,'Detall - Detalle'!$AD:$AD,O$37,'Detall - Detalle'!$AK:$AK,'Pressupost - Pressupuesto'!$A18)+$B52*O$36","v":{"$error":"#VALUE!"}},{"$f":"+SUMIFS('Detall - Detalle'!$AF:$AF,'Detall - Detalle'!$AD:$AD,P$37,'Detall - Detalle'!$AK:$AK,'Pressupost - Pressupuesto'!$A18)+$B52*P$36","v":{"$error":"#VALUE!"}},{"$f":"+SUMIFS('Detall - Detalle'!$AF:$AF,'Detall - Detalle'!$AD:$AD,Q$37,'Detall - Detalle'!$AK:$AK,'Pressupost - Pressupuesto'!$A18)+$B52*Q$36","v":{"$error":"#VALUE!"}},{"$f":"+SUMIFS('Detall - Detalle'!$AF:$AF,'Detall - Detalle'!$AD:$AD,R$37,'Detall - Detalle'!$AK:$AK,'Pressupost - Pressupuesto'!$A18)+$B52*R$36","v":{"$error":"#VALUE!"}},{"$f":"+SUMIFS('Detall - Detalle'!$AF:$AF,'Detall - Detalle'!$AD:$AD,S$37,'Detall - Detalle'!$AK:$AK,'Pressupost - Pressupuesto'!$A18)+$B52*S$36","v":{"$error":"#VALUE!"}},{"$f":"+SUMIFS('Detall - Detalle'!$AF:$AF,'Detall - Detalle'!$AD:$AD,T$37,'Detall - Detalle'!$AK:$AK,'Pressupost - Pressupuesto'!$A18)+$B52*T$36","v":{"$error":"#VALUE!"}},{"$f":"+SUMIFS('Detall - Detalle'!$AF:$AF,'Detall - Detalle'!$AD:$AD,U$37,'Detall - Detalle'!$AK:$AK,'Pressupost - Pressupuesto'!$A18)+$B52*U$36","v":{"$error":"#VALUE!"}},{"$f":"+SUMIFS('Detall - Detalle'!$AF:$AF,'Detall - Detalle'!$AD:$AD,V$37,'Detall - Detalle'!$AK:$AK,'Pressupost - Pressupuesto'!$A18)+$B52*V$36","v":{"$error":"#VALUE!"}}]
["a12 Avaluació / Evaluación",{"$f":"+SUMIFS('Detall - Detalle'!$AF:$AF,'Detall - Detalle'!$AD:$AD,B$37,'Detall - Detalle'!$AK:$AK,'Pressupost - Pressupuesto'!$A19)","v":0},{"$f":"+SUMIFS('Detall - Detalle'!$AF:$AF,'Detall - Detalle'!$AD:$AD,C$37,'Detall - Detalle'!$AK:$AK,'Pressupost - Pressupuesto'!$A19)+$B53*C$36","v":{"$error":"#VALUE!"}},{"$f":"+SUMIFS('Detall - Detalle'!$AF:$AF,'Detall - Detalle'!$AD:$AD,D$37,'Detall - Detalle'!$AK:$AK,'Pressupost - Pressupuesto'!$A19)+$B53*D$36","v":{"$error":"#VALUE!"}},{"$f":"+SUMIFS('Detall - Detalle'!$AF:$AF,'Detall - Detalle'!$AD:$AD,E$37,'Detall - Detalle'!$AK:$AK,'Pressupost - Pressupuesto'!$A19)+$B53*E$36","v":{"$error":"#VALUE!"}},{"$f":"+SUMIFS('Detall - Detalle'!$AF:$AF,'Detall - Detalle'!$AD:$AD,F$37,'Detall - Detalle'!$AK:$AK,'Pressupost - Pressupuesto'!$A19)+$B53*F$36","v":{"$error":"#VALUE!"}},{"$f":"+SUMIFS('Detall - Detalle'!$AF:$AF,'Detall - Detalle'!$AD:$AD,G$37,'Detall - Detalle'!$AK:$AK,'Pressupost - Pressupuesto'!$A19)+$B53*G$36","v":{"$error":"#VALUE!"}},{"$f":"+SUMIFS('Detall - Detalle'!$AF:$AF,'Detall - Detalle'!$AD:$AD,H$37,'Detall - Detalle'!$AK:$AK,'Pressupost - Pressupuesto'!$A19)+$B53*H$36","v":{"$error":"#VALUE!"}},{"$f":"+SUMIFS('Detall - Detalle'!$AF:$AF,'Detall - Detalle'!$AD:$AD,I$37,'Detall - Detalle'!$AK:$AK,'Pressupost - Pressupuesto'!$A19)+$B53*I$36","v":{"$error":"#VALUE!"}},{"$f":"+SUMIFS('Detall - Detalle'!$AF:$AF,'Detall - Detalle'!$AD:$AD,J$37,'Detall - Detalle'!$AK:$AK,'Pressupost - Pressupuesto'!$A19)+$B53*J$36","v":{"$error":"#VALUE!"}},{"$f":"+SUMIFS('Detall - Detalle'!$AF:$AF,'Detall - Detalle'!$AD:$AD,K$37,'Detall - Detalle'!$AK:$AK,'Pressupost - Pressupuesto'!$A19)+$B53*K$36","v":{"$error":"#VALUE!"}},{"$f":"+SUMIFS('Detall - Detalle'!$AF:$AF,'Detall - Detalle'!$AD:$AD,L$37,'Detall - Detalle'!$AK:$AK,'Pressupost - Pressupuesto'!$A19)+$B53*L$36","v":{"$error":"#VALUE!"}},{"$f":"+SUMIFS('Detall - Detalle'!$AF:$AF,'Detall - Detalle'!$AD:$AD,M$37,'Detall - Detalle'!$AK:$AK,'Pressupost - Pressupuesto'!$A19)+$B53*M$36","v":{"$error":"#VALUE!"}},{"$f":"+SUMIFS('Detall - Detalle'!$AF:$AF,'Detall - Detalle'!$AD:$AD,N$37,'Detall - Detalle'!$AK:$AK,'Pressupost - Pressupuesto'!$A19)+$B53*N$36","v":{"$error":"#VALUE!"}},{"$f":"+SUMIFS('Detall - Detalle'!$AF:$AF,'Detall - Detalle'!$AD:$AD,O$37,'Detall - Detalle'!$AK:$AK,'Pressupost - Pressupuesto'!$A19)+$B53*O$36","v":{"$error":"#VALUE!"}},{"$f":"+SUMIFS('Detall - Detalle'!$AF:$AF,'Detall - Detalle'!$AD:$AD,P$37,'Detall - Detalle'!$AK:$AK,'Pressupost - Pressupuesto'!$A19)+$B53*P$36","v":{"$error":"#VALUE!"}},{"$f":"+SUMIFS('Detall - Detalle'!$AF:$AF,'Detall - Detalle'!$AD:$AD,Q$37,'Detall - Detalle'!$AK:$AK,'Pressupost - Pressupuesto'!$A19)+$B53*Q$36","v":{"$error":"#VALUE!"}},{"$f":"+SUMIFS('Detall - Detalle'!$AF:$AF,'Detall - Detalle'!$AD:$AD,R$37,'Detall - Detalle'!$AK:$AK,'Pressupost - Pressupuesto'!$A19)+$B53*R$36","v":{"$error":"#VALUE!"}},{"$f":"+SUMIFS('Detall - Detalle'!$AF:$AF,'Detall - Detalle'!$AD:$AD,S$37,'Detall - Detalle'!$AK:$AK,'Pressupost - Pressupuesto'!$A19)+$B53*S$36","v":{"$error":"#VALUE!"}},{"$f":"+SUMIFS('Detall - Detalle'!$AF:$AF,'Detall - Detalle'!$AD:$AD,T$37,'Detall - Detalle'!$AK:$AK,'Pressupost - Pressupuesto'!$A19)+$B53*T$36","v":{"$error":"#VALUE!"}},{"$f":"+SUMIFS('Detall - Detalle'!$AF:$AF,'Detall - Detalle'!$AD:$AD,U$37,'Detall - Detalle'!$AK:$AK,'Pressupost - Pressupuesto'!$A19)+$B53*U$36","v":{"$error":"#VALUE!"}},{"$f":"+SUMIFS('Detall - Detalle'!$AF:$AF,'Detall - Detalle'!$AD:$AD,V$37,'Detall - Detalle'!$AK:$AK,'Pressupost - Pressupuesto'!$A19)+$B53*V$36","v":{"$error":"#VALUE!"}}]
["a13 Dietes, locomoció, trasllats i allotjaments / Dietas, locomoción, traslados y alojamientos",{"$f":"+SUMIFS('Detall - Detalle'!$AF:$AF,'Detall - Detalle'!$AD:$AD,B$37,'Detall - Detalle'!$AK:$AK,'Pressupost - Pressupuesto'!$A20)","v":0},{"$f":"+SUMIFS('Detall - Detalle'!$AF:$AF,'Detall - Detalle'!$AD:$AD,C$37,'Detall - Detalle'!$AK:$AK,'Pressupost - Pressupuesto'!$A20)+$B54*C$36","v":{"$error":"#VALUE!"}},{"$f":"+SUMIFS('Detall - Detalle'!$AF:$AF,'Detall - Detalle'!$AD:$AD,D$37,'Detall - Detalle'!$AK:$AK,'Pressupost - Pressupuesto'!$A20)+$B54*D$36","v":{"$error":"#VALUE!"}},{"$f":"+SUMIFS('Detall - Detalle'!$AF:$AF,'Detall - Detalle'!$AD:$AD,E$37,'Detall - Detalle'!$AK:$AK,'Pressupost - Pressupuesto'!$A20)+$B54*E$36","v":{"$error":"#VALUE!"}},{"$f":"+SUMIFS('Detall - Detalle'!$AF:$AF,'Detall - Detalle'!$AD:$AD,F$37,'Detall - Detalle'!$AK:$AK,'Pressupost - Pressupuesto'!$A20)+$B54*F$36","v":{"$error":"#VALUE!"}},{"$f":"+SUMIFS('Detall - Detalle'!$AF:$AF,'Detall - Detalle'!$AD:$AD,G$37,'Detall - Detalle'!$AK:$AK,'Pressupost - Pressupuesto'!$A20)+$B54*G$36","v":{"$error":"#VALUE!"}},{"$f":"+SUMIFS('Detall - Detalle'!$AF:$AF,'Detall - Detalle'!$AD:$AD,H$37,'Detall - Detalle'!$AK:$AK,'Pressupost - Pressupuesto'!$A20)+$B54*H$36","v":{"$error":"#VALUE!"}},{"$f":"+SUMIFS('Detall - Detalle'!$AF:$AF,'Detall - Detalle'!$AD:$AD,I$37,'Detall - Detalle'!$AK:$AK,'Pressupost - Pressupuesto'!$A20)+$B54*I$36","v":{"$error":"#VALUE!"}},{"$f":"+SUMIFS('Detall - Detalle'!$AF:$AF,'Detall - Detalle'!$AD:$AD,J$37,'Detall - Detalle'!$AK:$AK,'Pressupost - Pressupuesto'!$A20)+$B54*J$36","v":{"$error":"#VALUE!"}},{"$f":"+SUMIFS('Detall - Detalle'!$AF:$AF,'Detall - Detalle'!$AD:$AD,K$37,'Detall - Detalle'!$AK:$AK,'Pressupost - Pressupuesto'!$A20)+$B54*K$36","v":{"$error":"#VALUE!"}},{"$f":"+SUMIFS('Detall - Detalle'!$AF:$AF,'Detall - Detalle'!$AD:$AD,L$37,'Detall - Detalle'!$AK:$AK,'Pressupost - Pressupuesto'!$A20)+$B54*L$36","v":{"$error":"#VALUE!"}},{"$f":"+SUMIFS('Detall - Detalle'!$AF:$AF,'Detall - Detalle'!$AD:$AD,M$37,'Detall - Detalle'!$AK:$AK,'Pressupost - Pressupuesto'!$A20)+$B54*M$36","v":{"$error":"#VALUE!"}},{"$f":"+SUMIFS('Detall - Detalle'!$AF:$AF,'Detall - Detalle'!$AD:$AD,N$37,'Detall - Detalle'!$AK:$AK,'Pressupost - Pressupuesto'!$A20)+$B54*N$36","v":{"$error":"#VALUE!"}},{"$f":"+SUMIFS('Detall - Detalle'!$AF:$AF,'Detall - Detalle'!$AD:$AD,O$37,'Detall - Detalle'!$AK:$AK,'Pressupost - Pressupuesto'!$A20)+$B54*O$36","v":{"$error":"#VALUE!"}},{"$f":"+SUMIFS('Detall - Detalle'!$AF:$AF,'Detall - Detalle'!$AD:$AD,P$37,'Detall - Detalle'!$AK:$AK,'Pressupost - Pressupuesto'!$A20)+$B54*P$36","v":{"$error":"#VALUE!"}},{"$f":"+SUMIFS('Detall - Detalle'!$AF:$AF,'Detall - Detalle'!$AD:$AD,Q$37,'Detall - Detalle'!$AK:$AK,'Pressupost - Pressupuesto'!$A20)+$B54*Q$36","v":{"$error":"#VALUE!"}},{"$f":"+SUMIFS('Detall - Detalle'!$AF:$AF,'Detall - Detalle'!$AD:$AD,R$37,'Detall - Detalle'!$AK:$AK,'Pressupost - Pressupuesto'!$A20)+$B54*R$36","v":{"$error":"#VALUE!"}},{"$f":"+SUMIFS('Detall - Detalle'!$AF:$AF,'Detall - Detalle'!$AD:$AD,S$37,'Detall - Detalle'!$AK:$AK,'Pressupost - Pressupuesto'!$A20)+$B54*S$36","v":{"$error":"#VALUE!"}},{"$f":"+SUMIFS('Detall - Detalle'!$AF:$AF,'Detall - Detalle'!$AD:$AD,T$37,'Detall - Detalle'!$AK:$AK,'Pressupost - Pressupuesto'!$A20)+$B54*T$36","v":{"$error":"#VALUE!"}},{"$f":"+SUMIFS('Detall - Detalle'!$AF:$AF,'Detall - Detalle'!$AD:$AD,U$37,'Detall - Detalle'!$AK:$AK,'Pressupost - Pressupuesto'!$A20)+$B54*U$36","v":{"$error":"#VALUE!"}},{"$f":"+SUMIFS('Detall - Detalle'!$AF:$AF,'Detall - Detalle'!$AD:$AD,V$37,'Detall - Detalle'!$AK:$AK,'Pressupost - Pressupuesto'!$A20)+$B54*V$36","v":{"$error":"#VALUE!"}}]
["a14 Informe auditor / Informe de auditor",{"$f":"+SUMIFS('Detall - Detalle'!$AF:$AF,'Detall - Detalle'!$AD:$AD,B$37,'Detall - Detalle'!$AK:$AK,'Pressupost - Pressupuesto'!$A21)","v":0},{"$f":"+SUMIFS('Detall - Detalle'!$AF:$AF,'Detall - Detalle'!$AD:$AD,C$37,'Detall - Detalle'!$AK:$AK,'Pressupost - Pressupuesto'!$A21)+$B55*C$36","v":{"$error":"#VALUE!"}},{"$f":"+SUMIFS('Detall - Detalle'!$AF:$AF,'Detall - Detalle'!$AD:$AD,D$37,'Detall - Detalle'!$AK:$AK,'Pressupost - Pressupuesto'!$A21)+$B55*D$36","v":{"$error":"#VALUE!"}},{"$f":"+SUMIFS('Detall - Detalle'!$AF:$AF,'Detall - Detalle'!$AD:$AD,E$37,'Detall - Detalle'!$AK:$AK,'Pressupost - Pressupuesto'!$A21)+$B55*E$36","v":{"$error":"#VALUE!"}},{"$f":"+SUMIFS('Detall - Detalle'!$AF:$AF,'Detall - Detalle'!$AD:$AD,F$37,'Detall - Detalle'!$AK:$AK,'Pressupost - Pressupuesto'!$A21)+$B55*F$36","v":{"$error":"#VALUE!"}},{"$f":"+SUMIFS('Detall - Detalle'!$AF:$AF,'Detall - Detalle'!$AD:$AD,G$37,'Detall - Detalle'!$AK:$AK,'Pressupost - Pressupuesto'!$A21)+$B55*G$36","v":{"$error":"#VALUE!"}},{"$f":"+SUMIFS('Detall - Detalle'!$AF:$AF,'Detall - Detalle'!$AD:$AD,H$37,'Detall - Detalle'!$AK:$AK,'Pressupost - Pressupuesto'!$A21)+$B55*H$36","v":{"$error":"#VALUE!"}},{"$f":"+SUMIFS('Detall - Detalle'!$AF:$AF,'Detall - Detalle'!$AD:$AD,I$37,'Detall - Detalle'!$AK:$AK,'Pressupost - Pressupuesto'!$A21)+$B55*I$36","v":{"$error":"#VALUE!"}},{"$f":"+SUMIFS('Detall - Detalle'!$AF:$AF,'Detall - Detalle'!$AD:$AD,J$37,'Detall - Detalle'!$AK:$AK,'Pressupost - Pressupuesto'!$A21)+$B55*J$36","v":{"$error":"#VALUE!"}},{"$f":"+SUMIFS('Detall - Detalle'!$AF:$AF,'Detall - Detalle'!$AD:$AD,K$37,'Detall - Detalle'!$AK:$AK,'Pressupost - Pressupuesto'!$A21)+$B55*K$36","v":{"$error":"#VALUE!"}},{"$f":"+SUMIFS('Detall - Detalle'!$AF:$AF,'Detall - Detalle'!$AD:$AD,L$37,'Detall - Detalle'!$AK:$AK,'Pressupost - Pressupuesto'!$A21)+$B55*L$36","v":{"$error":"#VALUE!"}},{"$f":"+SUMIFS('Detall - Detalle'!$AF:$AF,'Detall - Detalle'!$AD:$AD,M$37,'Detall - Detalle'!$AK:$AK,'Pressupost - Pressupuesto'!$A21)+$B55*M$36","v":{"$error":"#VALUE!"}},{"$f":"+SUMIFS('Detall - Detalle'!$AF:$AF,'Detall - Detalle'!$AD:$AD,N$37,'Detall - Detalle'!$AK:$AK,'Pressupost - Pressupuesto'!$A21)+$B55*N$36","v":{"$error":"#VALUE!"}},{"$f":"+SUMIFS('Detall - Detalle'!$AF:$AF,'Detall - Detalle'!$AD:$AD,O$37,'Detall - Detalle'!$AK:$AK,'Pressupost - Pressupuesto'!$A21)+$B55*O$36","v":{"$error":"#VALUE!"}},{"$f":"+SUMIFS('Detall - Detalle'!$AF:$AF,'Detall - Detalle'!$AD:$AD,P$37,'Detall - Detalle'!$AK:$AK,'Pressupost - Pressupuesto'!$A21)+$B55*P$36","v":{"$error":"#VALUE!"}},{"$f":"+SUMIFS('Detall - Detalle'!$AF:$AF,'Detall - Detalle'!$AD:$AD,Q$37,'Detall - Detalle'!$AK:$AK,'Pressupost - Pressupuesto'!$A21)+$B55*Q$36","v":{"$error":"#VALUE!"}},{"$f":"+SUMIFS('Detall - Detalle'!$AF:$AF,'Detall - Detalle'!$AD:$AD,R$37,'Detall - Detalle'!$AK:$AK,'Pressupost - Pressupuesto'!$A21)+$B55*R$36","v":{"$error":"#VALUE!"}},{"$f":"+SUMIFS('Detall - Detalle'!$AF:$AF,'Detall - Detalle'!$AD:$AD,S$37,'Detall - Detalle'!$AK:$AK,'Pressupost - Pressupuesto'!$A21)+$B55*S$36","v":{"$error":"#VALUE!"}},{"$f":"+SUMIFS('Detall - Detalle'!$AF:$AF,'Detall - Detalle'!$AD:$AD,T$37,'Detall - Detalle'!$AK:$AK,'Pressupost - Pressupuesto'!$A21)+$B55*T$36","v":{"$error":"#VALUE!"}},{"$f":"+SUMIFS('Detall - Detalle'!$AF:$AF,'Detall - Detalle'!$AD:$AD,U$37,'Detall - Detalle'!$AK:$AK,'Pressupost - Pressupuesto'!$A21)+$B55*U$36","v":{"$error":"#VALUE!"}},{"$f":"+SUMIFS('Detall - Detalle'!$AF:$AF,'Detall - Detalle'!$AD:$AD,V$37,'Detall - Detalle'!$AK:$AK,'Pressupost - Pressupuesto'!$A21)+$B55*V$36","v":{"$error":"#VALUE!"}}]
["a15 Despeses financeres / Gastos financieros",{"$f":"+SUMIFS('Detall - Detalle'!$AF:$AF,'Detall - Detalle'!$AD:$AD,B$37,'Detall - Detalle'!$AK:$AK,'Pressupost - Pressupuesto'!$A22)","v":0},{"$f":"+SUMIFS('Detall - Detalle'!$AF:$AF,'Detall - Detalle'!$AD:$AD,C$37,'Detall - Detalle'!$AK:$AK,'Pressupost - Pressupuesto'!$A22)+$B56*C$36","v":{"$error":"#VALUE!"}},{"$f":"+SUMIFS('Detall - Detalle'!$AF:$AF,'Detall - Detalle'!$AD:$AD,D$37,'Detall - Detalle'!$AK:$AK,'Pressupost - Pressupuesto'!$A22)+$B56*D$36","v":{"$error":"#VALUE!"}},{"$f":"+SUMIFS('Detall - Detalle'!$AF:$AF,'Detall - Detalle'!$AD:$AD,E$37,'Detall - Detalle'!$AK:$AK,'Pressupost - Pressupuesto'!$A22)+$B56*E$36","v":{"$error":"#VALUE!"}},{"$f":"+SUMIFS('Detall - Detalle'!$AF:$AF,'Detall - Detalle'!$AD:$AD,F$37,'Detall - Detalle'!$AK:$AK,'Pressupost - Pressupuesto'!$A22)+$B56*F$36","v":{"$error":"#VALUE!"}},{"$f":"+SUMIFS('Detall - Detalle'!$AF:$AF,'Detall - Detalle'!$AD:$AD,G$37,'Detall - Detalle'!$AK:$AK,'Pressupost - Pressupuesto'!$A22)+$B56*G$36","v":{"$error":"#VALUE!"}},{"$f":"+SUMIFS('Detall - Detalle'!$AF:$AF,'Detall - Detalle'!$AD:$AD,H$37,'Detall - Detalle'!$AK:$AK,'Pressupost - Pressupuesto'!$A22)+$B56*H$36","v":{"$error":"#VALUE!"}},{"$f":"+SUMIFS('Detall - Detalle'!$AF:$AF,'Detall - Detalle'!$AD:$AD,I$37,'Detall - Detalle'!$AK:$AK,'Pressupost - Pressupuesto'!$A22)+$B56*I$36","v":{"$error":"#VALUE!"}},{"$f":"+SUMIFS('Detall - Detalle'!$AF:$AF,'Detall - Detalle'!$AD:$AD,J$37,'Detall - Detalle'!$AK:$AK,'Pressupost - Pressupuesto'!$A22)+$B56*J$36","v":{"$error":"#VALUE!"}},{"$f":"+SUMIFS('Detall - Detalle'!$AF:$AF,'Detall - Detalle'!$AD:$AD,K$37,'Detall - Detalle'!$AK:$AK,'Pressupost - Pressupuesto'!$A22)+$B56*K$36","v":{"$error":"#VALUE!"}},{"$f":"+SUMIFS('Detall - Detalle'!$AF:$AF,'Detall - Detalle'!$AD:$AD,L$37,'Detall - Detalle'!$AK:$AK,'Pressupost - Pressupuesto'!$A22)+$B56*L$36","v":{"$error":"#VALUE!"}},{"$f":"+SUMIFS('Detall - Detalle'!$AF:$AF,'Detall - Detalle'!$AD:$AD,M$37,'Detall - Detalle'!$AK:$AK,'Pressupost - Pressupuesto'!$A22)+$B56*M$36","v":{"$error":"#VALUE!"}},{"$f":"+SUMIFS('Detall - Detalle'!$AF:$AF,'Detall - Detalle'!$AD:$AD,N$37,'Detall - Detalle'!$AK:$AK,'Pressupost - Pressupuesto'!$A22)+$B56*N$36","v":{"$error":"#VALUE!"}},{"$f":"+SUMIFS('Detall - Detalle'!$AF:$AF,'Detall - Detalle'!$AD:$AD,O$37,'Detall - Detalle'!$AK:$AK,'Pressupost - Pressupuesto'!$A22)+$B56*O$36","v":{"$error":"#VALUE!"}},{"$f":"+SUMIFS('Detall - Detalle'!$AF:$AF,'Detall - Detalle'!$AD:$AD,P$37,'Detall - Detalle'!$AK:$AK,'Pressupost - Pressupuesto'!$A22)+$B56*P$36","v":{"$error":"#VALUE!"}},{"$f":"+SUMIFS('Detall - Detalle'!$AF:$AF,'Detall - Detalle'!$AD:$AD,Q$37,'Detall - Detalle'!$AK:$AK,'Pressupost - Pressupuesto'!$A22)+$B56*Q$36","v":{"$error":"#VALUE!"}},{"$f":"+SUMIFS('Detall - Detalle'!$AF:$AF,'Detall - Detalle'!$AD:$AD,R$37,'Detall - Detalle'!$AK:$AK,'Pressupost - Pressupuesto'!$A22)+$B56*R$36","v":{"$error":"#VALUE!"}},{"$f":"+SUMIFS('Detall - Detalle'!$AF:$AF,'Detall - Detalle'!$AD:$AD,S$37,'Detall - Detalle'!$AK:$AK,'Pressupost - Pressupuesto'!$A22)+$B56*S$36","v":{"$error":"#VALUE!"}},{"$f":"+SUMIFS('Detall - Detalle'!$AF:$AF,'Detall - Detalle'!$AD:$AD,T$37,'Detall - Detalle'!$AK:$AK,'Pressupost - Pressupuesto'!$A22)+$B56*T$36","v":{"$error":"#VALUE!"}},{"$f":"+SUMIFS('Detall - Detalle'!$AF:$AF,'Detall - Detalle'!$AD:$AD,U$37,'Detall - Detalle'!$AK:$AK,'Pressupost - Pressupuesto'!$A22)+$B56*U$36","v":{"$error":"#VALUE!"}},{"$f":"+SUMIFS('Detall - Detalle'!$AF:$AF,'Detall - Detalle'!$AD:$AD,V$37,'Detall - Detalle'!$AK:$AK,'Pressupost - Pressupuesto'!$A22)+$B56*V$36","v":{"$error":"#VALUE!"}}]
["a16 Despeses de suport legal / Gastos de soporte legal",{"$f":"+SUMIFS('Detall - Detalle'!$AF:$AF,'Detall - Detalle'!$AD:$AD,B$37,'Detall - Detalle'!$AK:$AK,'Pressupost - Pressupuesto'!$A23)","v":0},{"$f":"+SUMIFS('Detall - Detalle'!$AF:$AF,'Detall - Detalle'!$AD:$AD,C$37,'Detall - Detalle'!$AK:$AK,'Pressupost - Pressupuesto'!$A23)+$B57*C$36","v":{"$error":"#VALUE!"}},{"$f":"+SUMIFS('Detall - Detalle'!$AF:$AF,'Detall - Detalle'!$AD:$AD,D$37,'Detall - Detalle'!$AK:$AK,'Pressupost - Pressupuesto'!$A23)+$B57*D$36","v":{"$error":"#VALUE!"}},{"$f":"+SUMIFS('Detall - Detalle'!$AF:$AF,'Detall - Detalle'!$AD:$AD,E$37,'Detall - Detalle'!$AK:$AK,'Pressupost - Pressupuesto'!$A23)+$B57*E$36","v":{"$error":"#VALUE!"}},{"$f":"+SUMIFS('Detall - Detalle'!$AF:$AF,'Detall - Detalle'!$AD:$AD,F$37,'Detall - Detalle'!$AK:$AK,'Pressupost - Pressupuesto'!$A23)+$B57*F$36","v":{"$error":"#VALUE!"}},{"$f":"+SUMIFS('Detall - Detalle'!$AF:$AF,'Detall - Detalle'!$AD:$AD,G$37,'Detall - Detalle'!$AK:$AK,'Pressupost - Pressupuesto'!$A23)+$B57*G$36","v":{"$error":"#VALUE!"}},{"$f":"+SUMIFS('Detall - Detalle'!$AF:$AF,'Detall - Detalle'!$AD:$AD,H$37,'Detall - Detalle'!$AK:$AK,'Pressupost - Pressupuesto'!$A23)+$B57*H$36","v":{"$error":"#VALUE!"}},{"$f":"+SUMIFS('Detall - Detalle'!$AF:$AF,'Detall - Detalle'!$AD:$AD,I$37,'Detall - Detalle'!$AK:$AK,'Pressupost - Pressupuesto'!$A23)+$B57*I$36","v":{"$error":"#VALUE!"}},{"$f":"+SUMIFS('Detall - Detalle'!$AF:$AF,'Detall - Detalle'!$AD:$AD,J$37,'Detall - Detalle'!$AK:$AK,'Pressupost - Pressupuesto'!$A23)+$B57*J$36","v":{"$error":"#VALUE!"}},{"$f":"+SUMIFS('Detall - Detalle'!$AF:$AF,'Detall - Detalle'!$AD:$AD,K$37,'Detall - Detalle'!$AK:$AK,'Pressupost - Pressupuesto'!$A23)+$B57*K$36","v":{"$error":"#VALUE!"}},{"$f":"+SUMIFS('Detall - Detalle'!$AF:$AF,'Detall - Detalle'!$AD:$AD,L$37,'Detall - Detalle'!$AK:$AK,'Pressupost - Pressupuesto'!$A23)+$B57*L$36","v":{"$error":"#VALUE!"}},{"$f":"+SUMIFS('Detall - Detalle'!$AF:$AF,'Detall - Detalle'!$AD:$AD,M$37,'Detall - Detalle'!$AK:$AK,'Pressupost - Pressupuesto'!$A23)+$B57*M$36","v":{"$error":"#VALUE!"}},{"$f":"+SUMIFS('Detall - Detalle'!$AF:$AF,'Detall - Detalle'!$AD:$AD,N$37,'Detall - Detalle'!$AK:$AK,'Pressupost - Pressupuesto'!$A23)+$B57*N$36","v":{"$error":"#VALUE!"}},{"$f":"+SUMIFS('Detall - Detalle'!$AF:$AF,'Detall - Detalle'!$AD:$AD,O$37,'Detall - Detalle'!$AK:$AK,'Pressupost - Pressupuesto'!$A23)+$B57*O$36","v":{"$error":"#VALUE!"}},{"$f":"+SUMIFS('Detall - Detalle'!$AF:$AF,'Detall - Detalle'!$AD:$AD,P$37,'Detall - Detalle'!$AK:$AK,'Pressupost - Pressupuesto'!$A23)+$B57*P$36","v":{"$error":"#VALUE!"}},{"$f":"+SUMIFS('Detall - Detalle'!$AF:$AF,'Detall - Detalle'!$AD:$AD,Q$37,'Detall - Detalle'!$AK:$AK,'Pressupost - Pressupuesto'!$A23)+$B57*Q$36","v":{"$error":"#VALUE!"}},{"$f":"+SUMIFS('Detall - Detalle'!$AF:$AF,'Detall - Detalle'!$AD:$AD,R$37,'Detall - Detalle'!$AK:$AK,'Pressupost - Pressupuesto'!$A23)+$B57*R$36","v":{"$error":"#VALUE!"}},{"$f":"+SUMIFS('Detall - Detalle'!$AF:$AF,'Detall - Detalle'!$AD:$AD,S$37,'Detall - Detalle'!$AK:$AK,'Pressupost - Pressupuesto'!$A23)+$B57*S$36","v":{"$error":"#VALUE!"}},{"$f":"+SUMIFS('Detall - Detalle'!$AF:$AF,'Detall - Detalle'!$AD:$AD,T$37,'Detall - Detalle'!$AK:$AK,'Pressupost - Pressupuesto'!$A23)+$B57*T$36","v":{"$error":"#VALUE!"}},{"$f":"+SUMIFS('Detall - Detalle'!$AF:$AF,'Detall - Detalle'!$AD:$AD,U$37,'Detall - Detalle'!$AK:$AK,'Pressupost - Pressupuesto'!$A23)+$B57*U$36","v":{"$error":"#VALUE!"}},{"$f":"+SUMIFS('Detall - Detalle'!$AF:$AF,'Detall - Detalle'!$AD:$AD,V$37,'Detall - Detalle'!$AK:$AK,'Pressupost - Pressupuesto'!$A23)+$B57*V$36","v":{"$error":"#VALUE!"}}]
["a17 Beques / Becas",{"$f":"+SUMIFS('Detall - Detalle'!$AF:$AF,'Detall - Detalle'!$AD:$AD,B$37,'Detall - Detalle'!$AK:$AK,'Pressupost - Pressupuesto'!$A24)","v":0},{"$f":"+SUMIFS('Detall - Detalle'!$AF:$AF,'Detall - Detalle'!$AD:$AD,C$37,'Detall - Detalle'!$AK:$AK,'Pressupost - Pressupuesto'!$A24)+$B58*C$36","v":{"$error":"#VALUE!"}},{"$f":"+SUMIFS('Detall - Detalle'!$AF:$AF,'Detall - Detalle'!$AD:$AD,D$37,'Detall - Detalle'!$AK:$AK,'Pressupost - Pressupuesto'!$A24)+$B58*D$36","v":{"$error":"#VALUE!"}},{"$f":"+SUMIFS('Detall - Detalle'!$AF:$AF,'Detall - Detalle'!$AD:$AD,E$37,'Detall - Detalle'!$AK:$AK,'Pressupost - Pressupuesto'!$A24)+$B58*E$36","v":{"$error":"#VALUE!"}},{"$f":"+SUMIFS('Detall - Detalle'!$AF:$AF,'Detall - Detalle'!$AD:$AD,F$37,'Detall - Detalle'!$AK:$AK,'Pressupost - Pressupuesto'!$A24)+$B58*F$36","v":{"$error":"#VALUE!"}},{"$f":"+SUMIFS('Detall - Detalle'!$AF:$AF,'Detall - Detalle'!$AD:$AD,G$37,'Detall - Detalle'!$AK:$AK,'Pressupost - Pressupuesto'!$A24)+$B58*G$36","v":{"$error":"#VALUE!"}},{"$f":"+SUMIFS('Detall - Detalle'!$AF:$AF,'Detall - Detalle'!$AD:$AD,H$37,'Detall - Detalle'!$AK:$AK,'Pressupost - Pressupuesto'!$A24)+$B58*H$36","v":{"$error":"#VALUE!"}},{"$f":"+SUMIFS('Detall - Detalle'!$AF:$AF,'Detall - Detalle'!$AD:$AD,I$37,'Detall - Detalle'!$AK:$AK,'Pressupost - Pressupuesto'!$A24)+$B58*I$36","v":{"$error":"#VALUE!"}},{"$f":"+SUMIFS('Detall - Detalle'!$AF:$AF,'Detall - Detalle'!$AD:$AD,J$37,'Detall - Detalle'!$AK:$AK,'Pressupost - Pressupuesto'!$A24)+$B58*J$36","v":{"$error":"#VALUE!"}},{"$f":"+SUMIFS('Detall - Detalle'!$AF:$AF,'Detall - Detalle'!$AD:$AD,K$37,'Detall - Detalle'!$AK:$AK,'Pressupost - Pressupuesto'!$A24)+$B58*K$36","v":{"$error":"#VALUE!"}},{"$f":"+SUMIFS('Detall - Detalle'!$AF:$AF,'Detall - Detalle'!$AD:$AD,L$37,'Detall - Detalle'!$AK:$AK,'Pressupost - Pressupuesto'!$A24)+$B58*L$36","v":{"$error":"#VALUE!"}},{"$f":"+SUMIFS('Detall - Detalle'!$AF:$AF,'Detall - Detalle'!$AD:$AD,M$37,'Detall - Detalle'!$AK:$AK,'Pressupost - Pressupuesto'!$A24)+$B58*M$36","v":{"$error":"#VALUE!"}},{"$f":"+SUMIFS('Detall - Detalle'!$AF:$AF,'Detall - Detalle'!$AD:$AD,N$37,'Detall - Detalle'!$AK:$AK,'Pressupost - Pressupuesto'!$A24)+$B58*N$36","v":{"$error":"#VALUE!"}},{"$f":"+SUMIFS('Detall - Detalle'!$AF:$AF,'Detall - Detalle'!$AD:$AD,O$37,'Detall - Detalle'!$AK:$AK,'Pressupost - Pressupuesto'!$A24)+$B58*O$36","v":{"$error":"#VALUE!"}},{"$f":"+SUMIFS('Detall - Detalle'!$AF:$AF,'Detall - Detalle'!$AD:$AD,P$37,'Detall - Detalle'!$AK:$AK,'Pressupost - Pressupuesto'!$A24)+$B58*P$36","v":{"$error":"#VALUE!"}},{"$f":"+SUMIFS('Detall - Detalle'!$AF:$AF,'Detall - Detalle'!$AD:$AD,Q$37,'Detall - Detalle'!$AK:$AK,'Pressupost - Pressupuesto'!$A24)+$B58*Q$36","v":{"$error":"#VALUE!"}},{"$f":"+SUMIFS('Detall - Detalle'!$AF:$AF,'Detall - Detalle'!$AD:$AD,R$37,'Detall - Detalle'!$AK:$AK,'Pressupost - Pressupuesto'!$A24)+$B58*R$36","v":{"$error":"#VALUE!"}},{"$f":"+SUMIFS('Detall - Detalle'!$AF:$AF,'Detall - Detalle'!$AD:$AD,S$37,'Detall - Detalle'!$AK:$AK,'Pressupost - Pressupuesto'!$A24)+$B58*S$36","v":{"$error":"#VALUE!"}},{"$f":"+SUMIFS('Detall - Detalle'!$AF:$AF,'Detall - Detalle'!$AD:$AD,T$37,'Detall - Detalle'!$AK:$AK,'Pressupost - Pressupuesto'!$A24)+$B58*T$36","v":{"$error":"#VALUE!"}},{"$f":"+SUMIFS('Detall - Detalle'!$AF:$AF,'Detall - Detalle'!$AD:$AD,U$37,'Detall - Detalle'!$AK:$AK,'Pressupost - Pressupuesto'!$A24)+$B58*U$36","v":{"$error":"#VALUE!"}},{"$f":"+SUMIFS('Detall - Detalle'!$AF:$AF,'Detall - Detalle'!$AD:$AD,V$37,'Detall - Detalle'!$AK:$AK,'Pressupost - Pressupuesto'!$A24)+$B58*V$36","v":{"$error":"#VALUE!"}}]
["a18 Imprevistos / Imprevistos",{"$f":"+SUMIFS('Detall - Detalle'!$AF:$AF,'Detall - Detalle'!$AD:$AD,B$37,'Detall - Detalle'!$AK:$AK,'Pressupost - Pressupuesto'!$A25)","v":0},{"$f":"+SUMIFS('Detall - Detalle'!$AF:$AF,'Detall - Detalle'!$AD:$AD,C$37,'Detall - Detalle'!$AK:$AK,'Pressupost - Pressupuesto'!$A25)+$B59*C$36","v":{"$error":"#VALUE!"}},{"$f":"+SUMIFS('Detall - Detalle'!$AF:$AF,'Detall - Detalle'!$AD:$AD,D$37,'Detall - Detalle'!$AK:$AK,'Pressupost - Pressupuesto'!$A25)+$B59*D$36","v":{"$error":"#VALUE!"}},{"$f":"+SUMIFS('Detall - Detalle'!$AF:$AF,'Detall - Detalle'!$AD:$AD,E$37,'Detall - Detalle'!$AK:$AK,'Pressupost - Pressupuesto'!$A25)+$B59*E$36","v":{"$error":"#VALUE!"}},{"$f":"+SUMIFS('Detall - Detalle'!$AF:$AF,'Detall - Detalle'!$AD:$AD,F$37,'Detall - Detalle'!$AK:$AK,'Pressupost - Pressupuesto'!$A25)+$B59*F$36","v":{"$error":"#VALUE!"}},{"$f":"+SUMIFS('Detall - Detalle'!$AF:$AF,'Detall - Detalle'!$AD:$AD,G$37,'Detall - Detalle'!$AK:$AK,'Pressupost - Pressupuesto'!$A25)+$B59*G$36","v":{"$error":"#VALUE!"}},{"$f":"+SUMIFS('Detall - Detalle'!$AF:$AF,'Detall - Detalle'!$AD:$AD,H$37,'Detall - Detalle'!$AK:$AK,'Pressupost - Pressupuesto'!$A25)+$B59*H$36","v":{"$error":"#VALUE!"}},{"$f":"+SUMIFS('Detall - Detalle'!$AF:$AF,'Detall - Detalle'!$AD:$AD,I$37,'Detall - Detalle'!$AK:$AK,'Pressupost - Pressupuesto'!$A25)+$B59*I$36","v":{"$error":"#VALUE!"}},{"$f":"+SUMIFS('Detall - Detalle'!$AF:$AF,'Detall - Detalle'!$AD:$AD,J$37,'Detall - Detalle'!$AK:$AK,'Pressupost - Pressupuesto'!$A25)+$B59*J$36","v":{"$error":"#VALUE!"}},{"$f":"+SUMIFS('Detall - Detalle'!$AF:$AF,'Detall - Detalle'!$AD:$AD,K$37,'Detall - Detalle'!$AK:$AK,'Pressupost - Pressupuesto'!$A25)+$B59*K$36","v":{"$error":"#VALUE!"}},{"$f":"+SUMIFS('Detall - Detalle'!$AF:$AF,'Detall - Detalle'!$AD:$AD,L$37,'Detall - Detalle'!$AK:$AK,'Pressupost - Pressupuesto'!$A25)+$B59*L$36","v":{"$error":"#VALUE!"}},{"$f":"+SUMIFS('Detall - Detalle'!$AF:$AF,'Detall - Detalle'!$AD:$AD,M$37,'Detall - Detalle'!$AK:$AK,'Pressupost - Pressupuesto'!$A25)+$B59*M$36","v":{"$error":"#VALUE!"}},{"$f":"+SUMIFS('Detall - Detalle'!$AF:$AF,'Detall - Detalle'!$AD:$AD,N$37,'Detall - Detalle'!$AK:$AK,'Pressupost - Pressupuesto'!$A25)+$B59*N$36","v":{"$error":"#VALUE!"}},{"$f":"+SUMIFS('Detall - Detalle'!$AF:$AF,'Detall - Detalle'!$AD:$AD,O$37,'Detall - Detalle'!$AK:$AK,'Pressupost - Pressupuesto'!$A25)+$B59*O$36","v":{"$error":"#VALUE!"}},{"$f":"+SUMIFS('Detall - Detalle'!$AF:$AF,'Detall - Detalle'!$AD:$AD,P$37,'Detall - Detalle'!$AK:$AK,'Pressupost - Pressupuesto'!$A25)+$B59*P$36","v":{"$error":"#VALUE!"}},{"$f":"+SUMIFS('Detall - Detalle'!$AF:$AF,'Detall - Detalle'!$AD:$AD,Q$37,'Detall - Detalle'!$AK:$AK,'Pressupost - Pressupuesto'!$A25)+$B59*Q$36","v":{"$error":"#VALUE!"}},{"$f":"+SUMIFS('Detall - Detalle'!$AF:$AF,'Detall - Detalle'!$AD:$AD,R$37,'Detall - Detalle'!$AK:$AK,'Pressupost - Pressupuesto'!$A25)+$B59*R$36","v":{"$error":"#VALUE!"}},{"$f":"+SUMIFS('Detall - Detalle'!$AF:$AF,'Detall - Detalle'!$AD:$AD,S$37,'Detall - Detalle'!$AK:$AK,'Pressupost - Pressupuesto'!$A25)+$B59*S$36","v":{"$error":"#VALUE!"}},{"$f":"+SUMIFS('Detall - Detalle'!$AF:$AF,'Detall - Detalle'!$AD:$AD,T$37,'Detall - Detalle'!$AK:$AK,'Pressupost - Pressupuesto'!$A25)+$B59*T$36","v":{"$error":"#VALUE!"}},{"$f":"+SUMIFS('Detall - Detalle'!$AF:$AF,'Detall - Detalle'!$AD:$AD,U$37,'Detall - Detalle'!$AK:$AK,'Pressupost - Pressupuesto'!$A25)+$B59*U$36","v":{"$error":"#VALUE!"}},{"$f":"+SUMIFS('Detall - Detalle'!$AF:$AF,'Detall - Detalle'!$AD:$AD,V$37,'Detall - Detalle'!$AK:$AK,'Pressupost - Pressupuesto'!$A25)+$B59*V$36","v":{"$error":"#VALUE!"}}]
["DESPESES DIRECTES D'INVERSIÓ (Capítol VII) / GASTOS DIRECTOS DE INVERSIÓN (Capítulo VII)",{"$f":"SUM(B61:B62)","v":0},{"$f":"SUM(C61:C62)","v":{"$error":"#VALUE!"}},{"$f":"SUM(D61:D62)","v":{"$error":"#VALUE!"}},{"$error":"#VALUE!"},{"$error":"#VALUE!"},{"$error":"#VALUE!"},{"$error":"#VALUE!"},{"$error":"#VALUE!"},{"$error":"#VALUE!"},{"$error":"#VALUE!"},{"$error":"#VALUE!"},{"$error":"#VALUE!"},{"$error":"#VALUE!"},{"$f":"SUM(O61:O62)","v":{"$error":"#VALUE!"}},{"$error":"#VALUE!"},{"$error":"#VALUE!"},{"$error":"#VALUE!"},{"$error":"#VALUE!"},{"$error":"#VALUE!"},{"$error":"#VALUE!"},{"$error":"#VALUE!"}]
["b1 Béns inventariables / Bienes inventariables",{"$f":"+SUMIFS('Detall - Detalle'!$AF:$AF,'Detall - Detalle'!$AD:$AD,B$37,'Detall - Detalle'!$AK:$AK,'Pressupost - Pressupuesto'!$A27)","v":0},{"$f":"+SUMIFS('Detall - Detalle'!$AF:$AF,'Detall - Detalle'!$AD:$AD,C$37,'Detall - Detalle'!$AK:$AK,'Pressupost - Pressupuesto'!$A27)+$B61*C$36","v":{"$error":"#VALUE!"}},{"$f":"+SUMIFS('Detall - Detalle'!$AF:$AF,'Detall - Detalle'!$AD:$AD,D$37,'Detall - Detalle'!$AK:$AK,'Pressupost - Pressupuesto'!$A27)+$B61*D$36","v":{"$error":"#VALUE!"}},{"$f":"+SUMIFS('Detall - Detalle'!$AF:$AF,'Detall - Detalle'!$AD:$AD,E$37,'Detall - Detalle'!$AK:$AK,'Pressupost - Pressupuesto'!$A27)+$B61*E$36","v":{"$error":"#VALUE!"}},{"$f":"+SUMIFS('Detall - Detalle'!$AF:$AF,'Detall - Detalle'!$AD:$AD,F$37,'Detall - Detalle'!$AK:$AK,'Pressupost - Pressupuesto'!$A27)+$B61*F$36","v":{"$error":"#VALUE!"}},{"$f":"+SUMIFS('Detall - Detalle'!$AF:$AF,'Detall - Detalle'!$AD:$AD,G$37,'Detall - Detalle'!$AK:$AK,'Pressupost - Pressupuesto'!$A27)+$B61*G$36","v":{"$error":"#VALUE!"}},{"$f":"+SUMIFS('Detall - Detalle'!$AF:$AF,'Detall - Detalle'!$AD:$AD,H$37,'Detall - Detalle'!$AK:$AK,'Pressupost - Pressupuesto'!$A27)+$B61*H$36","v":{"$error":"#VALUE!"}},{"$f":"+SUMIFS('Detall - Detalle'!$AF:$AF,'Detall - Detalle'!$AD:$AD,I$37,'Detall - Detalle'!$AK:$AK,'Pressupost - Pressupuesto'!$A27)+$B61*I$36","v":{"$error":"#VALUE!"}},{"$f":"+SUMIFS('Detall - Detalle'!$AF:$AF,'Detall - Detalle'!$AD:$AD,J$37,'Detall - Detalle'!$AK:$AK,'Pressupost - Pressupuesto'!$A27)+$B61*J$36","v":{"$error":"#VALUE!"}},{"$f":"+SUMIFS('Detall - Detalle'!$AF:$AF,'Detall - Detalle'!$AD:$AD,K$37,'Detall - Detalle'!$AK:$AK,'Pressupost - Pressupuesto'!$A27)+$B61*K$36","v":{"$error":"#VALUE!"}},{"$f":"+SUMIFS('Detall - Detalle'!$AF:$AF,'Detall - Detalle'!$AD:$AD,L$37,'Detall - Detalle'!$AK:$AK,'Pressupost - Pressupuesto'!$A27)+$B61*L$36","v":{"$error":"#VALUE!"}},{"$f":"+SUMIFS('Detall - Detalle'!$AF:$AF,'Detall - Detalle'!$AD:$AD,M$37,'Detall - Detalle'!$AK:$AK,'Pressupost - Pressupuesto'!$A27)+$B61*M$36","v":{"$error":"#VALUE!"}},{"$f":"+SUMIFS('Detall - Detalle'!$AF:$AF,'Detall - Detalle'!$AD:$AD,N$37,'Detall - Detalle'!$AK:$AK,'Pressupost - Pressupuesto'!$A27)+$B61*N$36","v":{"$error":"#VALUE!"}},{"$f":"+SUMIFS('Detall - Detalle'!$AF:$AF,'Detall - Detalle'!$AD:$AD,O$37,'Detall - Detalle'!$AK:$AK,'Pressupost - Pressupuesto'!$A27)+$B61*O$36","v":{"$error":"#VALUE!"}},{"$f":"+SUMIFS('Detall - Detalle'!$AF:$AF,'Detall - Detalle'!$AD:$AD,P$37,'Detall - Detalle'!$AK:$AK,'Pressupost - Pressupuesto'!$A27)+$B61*P$36","v":{"$error":"#VALUE!"}},{"$f":"+SUMIFS('Detall - Detalle'!$AF:$AF,'Detall - Detalle'!$AD:$AD,Q$37,'Detall - Detalle'!$AK:$AK,'Pressupost - Pressupuesto'!$A27)+$B61*Q$36","v":{"$error":"#VALUE!"}},{"$f":"+SUMIFS('Detall - Detalle'!$AF:$AF,'Detall - Detalle'!$AD:$AD,R$37,'Detall - Detalle'!$AK:$AK,'Pressupost - Pressupuesto'!$A27)+$B61*R$36","v":{"$error":"#VALUE!"}},{"$f":"+SUMIFS('Detall - Detalle'!$AF:$AF,'Detall - Detalle'!$AD:$AD,S$37,'Detall - Detalle'!$AK:$AK,'Pressupost - Pressupuesto'!$A27)+$B61*S$36","v":{"$error":"#VALUE!"}},{"$f":"+SUMIFS('Detall - Detalle'!$AF:$AF,'Detall - Detalle'!$AD:$AD,T$37,'Detall - Detalle'!$AK:$AK,'Pressupost - Pressupuesto'!$A27)+$B61*T$36","v":{"$error":"#VALUE!"}},{"$f":"+SUMIFS('Detall - Detalle'!$AF:$AF,'Detall - Detalle'!$AD:$AD,U$37,'Detall - Detalle'!$AK:$AK,'Pressupost - Pressupuesto'!$A27)+$B61*U$36","v":{"$error":"#VALUE!"}},{"$f":"+SUMIFS('Detall - Detalle'!$AF:$AF,'Detall - Detalle'!$AD:$AD,V$37,'Detall - Detalle'!$AK:$AK,'Pressupost - Pressupuesto'!$A27)+$B61*V$36","v":{"$error":"#VALUE!"}}]
["b2 Amortitzacions / Amortizaciones",{"$f":"+SUMIFS('Detall - Detalle'!$AF:$AF,'Detall - Detalle'!$AD:$AD,B$37,'Detall - Detalle'!$AK:$AK,'Pressupost - Pressupuesto'!$A28)","v":0},{"$f":"+SUMIFS('Detall - Detalle'!$AF:$AF,'Detall - Detalle'!$AD:$AD,C$37,'Detall - Detalle'!$AK:$AK,'Pressupost - Pressupuesto'!$A28)+$B62*C$36","v":{"$error":"#VALUE!"}},{"$f":"+SUMIFS('Detall - Detalle'!$AF:$AF,'Detall - Detalle'!$AD:$AD,D$37,'Detall - Detalle'!$AK:$AK,'Pressupost - Pressupuesto'!$A28)+$B62*D$36","v":{"$error":"#VALUE!"}},{"$f":"+SUMIFS('Detall - Detalle'!$AF:$AF,'Detall - Detalle'!$AD:$AD,E$37,'Detall - Detalle'!$AK:$AK,'Pressupost - Pressupuesto'!$A28)+$B62*E$36","v":{"$error":"#VALUE!"}},{"$f":"+SUMIFS('Detall - Detalle'!$AF:$AF,'Detall - Detalle'!$AD:$AD,F$37,'Detall - Detalle'!$AK:$AK,'Pressupost - Pressupuesto'!$A28)+$B62*F$36","v":{"$error":"#VALUE!"}},{"$f":"+SUMIFS('Detall - Detalle'!$AF:$AF,'Detall - Detalle'!$AD:$AD,G$37,'Detall - Detalle'!$AK:$AK,'Pressupost - Pressupuesto'!$A28)+$B62*G$36","v":{"$error":"#VALUE!"}},{"$f":"+SUMIFS('Detall - Detalle'!$AF:$AF,'Detall - Detalle'!$AD:$AD,H$37,'Detall - Detalle'!$AK:$AK,'Pressupost - Pressupuesto'!$A28)+$B62*H$36","v":{"$error":"#VALUE!"}},{"$f":"+SUMIFS('Detall - Detalle'!$AF:$AF,'Detall - Detalle'!$AD:$AD,I$37,'Detall - Detalle'!$AK:$AK,'Pressupost - Pressupuesto'!$A28)+$B62*I$36","v":{"$error":"#VALUE!"}},{"$f":"+SUMIFS('Detall - Detalle'!$AF:$AF,'Detall - Detalle'!$AD:$AD,J$37,'Detall - Detalle'!$AK:$AK,'Pressupost - Pressupuesto'!$A28)+$B62*J$36","v":{"$error":"#VALUE!"}},{"$f":"+SUMIFS('Detall - Detalle'!$AF:$AF,'Detall - Detalle'!$AD:$AD,K$37,'Detall - Detalle'!$AK:$AK,'Pressupost - Pressupuesto'!$A28)+$B62*K$36","v":{"$error":"#VALUE!"}},{"$f":"+SUMIFS('Detall - Detalle'!$AF:$AF,'Detall - Detalle'!$AD:$AD,L$37,'Detall - Detalle'!$AK:$AK,'Pressupost - Pressupuesto'!$A28)+$B62*L$36","v":{"$error":"#VALUE!"}},{"$f":"+SUMIFS('Detall - Detalle'!$AF:$AF,'Detall - Detalle'!$AD:$AD,M$37,'Detall - Detalle'!$AK:$AK,'Pressupost - Pressupuesto'!$A28)+$B62*M$36","v":{"$error":"#VALUE!"}},{"$f":"+SUMIFS('Detall - Detalle'!$AF:$AF,'Detall - Detalle'!$AD:$AD,N$37,'Detall - Detalle'!$AK:$AK,'Pressupost - Pressupuesto'!$A28)+$B62*N$36","v":{"$error":"#VALUE!"}},{"$f":"+SUMIFS('Detall - Detalle'!$AF:$AF,'Detall - Detalle'!$AD:$AD,O$37,'Detall - Detalle'!$AK:$AK,'Pressupost - Pressupuesto'!$A28)+$B62*O$36","v":{"$error":"#VALUE!"}},{"$f":"+SUMIFS('Detall - Detalle'!$AF:$AF,'Detall - Detalle'!$AD:$AD,P$37,'Detall - Detalle'!$AK:$AK,'Pressupost - Pressupuesto'!$A28)+$B62*P$36","v":{"$error":"#VALUE!"}},{"$f":"+SUMIFS('Detall - Detalle'!$AF:$AF,'Detall - Detalle'!$AD:$AD,Q$37,'Detall - Detalle'!$AK:$AK,'Pressupost - Pressupuesto'!$A28)+$B62*Q$36","v":{"$error":"#VALUE!"}},{"$f":"+SUMIFS('Detall - Detalle'!$AF:$AF,'Detall - Detalle'!$AD:$AD,R$37,'Detall - Detalle'!$AK:$AK,'Pressupost - Pressupuesto'!$A28)+$B62*R$36","v":{"$error":"#VALUE!"}},{"$f":"+SUMIFS('Detall - Detalle'!$AF:$AF,'Detall - Detalle'!$AD:$AD,S$37,'Detall - Detalle'!$AK:$AK,'Pressupost - Pressupuesto'!$A28)+$B62*S$36","v":{"$error":"#VALUE!"}},{"$f":"+SUMIFS('Detall - Detalle'!$AF:$AF,'Detall - Detalle'!$AD:$AD,T$37,'Detall - Detalle'!$AK:$AK,'Pressupost - Pressupuesto'!$A28)+$B62*T$36","v":{"$error":"#VALUE!"}},{"$f":"+SUMIFS('Detall - Detalle'!$AF:$AF,'Detall - Detalle'!$AD:$AD,U$37,'Detall - Detalle'!$AK:$AK,'Pressupost - Pressupuesto'!$A28)+$B62*U$36","v":{"$error":"#VALUE!"}},{"$f":"+SUMIFS('Detall - Detalle'!$AF:$AF,'Detall - Detalle'!$AD:$AD,V$37,'Detall - Detalle'!$AK:$AK,'Pressupost - Pressupuesto'!$A28)+$B62*V$36","v":{"$error":"#VALUE!"}}]
["TOTAL DESPESES DIRECTES / TOTAL GASTOS DIRECTOS",{"$f":"+B60+B38","v":0},{"$error":"#VALUE!"},{"$f":"+D60+D38","v":{"$error":"#VALUE!"}},{"$error":"#VALUE!"},{"$error":"#VALUE!"},{"$error":"#VALUE!"},{"$error":"#VALUE!"},{"$error":"#VALUE!"},{"$error":"#VALUE!"},{"$error":"#VALUE!"},{"$error":"#VALUE!"},{"$error":"#VALUE!"},{"$error":"#VALUE!"},{"$f":"+O60+O38","v":{"$error":"#VALUE!"}},{"$error":"#VALUE!"},{"$error":"#VALUE!"},{"$error":"#VALUE!"},{"$error":"#VALUE!"},{"$error":"#VALUE!"},{"$error":"#VALUE!"},{"$error":"#VALUE!"}]
["DESPESES INDIRECTES / GASTOS INDIRECTOS",{"$f":"+SUMIFS('Detall - Detalle'!$AF:$AF,'Detall - Detalle'!$AD:$AD,B$37,'Detall - Detalle'!$AK:$AK,'Pressupost - Pressupuesto'!$A30)","v":0},{"$f":"+SUMIFS('Detall - Detalle'!$AF:$AF,'Detall - Detalle'!$AD:$AD,C$37,'Detall - Detalle'!$AK:$AK,'Pressupost - Pressupuesto'!$A30)+$B64*C$36","v":{"$error":"#VALUE!"}},{"$f":"+SUMIFS('Detall - Detalle'!$AF:$AF,'Detall - Detalle'!$AD:$AD,D$37,'Detall - Detalle'!$AK:$AK,'Pressupost - Pressupuesto'!$A30)+$B64*D$36","v":{"$error":"#VALUE!"}},{"$f":"+SUMIFS('Detall - Detalle'!$AF:$AF,'Detall - Detalle'!$AD:$AD,E$37,'Detall - Detalle'!$AK:$AK,'Pressupost - Pressupuesto'!$A30)+$B64*E$36","v":{"$error":"#VALUE!"}},{"$f":"+SUMIFS('Detall - Detalle'!$AF:$AF,'Detall - Detalle'!$AD:$AD,F$37,'Detall - Detalle'!$AK:$AK,'Pressupost - Pressupuesto'!$A30)+$B64*F$36","v":{"$error":"#VALUE!"}},{"$f":"+SUMIFS('Detall - Detalle'!$AF:$AF,'Detall - Detalle'!$AD:$AD,G$37,'Detall - Detalle'!$AK:$AK,'Pressupost - Pressupuesto'!$A30)+$B64*G$36","v":{"$error":"#VALUE!"}},{"$f":"+SUMIFS('Detall - Detalle'!$AF:$AF,'Detall - Detalle'!$AD:$AD,H$37,'Detall - Detalle'!$AK:$AK,'Pressupost - Pressupuesto'!$A30)+$B64*H$36","v":{"$error":"#VALUE!"}},{"$f":"+SUMIFS('Detall - Detalle'!$AF:$AF,'Detall - Detalle'!$AD:$AD,I$37,'Detall - Detalle'!$AK:$AK,'Pressupost - Pressupuesto'!$A30)+$B64*I$36","v":{"$error":"#VALUE!"}},{"$f":"+SUMIFS('Detall - Detalle'!$AF:$AF,'Detall - Detalle'!$AD:$AD,J$37,'Detall - Detalle'!$AK:$AK,'Pressupost - Pressupuesto'!$A30)+$B64*J$36","v":{"$error":"#VALUE!"}},{"$f":"+SUMIFS('Detall - Detalle'!$AF:$AF,'Detall - Detalle'!$AD:$AD,K$37,'Detall - Detalle'!$AK:$AK,'Pressupost - Pressupuesto'!$A30)+$B64*K$36","v":{"$error":"#VALUE!"}},{"$f":"+SUMIFS('Detall - Detalle'!$AF:$AF,'Detall - Detalle'!$AD:$AD,L$37,'Detall - Detalle'!$AK:$AK,'Pressupost - Pressupuesto'!$A30)+$B64*L$36","v":{"$error":"#VALUE!"}},{"$f":"+SUMIFS('Detall - Detalle'!$AF:$AF,'Detall - Detalle'!$AD:$AD,M$37,'Detall - Detalle'!$AK:$AK,'Pressupost - Pressupuesto'!$A30)+$B64*M$36","v":{"$error":"#VALUE!"}},{"$f":"+SUMIFS('Detall - Detalle'!$AF:$AF,'Detall - Detalle'!$AD:$AD,N$37,'Detall - Detalle'!$AK:$AK,'Pressupost - Pressupuesto'!$A30)+$B64*N$36","v":{"$error":"#VALUE!"}},{"$f":"+SUMIFS('Detall - Detalle'!$AF:$AF,'Detall - Detalle'!$AD:$AD,O$37,'Detall - Detalle'!$AK:$AK,'Pressupost - Pressupuesto'!$A30)+$B64*O$36","v":{"$error":"#VALUE!"}},{"$f":"+SUMIFS('Detall - Detalle'!$AF:$AF,'Detall - Detalle'!$AD:$AD,P$37,'Detall - Detalle'!$AK:$AK,'Pressupost - Pressupuesto'!$A30)+$B64*P$36","v":{"$error":"#VALUE!"}},{"$f":"+SUMIFS('Detall - Detalle'!$AF:$AF,'Detall - Detalle'!$AD:$AD,Q$37,'Detall - Detalle'!$AK:$AK,'Pressupost - Pressupuesto'!$A30)+$B64*Q$36","v":{"$error":"#VALUE!"}},{"$f":"+SUMIFS('Detall - Detalle'!$AF:$AF,'Detall - Detalle'!$AD:$AD,R$37,'Detall - Detalle'!$AK:$AK,'Pressupost - Pressupuesto'!$A30)+$B64*R$36","v":{"$error":"#VALUE!"}},{"$f":"+SUMIFS('Detall - Detalle'!$AF:$AF,'Detall - Detalle'!$AD:$AD,S$37,'Detall - Detalle'!$AK:$AK,'Pressupost - Pressupuesto'!$A30)+$B64*S$36","v":{"$error":"#VALUE!"}},{"$f":"+SUMIFS('Detall - Detalle'!$AF:$AF,'Detall - Detalle'!$AD:$AD,T$37,'Detall - Detalle'!$AK:$AK,'Pressupost - Pressupuesto'!$A30)+$B64*T$36","v":{"$error":"#VALUE!"}},{"$f":"+SUMIFS('Detall - Detalle'!$AF:$AF,'Detall - Detalle'!$AD:$AD,U$37,'Detall - Detalle'!$AK:$AK,'Pressupost - Pressupuesto'!$A30)+$B64*U$36","v":{"$error":"#VALUE!"}},{"$f":"+SUMIFS('Detall - Detalle'!$AF:$AF,'Detall - Detalle'!$AD:$AD,V$37,'Detall - Detalle'!$AK:$AK,'Pressupost - Pressupuesto'!$A30)+$B64*V$36","v":{"$error":"#VALUE!"}}]
["TOTAL DESPESES / TOTAL GASTOS",{"$f":"+B64+B63","v":0},{"$f":"+C64+C63","v":{"$error":"#VALUE!"}},{"$f":"+D64+D63","v":{"$error":"#VALUE!"}},{"$error":"#VALUE!"},{"$error":"#VALUE!"},{"$error":"#VALUE!"},{"$error":"#VALUE!"},{"$error":"#VALUE!"},{"$error":"#VALUE!"},{"$error":"#VALUE!"},{"$error":"#VALUE!"},{"$error":"#VALUE!"},{"$error":"#VALUE!"},{"$f":"+O64+O63","v":{"$error":"#VALUE!"}},{"$error":"#VALUE!"},{"$error":"#VALUE!"},{"$error":"#VALUE!"},{"$error":"#VALUE!"},{"$error":"#VALUE!"},{"$error":"#VALUE!"},{"$error":"#VALUE!"}]

{"sheet":"Detall - Detalle","index":3,"n_rows":62,"n_cols":41,"rows_kept":62,"cut":false,"hidden":false,"merged":[[1,0,2,2],[4,38,4,40],[4,20,4,25],[4,0,4,15],[4,26,4,34],[4,35,4,37],[4,16,4,19]]}
[]
["Introducció del detall de les despeses del projecte / \nIntoducción del detalle de los gastos del proyecto"]
[]
[]
["DADES DE LES FACTURES / DATOS DE LAS FACTURAS",null,null,null,null,null,null,null,null,null,null,null,null,null,null,null,"COST EUROS / COSTE EUROS",null,null,null,"QUI FINANÇA LES DESPESES? / QUIEN FINANCIA LOS GASTOS?",null,null,null,null,null,"A QUINES ACTIVITATS AFECTA? / A QUE ACTIVIDADES AFECTAN LOS GASTOS?",null,null,null,null,null,null,null,null,"FILTRES / FILTROS",null,null,"AUXILIARS CÀLCULS"]
["ENTITAT QUE EXECUTA LA DESPESA / ENTIDAD EJECUTORA DEL GASTO","AGRUPADA-SOCIA LOCAL / AGRUPADA-SOCIA LOCAL","CONCEPTE PRESSUPOST / CONCEPTO PRESUPUESTO","Nº FACTURA","DATA EMISSIÓ FACTURA / FECHA EMISIÓN FACTURA","DATA PAGAMENT / FECHA DE PAGO","CIF PROVEÏDOR / PROVEEDOR","NOM PROVEÏDOR / NOMBRE PROVEEDOR","SUBCONTRACTACIÓ / SUBCONTRATACIÓN","DESCRIPCIÓN FACTURA O NÓMINA / DESCRIPCIÓ FACTURA O NÓMINA","VALORITZACIÓ / VALORIZACIÓN","BASE IMPOSABLE / BASE IMPONIBLE","IVA NO DEDUÏBLE / IVA NO DEDUCIBLE","IRPF","% IMPUTAT AL PROJECTE / % IMPUTADO AL PROYECTO","COST TOTAL / COSTE TOTAL","DIVISA","ACREDITACIÓN PAGO","TIPO DE CAMBIO APLICADO","IMPORT TOTAL DESPESA / IMPORTE TOTAL GASTO (€)","% ACCD / \n%  ACCD","TOTAL ACCD / TOTAL ACCD","% ALTRES FINANÇADORS / \n% OTROS FINANCIADORES","TOTAL ALTRES FINANÇADORS / TOTAL OTROS FINANCIADORES","% ENTITAT EXECUTORA / \n% ENTIDAD EJECUTORA","TOTAL ENTITAT EXECUTORA / TOTAL ENTIDAD EJECUTORA","NÚM. D'ACTIVITATS AFECTADES / NÚM. ACTIVIDADES AFECTADAS","CHECK","COMPTADOR / CONTADOR","ACTIVITAT / ACTIVIDAD","% IMPUTAT A LA ACTIVITAT / % IMPUTADO A LA ACTIVIDAD","IMPORT ACTIVITAT / IMPORTE ACTIVIDAD","IMPORT ACCD / IMPORTE ACCD","IMPORT ALTRES FINANÇADORS / IMPORTE OTROS FINANCIADORES","IMPORT ENTITAT / IMPORTE ENTIDAD","ENTITAT EXECUTORA / ENTIDAD EJECUTORA","CONCEPTE PRESSUPOST / CONCEPTO PRESSUPUESTO","Nº FACTURA","IMPORT","% FINANÇAT ACCD","% IMPUTAT ALTRES FINANÇADORS"]
[null,null,null,null,null,null,null,null,null,null,null,null,null,null,null,{"$f":"+IFERROR((L7+M7+N7)*O7,\"\")","v":0},null,null,null,{"$f":"+IFERROR(IF(ISBLANK(L7),0,P7/S7),\"\")","v":0},null,{"$f":"IFERROR(+T7*U7,\"\")","v":0},null,{"$f":"IFERROR(+T7*W7,\"\")","v":0},{"$f":"IF(V7<>0,1-U7-W7,\"\")","v":""},{"$f":"IFERROR(+T7*Y7,\" \")","v":" "},null,{"$f":"IF(AA7<>\"\",IF(SUM(OFFSET(AG7,0,0,AA7,3))=T7,1,0),\"\")","v":""},{"$f":"+IFERROR(IF(AA7<>\"\",AA7,IF(AC6>1,AC6-1,\"\")),\"\")","v":""},null,null,{"$f":"+IFERROR(IF(AA7=1,AM7,IF(AE7<>\"\",AE7*AM7,\"\")),\"\")","v":""},{"$f":"+IFERROR(IF(AF7<>\"\",AN7*AF7,\"\"),\"\")","v":""},{"$f":"+IFERROR(IF(AF7<>\"\",AF7*AO7,\"\"),\"\")","v":""},{"$f":"+IFERROR(AF7-AG7-AH7,\"\")","v":""},{"$f":"+IF(AC7<>\"\",IF(A7<>\"\",A7,AJ6),\"\")","v":""},{"$f":"+IF(AC7<>\"\",IF(C7<>\"\",C7,AK6),\"\")","v":""},{"$f":"+IF(AC7<>\"\",IF(D7<>\"\",D7,AL6),\"\")","v":""},{"$f":"+IF(AC7<>\"\",IF(T7<>0,T7,AM6),\"\")","v":""},{"$f":"+IF(AC7<>\"\",IF(T7<>0,U7,AN6),\"\")","v":""},{"$f":"+IF(AC7<>\"\",IF(T7<>0,W7,AO6),\"\")","v":""}]
[null,null,null,null,null,null,null,null,null,null,null,null,null,null,null,{"$f":"+IFERROR((L8+M8+N8)*O8,\"\")","v":0},null,null,null,{"$f":"+IFERROR(IF(ISBLANK(L8),0,P8/S8),\"\")","v":0},null,{"$f":"IFERROR(+T8*U8,\"\")","v":0},null,{"$f":"IFERROR(+T8*W8,\"\")","v":0},{"$f":"IF(V8<>0,1-U8-W8,\"\")","v":""},{"$f":"IFERROR(+T8*Y8,\" \")","v":" "},null,"","",null,null,"","","","",{"$f":"+IF(AC8<>\"\",IF(A8<>\"\",A8,AJ7),\"\")","v":""},{"$f":"+IF(AC8<>\"\",IF(C8<>\"\",C8,AK7),\"\")","v":""},{"$f":"+IF(AC8<>\"\",IF(D8<>\"\",D8,AL7),\"\")","v":""},{"$f":"+IF(AC8<>\"\",IF(T8<>0,T8,AM7),\"\")","v":""},{"$f":"+IF(AC8<>\"\",IF(T8<>0,U8,AN7),\"\")","v":""},{"$f":"+IF(AC8<>\"\",IF(T8<>0,W8,AO7),\"\")","v":""}]
[null,null,null,null,null,null,null,null,null,null,null,null,null,null,null,0,null,null,null,0,null,0,null,0,""," ",null,"","",null,null,"","","","","","","","","",""]
[null,null,null,null,null,null,null,null,null,null,null,null,null,null,null,0,null,null,null,0,null,0,null,0,""," ",null,"","",null,null,"","","","","","","","","",""]
[null,null,null,null,null,null,null,null,null,null,null,null,null,null,null,0,null,null,null,0,null,0,null,0,""," ",null,"","",null,null,"","","","","","","","","",""]
[null,null,null,null,null,null,null,null,null,null,null,null,null,null,null,0,null,null,null,0,null,0,null,0,""," ",null,"","",null,null,"","","","","","","","","",""]
[null,null,null,null,null,null,null,null,null,null,null,null,null,null,null,0,null,null,null,0,null,0,null,0,""," ",null,"","",null,null,"","","","","","","","","",""]
[null,null,null,null,null,null,null,null,null,null,null,null,null,null,null,0,null,null,null,0,null,0,null,0,""," ",null,"","",null,null,"","","","","","","","","",{"$f":"+IF(AC14<>\"\",IF(T14<>0,W14,AO13),\"\")","v":""}]
[null,null,null,null,null,null,null,null,null,null,null,null,null,null,null,0,null,null,null,0,null,0,null,0,""," ",null,"","",null,null,"","","","","","","","",{"$f":"+IF(AC15<>\"\",IF(T15<>0,U15,AN14),\"\")","v":""},{"$f":"+IF(AC15<>\"\",IF(T15<>0,W15,AO14),\"\")","v":""}]
[null,null,null,null,null,null,null,null,null,null,null,null,null,null,null,0,null,null,null,0,null,0,null,0,""," ",null,"","",null,null,"","","","","","","","","",""]
[null,null,null,null,null,null,null,null,null,null,null,null,null,null,null,0,null,null,null,0,null,0,null,0,""," ",null,"","",null,null,"","","","","","","","","",""]
[null,null,null,null,null,null,null,null,null,null,null,null,null,null,null,0,null,null,null,0,null,0,null,0,""," ",null,"","",null,null,"","","","","","","","","",""]
[null,null,null,null,null,null,null,null,null,null,null,null,null,null,null,0,null,null,null,0,null,0,null,0,""," ",null,"","",null,null,"","","","","","","","","",""]
[null,null,null,null,null,null,null,null,null,null,null,null,null,null,null,0,null,null,null,0,null,0,null,0,""," ",null,"","",null,null,"","","","","","","","","",""]
[null,null,null,null,null,null,null,null,null,null,null,null,null,null,null,0,null,null,null,0,null,0,null,0,""," ",null,"","",null,null,"","","","","","","","","",""]
[null,null,null,null,null,null,null,null,null,null,null,null,null,null,null,0,null,null,null,0,null,0,null,0,""," ",null,"","",null,null,"","","","","","","","","",""]
[null,null,null,null,null,null,null,null,null,null,null,null,null,null,null,0,null,null,null,0,null,0,null,0,""," ",null,"","",null,null,"","","","","","","","","",""]
[null,null,null,null,null,null,null,null,null,null,null,null,null,null,null,0,null,null,null,0,null,0,null,0,""," ",null,"","",null,null,"","","","","","","","","",""]
[null,null,null,null,null,null,null,null,null,null,null,null,null,null,null,0,null,null,null,0,null,0,null,0,""," ",null,"","",null,null,"","","","","","","","","",""]
[null,null,null,null,null,null,null,null,null,null,null,null,null,null,null,0,null,null,null,0,null,0,null,0,""," ",null,"","",null,null,"","","","","","","","","",""]
[null,null,null,null,null,null,null,null,null,null,null,null,null,null,null,0,null,null,null,0,null,0,null,0,""," ",null,"","",null,null,"","","","","","","","","",""]
[null,null,null,null,null,null,null,null,null,null,null,null,null,null,null,0,null,null,null,0,null,0,null,0,""," ",null,"","",null,null,"","","","","","","","","",""]
[null,null,null,null,null,null,null,null,null,null,null,null,null,null,null,0,null,null,null,0,null,0,null,0,""," ",null,"","",null,null,"","","","","","","","","",""]
[null,null,null,null,null,null,null,null,null,null,null,null,null,null,null,0,null,null,null,0,null,0,null,0,""," ",null,"","",null,null,"","","","","","","","","",""]
[null,null,null,null,null,null,null,null,null,null,null,null,null,null,null,0,null,null,null,0,null,0,null,0,""," ",null,"","",null,null,"","","","","","","","","",""]
[null,null,null,null,null,null,null,null,null,null,null,null,null,null,null,0,null,null,null,0,null,0,null,0,""," ",null,"","",null,null,"","","","","","","","","",""]
[null,null,null,null,null,null,null,null,null,null,null,null,null,null,null,0,null,null,null,0,null,0,null,0,""," ",null,"","",null,null,"","","","","","","","","",""]
[null,null,null,null,null,null,null,null,null,null,null,null,null,null,null,0,null,null,null,0,null,0,null,0,""," ",null,"","",null,null,"","","","","","","","","",""]
[null,null,null,null,null,null,null,null,null,null,null,null,null,null,null,0,null,null,null,0,null,0,null,0,""," ",null,"",{"$f":"+IFERROR(IF(AA35<>\"\",AA35,IF(AC34>1,AC34-1,\"\")),\"\")","v":""},null,null,"","","","","","","","","",""]
[null,null,null,null,null,null,null,null,null,null,null,null,null,null,null,0,null,null,null,0,null,0,null,0,""," ",null,"","",null,null,"","","","","","","","","",""]
[null,null,null,null,null,null,null,null,null,null,null,null,null,null,null,0,null,null,null,0,null,0,null,0,""," ",null,"","",null,null,"","","","","","","","","",""]
[null,null,null,null,null,null,null,null,null,null,null,null,null,null,null,0,null,null,null,0,null,0,null,0,""," ",null,"","",null,null,"","","","","","","","","",""]
[null,null,null,null,null,null,null,null,null,null,null,null,null,null,null,0,null,null,null,0,null,0,null,0,""," ",null,"","",null,null,"","","","","","","","","",""]
[null,null,null,null,null,null,null,null,null,null,null,null,null,null,null,0,null,null,null,0,null,0,null,0,""," ",null,"","",null,null,"","","","","","","","","",""]
[null,null,null,null,null,null,null,null,null,null,null,null,null,null,null,0,null,null,null,0,null,0,null,0,""," ",null,"","",null,null,"","","","","","","","","",""]
[null,null,null,null,null,null,null,null,null,null,null,null,null,null,null,0,null,null,null,0,null,0,null,0,""," ",null,"","",null,null,"","","","","","","","","",""]
[null,null,null,null,null,null,null,null,null,null,null,null,null,null,null,0,null,null,null,0,null,0,null,0,""," ",null,"","",null,null,"","","","","","","","","",""]
[null,null,null,null,null,null,null,null,null,null,null,null,null,null,null,0,null,null,null,0,null,0,null,0,""," ",null,"","",null,null,"","","","","","","","","",""]
[null,null,null,null,null,null,null,null,null,null,null,null,null,null,null,0,null,null,null,0,null,0,null,0,""," ",null,"","",null,null,"","","","","","","","","",""]
[null,null,null,null,null,null,null,null,null,null,null,null,null,null,null,0,null,null,null,0,null,0,null,0,""," ",null,"","",null,null,"","","","","","","","","",""]
[null,null,null,null,null,null,null,null,null,null,null,null,null,null,null,0,null,null,null,0,null,0,null,0,""," ",null,"","",null,null,"","","","","","","","","",""]
[null,null,null,null,null,null,null,null,null,null,null,null,null,null,null,0,null,null,null,0,null,0,null,0,""," ",null,"","",null,null,"","","","","","","","","",""]
[null,null,null,null,null,null,null,null,null,null,null,null,null,null,null,0,null,null,null,0,null,0,null,0,""," ",null,"","",null,null,"","","","","","","","","",""]
[null,null,null,null,null,null,null,null,null,null,null,null,null,null,null,0,null,null,null,0,null,0,null,0,""," ",null,"","",null,null,"","","","","","","","","",""]
[null,null,null,null,null,null,null,null,null,null,null,null,null,null,null,0,null,null,null,0,null,0,null,0,""," ",null,"","",null,null,"","","","","","","","","",""]
[null,null,null,null,null,null,null,null,null,null,null,null,null,null,null,0,null,null,null,0,null,0,null,0,""," ",null,"","",null,null,"","","","","","","","","",""]
[null,null,null,null,null,null,null,null,null,null,null,null,null,null,null,0,null,null,null,0,null,0,null,0,""," ",null,"","",null,null,"","","","","","","","","",""]
[null,null,null,null,null,null,null,null,null,null,null,null,null,null,null,0,null,null,null,0,null,0,null,0,""," ",null,"","",null,null,"","","","","","","","","",""]
[null,null,null,null,null,null,null,null,null,null,null,null,null,null,null,0,null,null,null,0,null,0,null,0,""," ",null,"","",null,null,"","","","","","","","","",""]
[null,null,null,null,null,null,null,null,null,null,null,null,null,null,null,0,null,null,null,0,null,0,null,0,""," ",null,"","",null,null,"","","","","","","","","",""]
[null,null,null,null,null,null,null,null,null,null,null,null,null,null,null,0,null,null,null,0,null,0,null,0,""," ",null,"","",null,null,"","","","","","","","","",""]
[null,null,null,null,null,null,null,null,null,null,null,null,null,null,null,0,null,null,null,0,null,0,null,0,""," ",null,"","",null,null,"","","","","","","","","",""]
[null,null,null,null,null,null,null,null,null,null,null,null,null,null,null,0,null,null,null,0,null,0,null,0,""," ",null,"","",null,null,"","","","","","","","","",""]
[null,null,null,null,null,null,null,null,null,null,null,null,null,null,null,0,null,null,null,0,null,{"$f":"IFERROR(+T60*U60,\"\")","v":0},null,{"$f":"IFERROR(+T60*W60,\"\")","v":0},"",{"$f":"IFERROR(+T60*Y60,\" \")","v":" "},null,"","",null,null,"","","","","","","",{"$f":"+IF(AC60<>\"\",IF(T60<>0,T60,AM59),\"\")","v":""},"",""]
[null,null,null,null,null,null,null,null,null,null,null,null,null,null,null,0,null,null,null,0,null,0,null,0,""," ",null,"","",null,null,"","","","","","","","","",""]
[null,null,null,null,null,null,null,null,null,null,null,null,null,null,null,{"$f":"+IFERROR((L62+M62+N62)*O62,\"\")","v":0},null,null,null,{"$f":"+IFERROR(IF(ISBLANK(L62),0,P62/S62),\"\")","v":0},null,{"$f":"IFERROR(+T62*U62,\"\")","v":0},null,{"$f":"IFERROR(+T62*W62,\"\")","v":0},"",{"$f":"IFERROR(+T62*Y62,\" \")","v":" "},null,{"$f":"IF(AA62<>\"\",IF(SUM(OFFSET(AG62,0,0,AA62,3))=T62,1,0),\"\")","v":""},{"$f":"+IFERROR(IF(AA62<>\"\",AA62,IF(#REF!>1,#REF!-1,\"\")),\"\")","v":""},null,null,{"$f":"+IFERROR(IF(AA62=1,AM62,IF(AE62<>\"\",AE62*AM62,\"\")),\"\")","v":""},{"$f":"+IFERROR(IF(AF62<>\"\",AN62*AF62,\"\"),\"\")","v":""},{"$f":"+IFERROR(IF(AF62<>\"\",AF62*AO62,\"\"),\"\")","v":""},{"$f":"+IFERROR(AF62-AG62-AH62,\"\")","v":""},{"$f":"+IF(AC62<>\"\",IF(A62<>\"\",A62,#REF!),\"\")","v":""},{"$f":"+IF(AC62<>\"\",IF(C62<>\"\",C62,#REF!),\"\")","v":""},{"$f":"+IF(AC62<>\"\",IF(D62<>\"\",D62,#REF!),\"\")","v":""},"","",""]

{"sheet":"Llista desplegable","index":4,"n_rows":49,"n_cols":13,"rows_kept":49,"cut":false,"hidden":true,"merged":[]}
["Partida pressupostària",null,"Executor del projecte/finançador",null,"Valorització",null,"Unitats",null,"Tipus_projecte",null,null,"Màxim","Mínim"]
["a1.1 Personal assalariat local / Personal asalariado local",null,"Líder",null,"Sí",null,"Hores",null,"Desenvolupament",null,"DesenvolupamentIndividual",300000.01,149999.99]
["a1.2 Personal assalariat expatriat / Personal asalariado expatriado",null,"Agrupada",null,null,null,"Dies",null,"Educació global",null,"DesenvolupamentAgrupació",450000.01,149999.99]
["a1.3 Personal assalariat a Catalunya / Personal asalariado Cataluña",null,"Soci_local",null,null,null,"Mesos",null,null,null,"Educació globalIndividual",200000.01,99999.99]
["a2 Lloguers / Alquileres",null,"Col·lectius protagonistes",null,null,null,"Anys",null,null,null,"Educació globalAgrupació",350000.01,99999.99]
["a3 Manteniment, conservació i reparació / Mantenimiento, conservación y reparación",null,"Tercer sector",null,null,null,"Unitats"]
["a4 Material ordinari / Material ordinario",null,null,null,null,null,"Servei"]
["a5 Subministraments / Suministros",null,null,null,null,null,"Litres"]
["a6 Comunicacions, despeses postals i missatgeria / Comunicaciones, gastos postales y mensajería",null,"Agrupadas",null,null,null,"Kit"]
["a7 Reunions, conferències i formacions / Reuniones, conferencias y formaciones",null,{"$f":"'Dades i com... - Datos y com...'!D26","v":0},null,null,null,"Lot"]
["a8 Publicitat i difusió / Publicidad y difusión",null,{"$f":"'Dades i com... - Datos y com...'!D27","v":0},null,null,null,"Forfait"]
["a9 Publicacions / Publicaciones",null,{"$f":"'Dades i com... - Datos y com...'!D28","v":0}]
["a10 Treballs tècnics i professionals / Trabajos técnicos y profesionales"]
["a11 Identificació i formulació / Identificación y formulación"]
["a12 Avaluació / Evaluación",null,"Modalitat de la subvenció 1"]
["a13 Dietes, locomoció, trasllats i allotjaments / Dietas, locomoción, traslados y alojamientos",null,"Compleix condició Geogràfica"]
["a14 Informe auditor / Informe de auditor",null,"No compleix condició Geogràfica"]
["a15 Despeses financeres / Gastos financieros"]
["a16 Despeses de suport legal / Gastos de soporte legal"]
["a17 Beques / Becas"]
["a18 Imprevistos / Imprevistos",null,"Modalitat de la subvenció 2"]
["b1 Béns inventariables / Bienes inventariables",null,"Compleix condició Sectorial"]
["b2 Amortitzacions / Amortizaciones",null,"No compleix condició Sectorial"]
["DESPESES INDIRECTES (Cap IV) / GASTOS INDIRECTOS (Cap IV)"]
[]
["Responable del projecte/finançador"]
["Líder"]
[{"$f":"+'Dades i com... - Datos y com...'!D26","v":0}]
[{"$f":"+'Dades i com... - Datos y com...'!D27","v":0}]
[{"$f":"+'Dades i com... - Datos y com...'!D28","v":0}]
[]
[]
["ACREDITACIÓN PAGO",null,"País",null,"Divisa"]
["Transferencia",null,"Guatemala",null,"Quetzal guatemalteco (GTQ)"]
["Targeta",null,"El Salvador",null,"Dólar estadounidense (USD)"]
["Efectiu",null,"Unión Europea (Eur)",null,"Euro (EUR)"]
["Xec",null,"Colombia",null,"Peso colombiano (COP)"]
["Otro",null,"República Democrática del Congo",null,"Franco congoleño (CDF)"]
[null,null,"Líbano",null,"Libra libanesa (LBP)"]
[null,null,"Palestina",null,"Nuevo séquel israelí (ILS)"]
[null,null,"Senegal",null,"Franco CFA de África Occidental (XOF)"]
[null,null,"Ecuador",null,"Dólar estadounidense (USD)"]
[null,null,"Marruecos",null,"Dirham marroquí (MAD)"]
[null,null,"Costa Rica",null,"Colón costarricense (CRC)"]
[null,null,"Bolivia",null,"Boliviano (BOB)"]
["Activitats",null,"Mozambique",null,"Metical mozambiqueño (MZN)"]
["Elaboració de Podcasts",null,"México",null,"Peso mexicano (MXN)"]
["Dossier ISBN"]
["Escola"]